Organisation Name,Organisation Code,Unique Ref No,Effective Date,Directorate where expenidture incurred,Supplier Name,Payment Date,Net Amount,Service Type,Purpose of Spend,Procurement Classification (Higher Level),Procurement Classification (Lower Level),Capital / Revenue
Walsall Council,http://opendatacommunities.org/id/metropolitan-district-council/walsall,WC120-1,30/11/2020,RESOURCES AND TRANSFORMATION,11KBW,20/11/2020,"19,750.00",6610,63116-External Legal Fees,SUPPLIES & SERVICES,SERVICES,Revenue
Walsall Council,http://opendatacommunities.org/id/metropolitan-district-council/walsall,WC120-2,30/11/2020,CHILDRENS,247 CARS (WILLENHALL) LIMITED,13/11/2020,"1,805.00",6241,52000-Hire of Vehicle with Driver,TRANSPORT,DIRECT TRANSPORT COSTS,Revenue
Walsall Council,http://opendatacommunities.org/id/metropolitan-district-council/walsall,WC120-3,30/11/2020,CHILDRENS,247 CARS (WILLENHALL) LIMITED,13/11/2020,"1,461.60",6241,52000-Hire of Vehicle with Driver,TRANSPORT,DIRECT TRANSPORT COSTS,Revenue
Walsall Council,http://opendatacommunities.org/id/metropolitan-district-council/walsall,WC120-4,30/11/2020,RESOURCES AND TRANSFORMATION,3C TECHNOLOGY LTD,20/11/2020,"1,996.00",6623,63800-Computer Equipment,SUPPLIES & SERVICES,COMMUNICATIONS & COMPUTING,Revenue
Walsall Council,http://opendatacommunities.org/id/metropolitan-district-council/walsall,WC120-5,30/11/2020,RESOURCES AND TRANSFORMATION,4 SIGHT EYECARE CENTRE 002,20/11/2020,400.00,6625,34310-Eye Tests,DIRECT EMPLOYEES,EMPLOYEE ALLOWANCES & EXPENSES,Revenue
Walsall Council,http://opendatacommunities.org/id/metropolitan-district-council/walsall,WC120-6,30/11/2020,RESOURCES AND TRANSFORMATION,4 SIGHT EYECARE CENTRE 002,20/11/2020,600.00,6625,34310-Eye Tests,DIRECT EMPLOYEES,EMPLOYEE ALLOWANCES & EXPENSES,Revenue
Walsall Council,http://opendatacommunities.org/id/metropolitan-district-council/walsall,WC120-7,30/11/2020,ADULT SOCIAL CARE,5 CARE SERVICES LTD,06/11/2020,393.21,6541,73507-Domiciliary Care,THIRD PARTY PAYMENTS,PRIVATE CONTRACTOR,Revenue
Walsall Council,http://opendatacommunities.org/id/metropolitan-district-council/walsall,WC120-8,30/11/2020,ADULT SOCIAL CARE,5 CARE SERVICES LTD,06/11/2020,377.79,6541,73507-Domiciliary Care,THIRD PARTY PAYMENTS,PRIVATE CONTRACTOR,Revenue
Walsall Council,http://opendatacommunities.org/id/metropolitan-district-council/walsall,WC120-9,30/11/2020,ADULT SOCIAL CARE,5 CARE SERVICES LTD,06/11/2020,485.80,6541,73507-Domiciliary Care,THIRD PARTY PAYMENTS,PRIVATE CONTRACTOR,Revenue
Walsall Council,http://opendatacommunities.org/id/metropolitan-district-council/walsall,WC120-10,30/11/2020,ADULT SOCIAL CARE,5 CARE SERVICES LTD,06/11/2020,308.40,6541,73507-Domiciliary Care,THIRD PARTY PAYMENTS,PRIVATE CONTRACTOR,Revenue
Walsall Council,http://opendatacommunities.org/id/metropolitan-district-council/walsall,WC120-11,30/11/2020,ADULT SOCIAL CARE,5 CARE SERVICES LTD,06/11/2020,431.76,6541,73507-Domiciliary Care,THIRD PARTY PAYMENTS,PRIVATE CONTRACTOR,Revenue
Walsall Council,http://opendatacommunities.org/id/metropolitan-district-council/walsall,WC120-12,30/11/2020,ADULT SOCIAL CARE,5 CARE SERVICES LTD,06/11/2020,407.38,6541,73507-Domiciliary Care,THIRD PARTY PAYMENTS,PRIVATE CONTRACTOR,Revenue
Walsall Council,http://opendatacommunities.org/id/metropolitan-district-council/walsall,WC120-13,30/11/2020,ADULT SOCIAL CARE,5 CARE SERVICES LTD,06/11/2020,925.20,6541,73507-Domiciliary Care,THIRD PARTY PAYMENTS,PRIVATE CONTRACTOR,Revenue
Walsall Council,http://opendatacommunities.org/id/metropolitan-district-council/walsall,WC120-14,30/11/2020,ADULT SOCIAL CARE,5 CARE SERVICES LTD,06/11/2020,341.81,6541,73507-Domiciliary Care,THIRD PARTY PAYMENTS,PRIVATE CONTRACTOR,Revenue
Walsall Council,http://opendatacommunities.org/id/metropolitan-district-council/walsall,WC120-15,30/11/2020,ADULT SOCIAL CARE,5 CARE SERVICES LTD,06/11/2020,755.58,6541,73507-Domiciliary Care,THIRD PARTY PAYMENTS,PRIVATE CONTRACTOR,Revenue
Walsall Council,http://opendatacommunities.org/id/metropolitan-district-council/walsall,WC120-16,30/11/2020,ADULT SOCIAL CARE,5 CARE SERVICES LTD,06/11/2020,593.67,6541,73507-Domiciliary Care,THIRD PARTY PAYMENTS,PRIVATE CONTRACTOR,Revenue
Walsall Council,http://opendatacommunities.org/id/metropolitan-district-council/walsall,WC120-17,30/11/2020,ADULT SOCIAL CARE,5 CARE SERVICES LTD,06/11/2020,251.93,6541,73507-Domiciliary Care,THIRD PARTY PAYMENTS,PRIVATE CONTRACTOR,Revenue
Walsall Council,http://opendatacommunities.org/id/metropolitan-district-council/walsall,WC120-18,30/11/2020,ADULT SOCIAL CARE,5 CARE SERVICES LTD,06/11/2020,308.40,6541,73507-Domiciliary Care,THIRD PARTY PAYMENTS,PRIVATE CONTRACTOR,Revenue
Walsall Council,http://opendatacommunities.org/id/metropolitan-district-council/walsall,WC120-19,30/11/2020,ADULT SOCIAL CARE,5 CARE SERVICES LTD,06/11/2020,539.70,6541,73507-Domiciliary Care,THIRD PARTY PAYMENTS,PRIVATE CONTRACTOR,Revenue
Walsall Council,http://opendatacommunities.org/id/metropolitan-district-council/walsall,WC120-20,30/11/2020,ADULT SOCIAL CARE,5 CARE SERVICES LTD,06/11/2020,485.73,6541,73507-Domiciliary Care,THIRD PARTY PAYMENTS,PRIVATE CONTRACTOR,Revenue
Walsall Council,http://opendatacommunities.org/id/metropolitan-district-council/walsall,WC120-21,30/11/2020,ADULT SOCIAL CARE,5 CARE SERVICES LTD,06/11/2020,647.64,6541,73507-Domiciliary Care,THIRD PARTY PAYMENTS,PRIVATE CONTRACTOR,Revenue
Walsall Council,http://opendatacommunities.org/id/metropolitan-district-council/walsall,WC120-22,30/11/2020,ADULT SOCIAL CARE,5 CARE SERVICES LTD,06/11/2020,323.82,6541,73507-Domiciliary Care,THIRD PARTY PAYMENTS,PRIVATE CONTRACTOR,Revenue
Walsall Council,http://opendatacommunities.org/id/metropolitan-district-council/walsall,WC120-23,30/11/2020,ADULT SOCIAL CARE,5 CARE SERVICES LTD,06/11/2020,349.52,6541,73507-Domiciliary Care,THIRD PARTY PAYMENTS,PRIVATE CONTRACTOR,Revenue
Walsall Council,http://opendatacommunities.org/id/metropolitan-district-council/walsall,WC120-24,30/11/2020,ADULT SOCIAL CARE,5 CARE SERVICES LTD,06/11/2020,416.34,6541,73507-Domiciliary Care,THIRD PARTY PAYMENTS,PRIVATE CONTRACTOR,Revenue
Walsall Council,http://opendatacommunities.org/id/metropolitan-district-council/walsall,WC120-25,30/11/2020,ADULT SOCIAL CARE,5 CARE SERVICES LTD,06/11/2020,516.57,6541,73507-Domiciliary Care,THIRD PARTY PAYMENTS,PRIVATE CONTRACTOR,Revenue
Walsall Council,http://opendatacommunities.org/id/metropolitan-district-council/walsall,WC120-26,30/11/2020,ADULT SOCIAL CARE,5 CARE SERVICES LTD,06/11/2020,370.08,6541,73507-Domiciliary Care,THIRD PARTY PAYMENTS,PRIVATE CONTRACTOR,Revenue
Walsall Council,http://opendatacommunities.org/id/metropolitan-district-council/walsall,WC120-27,30/11/2020,ADULT SOCIAL CARE,5 CARE SERVICES LTD,06/11/2020,296.87,6541,73507-Domiciliary Care,THIRD PARTY PAYMENTS,PRIVATE CONTRACTOR,Revenue
Walsall Council,http://opendatacommunities.org/id/metropolitan-district-council/walsall,WC120-28,30/11/2020,ADULT SOCIAL CARE,5 CARE SERVICES LTD,06/11/2020,377.79,6541,73507-Domiciliary Care,THIRD PARTY PAYMENTS,PRIVATE CONTRACTOR,Revenue
Walsall Council,http://opendatacommunities.org/id/metropolitan-district-council/walsall,WC120-29,30/11/2020,ADULT SOCIAL CARE,5 CARE SERVICES LTD,06/11/2020,393.21,6541,73507-Domiciliary Care,THIRD PARTY PAYMENTS,PRIVATE CONTRACTOR,Revenue
Walsall Council,http://opendatacommunities.org/id/metropolitan-district-council/walsall,WC120-30,30/11/2020,ADULT SOCIAL CARE,5 CARE SERVICES LTD,06/11/2020,755.58,6541,73507-Domiciliary Care,THIRD PARTY PAYMENTS,PRIVATE CONTRACTOR,Revenue
Walsall Council,http://opendatacommunities.org/id/metropolitan-district-council/walsall,WC120-31,30/11/2020,ADULT SOCIAL CARE,5 CARE SERVICES LTD,06/11/2020,316.11,6541,73507-Domiciliary Care,THIRD PARTY PAYMENTS,PRIVATE CONTRACTOR,Revenue
Walsall Council,http://opendatacommunities.org/id/metropolitan-district-council/walsall,WC120-32,30/11/2020,ADULT SOCIAL CARE,5 CARE SERVICES LTD,06/11/2020,341.81,6541,73507-Domiciliary Care,THIRD PARTY PAYMENTS,PRIVATE CONTRACTOR,Revenue
Walsall Council,http://opendatacommunities.org/id/metropolitan-district-council/walsall,WC120-33,30/11/2020,ADULT SOCIAL CARE,5 CARE SERVICES LTD,06/11/2020,539.70,6541,73507-Domiciliary Care,THIRD PARTY PAYMENTS,PRIVATE CONTRACTOR,Revenue
Walsall Council,http://opendatacommunities.org/id/metropolitan-district-council/walsall,WC120-34,30/11/2020,ADULT SOCIAL CARE,5 CARE SERVICES LTD,06/11/2020,485.73,6541,73507-Domiciliary Care,THIRD PARTY PAYMENTS,PRIVATE CONTRACTOR,Revenue
Walsall Council,http://opendatacommunities.org/id/metropolitan-district-council/walsall,WC120-35,30/11/2020,ADULT SOCIAL CARE,5 CARE SERVICES LTD,06/11/2020,516.57,6541,73507-Domiciliary Care,THIRD PARTY PAYMENTS,PRIVATE CONTRACTOR,Revenue
Walsall Council,http://opendatacommunities.org/id/metropolitan-district-council/walsall,WC120-36,30/11/2020,ADULT SOCIAL CARE,5 CARE SERVICES LTD,06/11/2020,370.08,6541,73507-Domiciliary Care,THIRD PARTY PAYMENTS,PRIVATE CONTRACTOR,Revenue
Walsall Council,http://opendatacommunities.org/id/metropolitan-district-council/walsall,WC120-37,30/11/2020,ADULT SOCIAL CARE,5 CARE SERVICES LTD,06/11/2020,296.87,6541,73507-Domiciliary Care,THIRD PARTY PAYMENTS,PRIVATE CONTRACTOR,Revenue
Walsall Council,http://opendatacommunities.org/id/metropolitan-district-council/walsall,WC120-38,30/11/2020,ADULT SOCIAL CARE,5 CARE SERVICES LTD,06/11/2020,377.79,6541,73507-Domiciliary Care,THIRD PARTY PAYMENTS,PRIVATE CONTRACTOR,Revenue
Walsall Council,http://opendatacommunities.org/id/metropolitan-district-council/walsall,WC120-39,30/11/2020,ADULT SOCIAL CARE,5 CARE SERVICES LTD,06/11/2020,308.40,6541,73507-Domiciliary Care,THIRD PARTY PAYMENTS,PRIVATE CONTRACTOR,Revenue
Walsall Council,http://opendatacommunities.org/id/metropolitan-district-council/walsall,WC120-40,30/11/2020,ADULT SOCIAL CARE,5 CARE SERVICES LTD,06/11/2020,431.76,6541,73507-Domiciliary Care,THIRD PARTY PAYMENTS,PRIVATE CONTRACTOR,Revenue
Walsall Council,http://opendatacommunities.org/id/metropolitan-district-council/walsall,WC120-41,30/11/2020,ADULT SOCIAL CARE,5 CARE SERVICES LTD,06/11/2020,925.20,6541,73507-Domiciliary Care,THIRD PARTY PAYMENTS,PRIVATE CONTRACTOR,Revenue
Walsall Council,http://opendatacommunities.org/id/metropolitan-district-council/walsall,WC120-42,30/11/2020,ADULT SOCIAL CARE,5 CARE SERVICES LTD,06/11/2020,647.64,6541,73507-Domiciliary Care,THIRD PARTY PAYMENTS,PRIVATE CONTRACTOR,Revenue
Walsall Council,http://opendatacommunities.org/id/metropolitan-district-council/walsall,WC120-43,30/11/2020,ADULT SOCIAL CARE,5 CARE SERVICES LTD,06/11/2020,323.82,6541,73507-Domiciliary Care,THIRD PARTY PAYMENTS,PRIVATE CONTRACTOR,Revenue
Walsall Council,http://opendatacommunities.org/id/metropolitan-district-council/walsall,WC120-44,30/11/2020,ADULT SOCIAL CARE,5 CARE SERVICES LTD,06/11/2020,485.80,6541,73507-Domiciliary Care,THIRD PARTY PAYMENTS,PRIVATE CONTRACTOR,Revenue
Walsall Council,http://opendatacommunities.org/id/metropolitan-district-council/walsall,WC120-45,30/11/2020,ADULT SOCIAL CARE,5 CARE SERVICES LTD,06/11/2020,377.79,6541,73507-Domiciliary Care,THIRD PARTY PAYMENTS,PRIVATE CONTRACTOR,Revenue
Walsall Council,http://opendatacommunities.org/id/metropolitan-district-council/walsall,WC120-46,30/11/2020,ADULT SOCIAL CARE,5 CARE SERVICES LTD,06/11/2020,593.67,6541,73507-Domiciliary Care,THIRD PARTY PAYMENTS,PRIVATE CONTRACTOR,Revenue
Walsall Council,http://opendatacommunities.org/id/metropolitan-district-council/walsall,WC120-47,30/11/2020,ADULT SOCIAL CARE,5 CARE SERVICES LTD,06/11/2020,251.93,6541,73507-Domiciliary Care,THIRD PARTY PAYMENTS,PRIVATE CONTRACTOR,Revenue
Walsall Council,http://opendatacommunities.org/id/metropolitan-district-council/walsall,WC120-48,30/11/2020,ADULT SOCIAL CARE,5 CARE SERVICES LTD,06/11/2020,308.40,6541,73507-Domiciliary Care,THIRD PARTY PAYMENTS,PRIVATE CONTRACTOR,Revenue
Walsall Council,http://opendatacommunities.org/id/metropolitan-district-council/walsall,WC120-49,30/11/2020,ADULT SOCIAL CARE,5 CARE SERVICES LTD,06/11/2020,349.52,6541,73507-Domiciliary Care,THIRD PARTY PAYMENTS,PRIVATE CONTRACTOR,Revenue
Walsall Council,http://opendatacommunities.org/id/metropolitan-district-council/walsall,WC120-50,30/11/2020,ADULT SOCIAL CARE,5 CARE SERVICES LTD,06/11/2020,416.34,6541,73507-Domiciliary Care,THIRD PARTY PAYMENTS,PRIVATE CONTRACTOR,Revenue
Walsall Council,http://opendatacommunities.org/id/metropolitan-district-council/walsall,WC120-51,30/11/2020,ADULT SOCIAL CARE,5 CARE SERVICES LTD,06/11/2020,250.60,6541,73507-Domiciliary Care,THIRD PARTY PAYMENTS,PRIVATE CONTRACTOR,Revenue
Walsall Council,http://opendatacommunities.org/id/metropolitan-district-council/walsall,WC120-52,30/11/2020,ADULT SOCIAL CARE,5 CARE SERVICES LTD,20/11/2020,377.79,6541,73507-Domiciliary Care,THIRD PARTY PAYMENTS,PRIVATE CONTRACTOR,Revenue
Walsall Council,http://opendatacommunities.org/id/metropolitan-district-council/walsall,WC120-53,30/11/2020,ADULT SOCIAL CARE,5 CARE SERVICES LTD,20/11/2020,393.21,6541,73507-Domiciliary Care,THIRD PARTY PAYMENTS,PRIVATE CONTRACTOR,Revenue
Walsall Council,http://opendatacommunities.org/id/metropolitan-district-council/walsall,WC120-54,30/11/2020,ADULT SOCIAL CARE,5 CARE SERVICES LTD,20/11/2020,516.57,6541,73507-Domiciliary Care,THIRD PARTY PAYMENTS,PRIVATE CONTRACTOR,Revenue
Walsall Council,http://opendatacommunities.org/id/metropolitan-district-council/walsall,WC120-55,30/11/2020,ADULT SOCIAL CARE,5 CARE SERVICES LTD,20/11/2020,555.12,6541,73507-Domiciliary Care,THIRD PARTY PAYMENTS,PRIVATE CONTRACTOR,Revenue
Walsall Council,http://opendatacommunities.org/id/metropolitan-district-council/walsall,WC120-56,30/11/2020,ADULT SOCIAL CARE,5 CARE SERVICES LTD,20/11/2020,593.67,6541,73507-Domiciliary Care,THIRD PARTY PAYMENTS,PRIVATE CONTRACTOR,Revenue
Walsall Council,http://opendatacommunities.org/id/metropolitan-district-council/walsall,WC120-57,30/11/2020,ADULT SOCIAL CARE,5 CARE SERVICES LTD,20/11/2020,296.87,6541,73507-Domiciliary Care,THIRD PARTY PAYMENTS,PRIVATE CONTRACTOR,Revenue
Walsall Council,http://opendatacommunities.org/id/metropolitan-district-council/walsall,WC120-58,30/11/2020,ADULT SOCIAL CARE,5 CARE SERVICES LTD,20/11/2020,755.58,6541,73507-Domiciliary Care,THIRD PARTY PAYMENTS,PRIVATE CONTRACTOR,Revenue
Walsall Council,http://opendatacommunities.org/id/metropolitan-district-council/walsall,WC120-59,30/11/2020,ADULT SOCIAL CARE,5 CARE SERVICES LTD,20/11/2020,377.79,6541,73507-Domiciliary Care,THIRD PARTY PAYMENTS,PRIVATE CONTRACTOR,Revenue
Walsall Council,http://opendatacommunities.org/id/metropolitan-district-council/walsall,WC120-60,30/11/2020,ADULT SOCIAL CARE,5 CARE SERVICES LTD,20/11/2020,341.81,6541,73507-Domiciliary Care,THIRD PARTY PAYMENTS,PRIVATE CONTRACTOR,Revenue
Walsall Council,http://opendatacommunities.org/id/metropolitan-district-council/walsall,WC120-61,30/11/2020,ADULT SOCIAL CARE,5 CARE SERVICES LTD,20/11/2020,454.89,6541,73507-Domiciliary Care,THIRD PARTY PAYMENTS,PRIVATE CONTRACTOR,Revenue
Walsall Council,http://opendatacommunities.org/id/metropolitan-district-council/walsall,WC120-62,30/11/2020,ADULT SOCIAL CARE,5 CARE SERVICES LTD,20/11/2020,539.70,6541,73507-Domiciliary Care,THIRD PARTY PAYMENTS,PRIVATE CONTRACTOR,Revenue
Walsall Council,http://opendatacommunities.org/id/metropolitan-district-council/walsall,WC120-63,30/11/2020,ADULT SOCIAL CARE,5 CARE SERVICES LTD,20/11/2020,485.73,6541,73507-Domiciliary Care,THIRD PARTY PAYMENTS,PRIVATE CONTRACTOR,Revenue
Walsall Council,http://opendatacommunities.org/id/metropolitan-district-council/walsall,WC120-64,30/11/2020,ADULT SOCIAL CARE,5 CARE SERVICES LTD,20/11/2020,485.80,6541,73507-Domiciliary Care,THIRD PARTY PAYMENTS,PRIVATE CONTRACTOR,Revenue
Walsall Council,http://opendatacommunities.org/id/metropolitan-district-council/walsall,WC120-65,30/11/2020,ADULT SOCIAL CARE,5 CARE SERVICES LTD,20/11/2020,308.40,6541,73507-Domiciliary Care,THIRD PARTY PAYMENTS,PRIVATE CONTRACTOR,Revenue
Walsall Council,http://opendatacommunities.org/id/metropolitan-district-council/walsall,WC120-66,30/11/2020,ADULT SOCIAL CARE,5 CARE SERVICES LTD,20/11/2020,431.76,6541,73507-Domiciliary Care,THIRD PARTY PAYMENTS,PRIVATE CONTRACTOR,Revenue
Walsall Council,http://opendatacommunities.org/id/metropolitan-district-council/walsall,WC120-67,30/11/2020,ADULT SOCIAL CARE,5 CARE SERVICES LTD,20/11/2020,253.18,6541,73507-Domiciliary Care,THIRD PARTY PAYMENTS,PRIVATE CONTRACTOR,Revenue
Walsall Council,http://opendatacommunities.org/id/metropolitan-district-council/walsall,WC120-68,30/11/2020,ADULT SOCIAL CARE,5 CARE SERVICES LTD,20/11/2020,485.73,6541,73507-Domiciliary Care,THIRD PARTY PAYMENTS,PRIVATE CONTRACTOR,Revenue
Walsall Council,http://opendatacommunities.org/id/metropolitan-district-council/walsall,WC120-69,30/11/2020,ADULT SOCIAL CARE,5 CARE SERVICES LTD,20/11/2020,647.64,6541,73507-Domiciliary Care,THIRD PARTY PAYMENTS,PRIVATE CONTRACTOR,Revenue
Walsall Council,http://opendatacommunities.org/id/metropolitan-district-council/walsall,WC120-70,30/11/2020,ADULT SOCIAL CARE,5 CARE SERVICES LTD,20/11/2020,323.82,6541,73507-Domiciliary Care,THIRD PARTY PAYMENTS,PRIVATE CONTRACTOR,Revenue
Walsall Council,http://opendatacommunities.org/id/metropolitan-district-council/walsall,WC120-71,30/11/2020,ADULT SOCIAL CARE,5 CARE SERVICES LTD,20/11/2020,250.60,6541,73507-Domiciliary Care,THIRD PARTY PAYMENTS,PRIVATE CONTRACTOR,Revenue
Walsall Council,http://opendatacommunities.org/id/metropolitan-district-council/walsall,WC120-72,30/11/2020,ADULT SOCIAL CARE,5 CARE SERVICES LTD,20/11/2020,251.93,6541,73507-Domiciliary Care,THIRD PARTY PAYMENTS,PRIVATE CONTRACTOR,Revenue
Walsall Council,http://opendatacommunities.org/id/metropolitan-district-council/walsall,WC120-73,30/11/2020,ADULT SOCIAL CARE,5 CARE SERVICES LTD,20/11/2020,308.40,6541,73507-Domiciliary Care,THIRD PARTY PAYMENTS,PRIVATE CONTRACTOR,Revenue
Walsall Council,http://opendatacommunities.org/id/metropolitan-district-council/walsall,WC120-74,30/11/2020,ADULT SOCIAL CARE,5 CARE SERVICES LTD,20/11/2020,647.64,6541,73507-Domiciliary Care,THIRD PARTY PAYMENTS,PRIVATE CONTRACTOR,Revenue
Walsall Council,http://opendatacommunities.org/id/metropolitan-district-council/walsall,WC120-75,30/11/2020,ADULT SOCIAL CARE,5 CARE SERVICES LTD,20/11/2020,349.52,6541,73507-Domiciliary Care,THIRD PARTY PAYMENTS,PRIVATE CONTRACTOR,Revenue
Walsall Council,http://opendatacommunities.org/id/metropolitan-district-council/walsall,WC120-76,30/11/2020,ADULT SOCIAL CARE,5 CARE SERVICES LTD,20/11/2020,416.34,6541,73507-Domiciliary Care,THIRD PARTY PAYMENTS,PRIVATE CONTRACTOR,Revenue
Walsall Council,http://opendatacommunities.org/id/metropolitan-district-council/walsall,WC120-77,30/11/2020,ADULT SOCIAL CARE,5 CARE SERVICES LTD,20/11/2020,454.89,6541,73507-Domiciliary Care,THIRD PARTY PAYMENTS,PRIVATE CONTRACTOR,Revenue
Walsall Council,http://opendatacommunities.org/id/metropolitan-district-council/walsall,WC120-78,30/11/2020,ADULT SOCIAL CARE,5 CARE SERVICES LTD,20/11/2020,377.79,6541,73507-Domiciliary Care,THIRD PARTY PAYMENTS,PRIVATE CONTRACTOR,Revenue
Walsall Council,http://opendatacommunities.org/id/metropolitan-district-council/walsall,WC120-79,30/11/2020,ADULT SOCIAL CARE,5 CARE SERVICES LTD,20/11/2020,593.67,6541,73507-Domiciliary Care,THIRD PARTY PAYMENTS,PRIVATE CONTRACTOR,Revenue
Walsall Council,http://opendatacommunities.org/id/metropolitan-district-council/walsall,WC120-80,30/11/2020,ADULT SOCIAL CARE,5 CARE SERVICES LTD,20/11/2020,516.57,6541,73507-Domiciliary Care,THIRD PARTY PAYMENTS,PRIVATE CONTRACTOR,Revenue
Walsall Council,http://opendatacommunities.org/id/metropolitan-district-council/walsall,WC120-81,30/11/2020,ADULT SOCIAL CARE,5 CARE SERVICES LTD,20/11/2020,555.12,6541,73507-Domiciliary Care,THIRD PARTY PAYMENTS,PRIVATE CONTRACTOR,Revenue
Walsall Council,http://opendatacommunities.org/id/metropolitan-district-council/walsall,WC120-82,30/11/2020,ADULT SOCIAL CARE,5 CARE SERVICES LTD,20/11/2020,377.79,6541,73507-Domiciliary Care,THIRD PARTY PAYMENTS,PRIVATE CONTRACTOR,Revenue
Walsall Council,http://opendatacommunities.org/id/metropolitan-district-council/walsall,WC120-83,30/11/2020,ADULT SOCIAL CARE,5 CARE SERVICES LTD,20/11/2020,282.70,6541,73507-Domiciliary Care,THIRD PARTY PAYMENTS,PRIVATE CONTRACTOR,Revenue
Walsall Council,http://opendatacommunities.org/id/metropolitan-district-council/walsall,WC120-84,30/11/2020,ADULT SOCIAL CARE,5 CARE SERVICES LTD,20/11/2020,485.80,6541,73507-Domiciliary Care,THIRD PARTY PAYMENTS,PRIVATE CONTRACTOR,Revenue
Walsall Council,http://opendatacommunities.org/id/metropolitan-district-council/walsall,WC120-85,30/11/2020,ADULT SOCIAL CARE,5 CARE SERVICES LTD,20/11/2020,393.21,6541,73507-Domiciliary Care,THIRD PARTY PAYMENTS,PRIVATE CONTRACTOR,Revenue
Walsall Council,http://opendatacommunities.org/id/metropolitan-district-council/walsall,WC120-86,30/11/2020,ADULT SOCIAL CARE,5 CARE SERVICES LTD,20/11/2020,755.58,6541,73507-Domiciliary Care,THIRD PARTY PAYMENTS,PRIVATE CONTRACTOR,Revenue
Walsall Council,http://opendatacommunities.org/id/metropolitan-district-council/walsall,WC120-87,30/11/2020,ADULT SOCIAL CARE,5 CARE SERVICES LTD,20/11/2020,251.93,6541,73507-Domiciliary Care,THIRD PARTY PAYMENTS,PRIVATE CONTRACTOR,Revenue
Walsall Council,http://opendatacommunities.org/id/metropolitan-district-council/walsall,WC120-88,30/11/2020,ADULT SOCIAL CARE,5 CARE SERVICES LTD,20/11/2020,308.40,6541,73507-Domiciliary Care,THIRD PARTY PAYMENTS,PRIVATE CONTRACTOR,Revenue
Walsall Council,http://opendatacommunities.org/id/metropolitan-district-council/walsall,WC120-89,30/11/2020,ADULT SOCIAL CARE,5 CARE SERVICES LTD,20/11/2020,349.52,6541,73507-Domiciliary Care,THIRD PARTY PAYMENTS,PRIVATE CONTRACTOR,Revenue
Walsall Council,http://opendatacommunities.org/id/metropolitan-district-council/walsall,WC120-90,30/11/2020,ADULT SOCIAL CARE,5 CARE SERVICES LTD,20/11/2020,462.60,6541,73507-Domiciliary Care,THIRD PARTY PAYMENTS,PRIVATE CONTRACTOR,Revenue
Walsall Council,http://opendatacommunities.org/id/metropolitan-district-council/walsall,WC120-91,30/11/2020,ADULT SOCIAL CARE,5 CARE SERVICES LTD,20/11/2020,308.40,6541,73507-Domiciliary Care,THIRD PARTY PAYMENTS,PRIVATE CONTRACTOR,Revenue
Walsall Council,http://opendatacommunities.org/id/metropolitan-district-council/walsall,WC120-92,30/11/2020,ADULT SOCIAL CARE,5 CARE SERVICES LTD,20/11/2020,431.76,6541,73507-Domiciliary Care,THIRD PARTY PAYMENTS,PRIVATE CONTRACTOR,Revenue
Walsall Council,http://opendatacommunities.org/id/metropolitan-district-council/walsall,WC120-93,30/11/2020,ADULT SOCIAL CARE,5 CARE SERVICES LTD,20/11/2020,647.64,6541,73507-Domiciliary Care,THIRD PARTY PAYMENTS,PRIVATE CONTRACTOR,Revenue
Walsall Council,http://opendatacommunities.org/id/metropolitan-district-council/walsall,WC120-94,30/11/2020,ADULT SOCIAL CARE,5 CARE SERVICES LTD,20/11/2020,323.82,6541,73507-Domiciliary Care,THIRD PARTY PAYMENTS,PRIVATE CONTRACTOR,Revenue
Walsall Council,http://opendatacommunities.org/id/metropolitan-district-council/walsall,WC120-95,30/11/2020,ADULT SOCIAL CARE,5 CARE SERVICES LTD,20/11/2020,341.81,6541,73507-Domiciliary Care,THIRD PARTY PAYMENTS,PRIVATE CONTRACTOR,Revenue
Walsall Council,http://opendatacommunities.org/id/metropolitan-district-council/walsall,WC120-96,30/11/2020,ADULT SOCIAL CARE,5 CARE SERVICES LTD,20/11/2020,539.70,6541,73507-Domiciliary Care,THIRD PARTY PAYMENTS,PRIVATE CONTRACTOR,Revenue
Walsall Council,http://opendatacommunities.org/id/metropolitan-district-council/walsall,WC120-97,30/11/2020,ADULT SOCIAL CARE,5 CARE SERVICES LTD,20/11/2020,485.73,6541,73507-Domiciliary Care,THIRD PARTY PAYMENTS,PRIVATE CONTRACTOR,Revenue
Walsall Council,http://opendatacommunities.org/id/metropolitan-district-council/walsall,WC120-98,30/11/2020,ADULT SOCIAL CARE,5 CARE SERVICES LTD,20/11/2020,250.60,6541,73507-Domiciliary Care,THIRD PARTY PAYMENTS,PRIVATE CONTRACTOR,Revenue
Walsall Council,http://opendatacommunities.org/id/metropolitan-district-council/walsall,WC120-99,30/11/2020,ADULT SOCIAL CARE,5 CARE SERVICES LTD,18/11/2020,"-3,717.17",6541,73507-Domiciliary Care,THIRD PARTY PAYMENTS,PRIVATE CONTRACTOR,Revenue
Walsall Council,http://opendatacommunities.org/id/metropolitan-district-council/walsall,WC120-100,30/11/2020,ADULT SOCIAL CARE,5 CARE SERVICES LTD,25/11/2020,"1,727.11",6550,63000-Professional Fees & Services,SUPPLIES & SERVICES,SERVICES,Revenue
Walsall Council,http://opendatacommunities.org/id/metropolitan-district-council/walsall,WC120-101,30/11/2020,ADULT SOCIAL CARE,5 CARE SERVICES LTD,02/11/2020,555.12,6554,73025-Professional Services-Priv Contractor & Other Agencies,THIRD PARTY PAYMENTS,PRIVATE CONTRACTOR,Revenue
Walsall Council,http://opendatacommunities.org/id/metropolitan-district-council/walsall,WC120-102,30/11/2020,ADULT SOCIAL CARE,5 CARE SERVICES LTD,02/11/2020,"1,595.98",6554,73025-Professional Services-Priv Contractor & Other Agencies,THIRD PARTY PAYMENTS,PRIVATE CONTRACTOR,Revenue
Walsall Council,http://opendatacommunities.org/id/metropolitan-district-council/walsall,WC120-103,30/11/2020,ADULT SOCIAL CARE,5 CARE SERVICES LTD,02/11/2020,539.84,6554,73025-Professional Services-Priv Contractor & Other Agencies,THIRD PARTY PAYMENTS,PRIVATE CONTRACTOR,Revenue
Walsall Council,http://opendatacommunities.org/id/metropolitan-district-council/walsall,WC120-104,30/11/2020,ADULT SOCIAL CARE,5 CARE SERVICES LTD,09/11/2020,"2,662.56",6554,73025-Professional Services-Priv Contractor & Other Agencies,THIRD PARTY PAYMENTS,PRIVATE CONTRACTOR,Revenue
Walsall Council,http://opendatacommunities.org/id/metropolitan-district-council/walsall,WC120-105,30/11/2020,ADULT SOCIAL CARE,5 CARE SERVICES LTD,18/11/2020,"2,590.56",6541,73507-Domiciliary Care,THIRD PARTY PAYMENTS,PRIVATE CONTRACTOR,Revenue
Walsall Council,http://opendatacommunities.org/id/metropolitan-district-council/walsall,WC120-106,30/11/2020,ADULT SOCIAL CARE,5 CARE SERVICES LTD,18/11/2020,"2,220.48",6541,73507-Domiciliary Care,THIRD PARTY PAYMENTS,PRIVATE CONTRACTOR,Revenue
Walsall Council,http://opendatacommunities.org/id/metropolitan-district-council/walsall,WC120-107,30/11/2020,ADULT SOCIAL CARE,5 CARE SERVICES LTD,09/11/2020,547.48,6554,73025-Professional Services-Priv Contractor & Other Agencies,THIRD PARTY PAYMENTS,PRIVATE CONTRACTOR,Revenue
Walsall Council,http://opendatacommunities.org/id/metropolitan-district-council/walsall,WC120-108,30/11/2020,ADULT SOCIAL CARE,5 CARE SERVICES LTD,16/11/2020,539.84,6554,73025-Professional Services-Priv Contractor & Other Agencies,THIRD PARTY PAYMENTS,PRIVATE CONTRACTOR,Revenue
Walsall Council,http://opendatacommunities.org/id/metropolitan-district-council/walsall,WC120-109,30/11/2020,ADULT SOCIAL CARE,A & M ELLIS,30/11/2020,"2,976.00",6623,62008-Outwork Print & Design,SUPPLIES & SERVICES,PRINTING STATIONERY & GENERAL OFFICE,Revenue
Walsall Council,http://opendatacommunities.org/id/metropolitan-district-council/walsall,WC120-110,30/11/2020,ECONOMY & ENVIRONMENT,A ASHTON,19/11/2020,300.00,6410,60500-Materials,SUPPLIES & SERVICES,EQUIPMENT FURNITURE & MATERIALS,Revenue
Walsall Council,http://opendatacommunities.org/id/metropolitan-district-council/walsall,WC120-111,30/11/2020,ECONOMY & ENVIRONMENT,A D T FIRE AND SECURITY PLC,23/11/2020,527.19,6410,60500-Materials,SUPPLIES & SERVICES,EQUIPMENT FURNITURE & MATERIALS,Revenue
Walsall Council,http://opendatacommunities.org/id/metropolitan-district-council/walsall,WC120-112,30/11/2020,ECONOMY & ENVIRONMENT,A D T FIRE AND SECURITY PLC,25/11/2020,-694.19,6410,60500-Materials,SUPPLIES & SERVICES,EQUIPMENT FURNITURE & MATERIALS,Revenue
Walsall Council,http://opendatacommunities.org/id/metropolitan-district-council/walsall,WC120-113,30/11/2020,ECONOMY & ENVIRONMENT,A D T FIRE AND SECURITY PLC,25/11/2020,-649.19,6410,60500-Materials,SUPPLIES & SERVICES,EQUIPMENT FURNITURE & MATERIALS,Revenue
Walsall Council,http://opendatacommunities.org/id/metropolitan-district-council/walsall,WC120-114,30/11/2020,ECONOMY & ENVIRONMENT,A D T FIRE AND SECURITY PLC,25/11/2020,649.19,6410,60500-Materials,SUPPLIES & SERVICES,EQUIPMENT FURNITURE & MATERIALS,Revenue
Walsall Council,http://opendatacommunities.org/id/metropolitan-district-council/walsall,WC120-115,30/11/2020,ECONOMY & ENVIRONMENT,A D T FIRE AND SECURITY PLC,25/11/2020,694.19,6410,60500-Materials,SUPPLIES & SERVICES,EQUIPMENT FURNITURE & MATERIALS,Revenue
Walsall Council,http://opendatacommunities.org/id/metropolitan-district-council/walsall,WC120-116,30/11/2020,RESOURCES AND TRANSFORMATION,A D T FIRE AND SECURITY PLC,09/11/2020,"1,223.09",6310,60008-Repair & Maintenance of Furniture & Equipment,SUPPLIES & SERVICES,EQUIPMENT FURNITURE & MATERIALS,Revenue
Walsall Council,http://opendatacommunities.org/id/metropolitan-district-council/walsall,WC120-117,30/11/2020,ECONOMY & ENVIRONMENT,A F BLAKEMORE & SON LTD,20/11/2020,289.70,6413,61000-Food & Drink Supplies,SUPPLIES & SERVICES,CATERING,Revenue
Walsall Council,http://opendatacommunities.org/id/metropolitan-district-council/walsall,WC120-118,30/11/2020,ECONOMY & ENVIRONMENT,AAINA COMMUNITY HUB,09/11/2020,"23,092.00",6430,63000-Professional Fees & Services,SUPPLIES & SERVICES,SERVICES,Revenue
Walsall Council,http://opendatacommunities.org/id/metropolitan-district-council/walsall,WC120-119,30/11/2020,ECONOMY & ENVIRONMENT,AAINA COMMUNITY HUB,18/11/2020,934.85,6430,66500-Grants to Other Orgs,SUPPLIES & SERVICES,GRANTS (EXP) & SUBSCRIPTIONS,Revenue
Walsall Council,http://opendatacommunities.org/id/metropolitan-district-council/walsall,WC120-120,30/11/2020,ADULT SOCIAL CARE,ABBEY COURT NURSING & RESIDEN,20/11/2020,"2,696.00",6541,73503-Nursing EMI,THIRD PARTY PAYMENTS,PRIVATE CONTRACTOR,Revenue
Walsall Council,http://opendatacommunities.org/id/metropolitan-district-council/walsall,WC120-121,30/11/2020,ADULT SOCIAL CARE,ABBEY COURT NURSING & RESIDEN,20/11/2020,"2,044.00",6541,73500-Residential,THIRD PARTY PAYMENTS,PRIVATE CONTRACTOR,Revenue
Walsall Council,http://opendatacommunities.org/id/metropolitan-district-council/walsall,WC120-122,30/11/2020,ADULT SOCIAL CARE,ABBEY COURT NURSING & RESIDEN,20/11/2020,"2,308.00",6541,73501-Residential EMI,THIRD PARTY PAYMENTS,PRIVATE CONTRACTOR,Revenue
Walsall Council,http://opendatacommunities.org/id/metropolitan-district-council/walsall,WC120-123,30/11/2020,ADULT SOCIAL CARE,ABBEY COURT NURSING & RESIDEN,20/11/2020,"2,548.00",6541,73501-Residential EMI,THIRD PARTY PAYMENTS,PRIVATE CONTRACTOR,Revenue
Walsall Council,http://opendatacommunities.org/id/metropolitan-district-council/walsall,WC120-124,30/11/2020,ADULT SOCIAL CARE,ABBEY COURT NURSING & RESIDEN,20/11/2020,"2,308.00",6541,73501-Residential EMI,THIRD PARTY PAYMENTS,PRIVATE CONTRACTOR,Revenue
Walsall Council,http://opendatacommunities.org/id/metropolitan-district-council/walsall,WC120-125,30/11/2020,ADULT SOCIAL CARE,ABBEY COURT NURSING & RESIDEN,20/11/2020,"2,308.00",6541,73501-Residential EMI,THIRD PARTY PAYMENTS,PRIVATE CONTRACTOR,Revenue
Walsall Council,http://opendatacommunities.org/id/metropolitan-district-council/walsall,WC120-126,30/11/2020,ADULT SOCIAL CARE,ABBEY HEALTHCARE HOMES LTD,20/11/2020,"2,372.64",6541,73500-Residential,THIRD PARTY PAYMENTS,PRIVATE CONTRACTOR,Revenue
Walsall Council,http://opendatacommunities.org/id/metropolitan-district-council/walsall,WC120-127,30/11/2020,ADULT SOCIAL CARE,ABBEY HEALTHCARE HOMES LTD,20/11/2020,"3,102.72",6541,73500-Residential,THIRD PARTY PAYMENTS,PRIVATE CONTRACTOR,Revenue
Walsall Council,http://opendatacommunities.org/id/metropolitan-district-council/walsall,WC120-128,30/11/2020,ADULT SOCIAL CARE,ABBEY HEALTHCARE HOMES LTD,20/11/2020,"3,516.40",6541,73500-Residential,THIRD PARTY PAYMENTS,PRIVATE CONTRACTOR,Revenue
Walsall Council,http://opendatacommunities.org/id/metropolitan-district-council/walsall,WC120-129,30/11/2020,ADULT SOCIAL CARE,ABBEY HEALTHCARE HOMES LTD,20/11/2020,"3,102.72",6541,73500-Residential,THIRD PARTY PAYMENTS,PRIVATE CONTRACTOR,Revenue
Walsall Council,http://opendatacommunities.org/id/metropolitan-district-council/walsall,WC120-130,30/11/2020,CHILDRENS,ABC DAY NURSERY (WILLENHALL) LIMITED,27/11/2020,"4,189.50",1184,66505-Other-Grants to Other Orgs,SUPPLIES & SERVICES,GRANTS (EXP) & SUBSCRIPTIONS,Revenue
Walsall Council,http://opendatacommunities.org/id/metropolitan-district-council/walsall,WC120-131,30/11/2020,CHILDRENS,ABC DAY NURSERY (WILLENHALL) LIMITED,27/11/2020,"3,674.69",1184,66505-Other-Grants to Other Orgs,SUPPLIES & SERVICES,GRANTS (EXP) & SUBSCRIPTIONS,Revenue
Walsall Council,http://opendatacommunities.org/id/metropolitan-district-council/walsall,WC120-132,30/11/2020,ECONOMY & ENVIRONMENT,ABLE INVESTIGATIONS & ENFORCEMENTS LTD,11/11/2020,"1,500.00",6440,73025-Professional Services-Priv Contractor & Other Agencies,THIRD PARTY PAYMENTS,PRIVATE CONTRACTOR,Revenue
Walsall Council,http://opendatacommunities.org/id/metropolitan-district-council/walsall,WC120-133,30/11/2020,ECONOMY & ENVIRONMENT,ABLE INVESTIGATIONS & ENFORCEMENTS LTD,11/11/2020,690.00,6440,73025-Professional Services-Priv Contractor & Other Agencies,THIRD PARTY PAYMENTS,PRIVATE CONTRACTOR,Revenue
Walsall Council,http://opendatacommunities.org/id/metropolitan-district-council/walsall,WC120-134,30/11/2020,ECONOMY & ENVIRONMENT,ABLE INVESTIGATIONS & ENFORCEMENTS LTD,11/11/2020,"1,230.00",6440,73025-Professional Services-Priv Contractor & Other Agencies,THIRD PARTY PAYMENTS,PRIVATE CONTRACTOR,Revenue
Walsall Council,http://opendatacommunities.org/id/metropolitan-district-council/walsall,WC120-135,30/11/2020,ECONOMY & ENVIRONMENT,ABLE INVESTIGATIONS & ENFORCEMENTS LTD,11/11/2020,"2,310.00",6440,73025-Professional Services-Priv Contractor & Other Agencies,THIRD PARTY PAYMENTS,PRIVATE CONTRACTOR,Revenue
Walsall Council,http://opendatacommunities.org/id/metropolitan-district-council/walsall,WC120-136,30/11/2020,ECONOMY & ENVIRONMENT,ABLE INVESTIGATIONS & ENFORCEMENTS LTD,11/11/2020,870.00,6440,73025-Professional Services-Priv Contractor & Other Agencies,THIRD PARTY PAYMENTS,PRIVATE CONTRACTOR,Revenue
Walsall Council,http://opendatacommunities.org/id/metropolitan-district-council/walsall,WC120-137,30/11/2020,ECONOMY & ENVIRONMENT,ABLE INVESTIGATIONS & ENFORCEMENTS LTD,11/11/2020,"1,080.00",6440,73025-Professional Services-Priv Contractor & Other Agencies,THIRD PARTY PAYMENTS,PRIVATE CONTRACTOR,Revenue
Walsall Council,http://opendatacommunities.org/id/metropolitan-district-council/walsall,WC120-138,30/11/2020,ECONOMY & ENVIRONMENT,ABLE INVESTIGATIONS & ENFORCEMENTS LTD,11/11/2020,"1,170.00",6440,73025-Professional Services-Priv Contractor & Other Agencies,THIRD PARTY PAYMENTS,PRIVATE CONTRACTOR,Revenue
Walsall Council,http://opendatacommunities.org/id/metropolitan-district-council/walsall,WC120-139,30/11/2020,ECONOMY & ENVIRONMENT,ABLE INVESTIGATIONS & ENFORCEMENTS LTD,11/11/2020,"1,512.00",6440,73025-Professional Services-Priv Contractor & Other Agencies,THIRD PARTY PAYMENTS,PRIVATE CONTRACTOR,Revenue
Walsall Council,http://opendatacommunities.org/id/metropolitan-district-council/walsall,WC120-140,30/11/2020,ECONOMY & ENVIRONMENT,ABLE INVESTIGATIONS & ENFORCEMENTS LTD,11/11/2020,"-1,225.00",6440,73025-Professional Services-Priv Contractor & Other Agencies,THIRD PARTY PAYMENTS,PRIVATE CONTRACTOR,Revenue
Walsall Council,http://opendatacommunities.org/id/metropolitan-district-council/walsall,WC120-141,30/11/2020,ECONOMY & ENVIRONMENT,ABLE INVESTIGATIONS & ENFORCEMENTS LTD,11/11/2020,"1,021.50",6440,73025-Professional Services-Priv Contractor & Other Agencies,THIRD PARTY PAYMENTS,PRIVATE CONTRACTOR,Revenue
Walsall Council,http://opendatacommunities.org/id/metropolitan-district-council/walsall,WC120-142,30/11/2020,ECONOMY & ENVIRONMENT,ABLE INVESTIGATIONS & ENFORCEMENTS LTD,11/11/2020,"1,225.00",6440,73025-Professional Services-Priv Contractor & Other Agencies,THIRD PARTY PAYMENTS,PRIVATE CONTRACTOR,Revenue
Walsall Council,http://opendatacommunities.org/id/metropolitan-district-council/walsall,WC120-143,30/11/2020,ECONOMY & ENVIRONMENT,ABLE INVESTIGATIONS & ENFORCEMENTS LTD,18/11/2020,510.00,6440,73025-Professional Services-Priv Contractor & Other Agencies,THIRD PARTY PAYMENTS,PRIVATE CONTRACTOR,Revenue
Walsall Council,http://opendatacommunities.org/id/metropolitan-district-council/walsall,WC120-144,30/11/2020,CHILDRENS,ABLEWELL CARS,13/11/2020,"1,664.00",6241,52000-Hire of Vehicle with Driver,TRANSPORT,DIRECT TRANSPORT COSTS,Revenue
Walsall Council,http://opendatacommunities.org/id/metropolitan-district-council/walsall,WC120-145,30/11/2020,CHILDRENS,ABLEWELL CARS,13/11/2020,"1,649.88",6241,52000-Hire of Vehicle with Driver,TRANSPORT,DIRECT TRANSPORT COSTS,Revenue
Walsall Council,http://opendatacommunities.org/id/metropolitan-district-council/walsall,WC120-146,30/11/2020,CHILDRENS,ABLEWELL CARS,13/11/2020,984.00,6241,52000-Hire of Vehicle with Driver,TRANSPORT,DIRECT TRANSPORT COSTS,Revenue
Walsall Council,http://opendatacommunities.org/id/metropolitan-district-council/walsall,WC120-147,30/11/2020,CHILDRENS,ABLEWELL CARS,13/11/2020,"1,140.00",6241,52000-Hire of Vehicle with Driver,TRANSPORT,DIRECT TRANSPORT COSTS,Revenue
Walsall Council,http://opendatacommunities.org/id/metropolitan-district-council/walsall,WC120-148,30/11/2020,CHILDRENS,ABLEWELL CARS,13/11/2020,950.40,6241,52000-Hire of Vehicle with Driver,TRANSPORT,DIRECT TRANSPORT COSTS,Revenue
Walsall Council,http://opendatacommunities.org/id/metropolitan-district-council/walsall,WC120-149,30/11/2020,CHILDRENS,ABLEWELL CARS,13/11/2020,"2,190.00",6241,52000-Hire of Vehicle with Driver,TRANSPORT,DIRECT TRANSPORT COSTS,Revenue
Walsall Council,http://opendatacommunities.org/id/metropolitan-district-council/walsall,WC120-150,30/11/2020,CHILDRENS,ABLEWELL CARS,13/11/2020,463.26,6241,52000-Hire of Vehicle with Driver,TRANSPORT,DIRECT TRANSPORT COSTS,Revenue
Walsall Council,http://opendatacommunities.org/id/metropolitan-district-council/walsall,WC120-151,30/11/2020,CHILDRENS,ABS TAXIS (ALDRIDGE),13/11/2020,"1,300.36",6241,52000-Hire of Vehicle with Driver,TRANSPORT,DIRECT TRANSPORT COSTS,Revenue
Walsall Council,http://opendatacommunities.org/id/metropolitan-district-council/walsall,WC120-152,30/11/2020,CHILDRENS,ABS TAXIS (ALDRIDGE),13/11/2020,"2,105.80",6241,52000-Hire of Vehicle with Driver,TRANSPORT,DIRECT TRANSPORT COSTS,Revenue
Walsall Council,http://opendatacommunities.org/id/metropolitan-district-council/walsall,WC120-153,30/11/2020,CHILDRENS,ABS TAXIS (ALDRIDGE),13/11/2020,980.00,6241,52000-Hire of Vehicle with Driver,TRANSPORT,DIRECT TRANSPORT COSTS,Revenue
Walsall Council,http://opendatacommunities.org/id/metropolitan-district-council/walsall,WC120-154,30/11/2020,CHILDRENS,ABS TAXIS (ALDRIDGE),13/11/2020,"1,975.05",6241,52000-Hire of Vehicle with Driver,TRANSPORT,DIRECT TRANSPORT COSTS,Revenue
Walsall Council,http://opendatacommunities.org/id/metropolitan-district-council/walsall,WC120-155,30/11/2020,CHILDRENS,ABU BAKR NURSERY,27/11/2020,"18,042.78",1184,66505-Other-Grants to Other Orgs,SUPPLIES & SERVICES,GRANTS (EXP) & SUBSCRIPTIONS,Revenue
Walsall Council,http://opendatacommunities.org/id/metropolitan-district-council/walsall,WC120-156,30/11/2020,CHILDRENS,ABU BAKR NURSERY,27/11/2020,"13,157.10",1184,66505-Other-Grants to Other Orgs,SUPPLIES & SERVICES,GRANTS (EXP) & SUBSCRIPTIONS,Revenue
Walsall Council,http://opendatacommunities.org/id/metropolitan-district-council/walsall,WC120-157,30/11/2020,CHILDRENS,AC EDUCATION,17/11/2020,"1,100.00",6241,63000-Professional Fees & Services,SUPPLIES & SERVICES,SERVICES,Revenue
Walsall Council,http://opendatacommunities.org/id/metropolitan-district-council/walsall,WC120-158,30/11/2020,CHILDRENS,ACCALIA CARE SERVICES LTD,30/11/2020,"19,980.00",6223,74036-External Residential Care-Oth Agency Provision,THIRD PARTY PAYMENTS,PRIVATE CONTRACTOR,Revenue
Walsall Council,http://opendatacommunities.org/id/metropolitan-district-council/walsall,WC120-159,30/11/2020,CHILDRENS,ACCALIA CARE SERVICES LTD,30/11/2020,"19,980.00",6223,74036-External Residential Care-Oth Agency Provision,THIRD PARTY PAYMENTS,PRIVATE CONTRACTOR,Revenue
Walsall Council,http://opendatacommunities.org/id/metropolitan-district-council/walsall,WC120-160,30/11/2020,ADULT SOCIAL CARE,ACCOMPLISH GROUP LTD,20/11/2020,"7,861.04",6541,73500-Residential,THIRD PARTY PAYMENTS,PRIVATE CONTRACTOR,Revenue
Walsall Council,http://opendatacommunities.org/id/metropolitan-district-council/walsall,WC120-161,30/11/2020,ADULT SOCIAL CARE,ACCORD HOUSING ASSOCIATION LIMITED - HOBS MEADOW,20/11/2020,"4,659.64",6541,73500-Residential,THIRD PARTY PAYMENTS,PRIVATE CONTRACTOR,Revenue
Walsall Council,http://opendatacommunities.org/id/metropolitan-district-council/walsall,WC120-162,30/11/2020,ADULT SOCIAL CARE,ACCORD HOUSING ASSOCIATION LIMITED - HOBS MEADOW,20/11/2020,"4,659.64",6541,73500-Residential,THIRD PARTY PAYMENTS,PRIVATE CONTRACTOR,Revenue
Walsall Council,http://opendatacommunities.org/id/metropolitan-district-council/walsall,WC120-163,30/11/2020,ADULT SOCIAL CARE,ACCORD HOUSING ASSOCIATION LIMITED - HOBS MEADOW,20/11/2020,"4,659.64",6541,73500-Residential,THIRD PARTY PAYMENTS,PRIVATE CONTRACTOR,Revenue
Walsall Council,http://opendatacommunities.org/id/metropolitan-district-council/walsall,WC120-164,30/11/2020,ADULT SOCIAL CARE,ACCORD HOUSING ASSOCIATION LIMITED - HOBS MEADOW,20/11/2020,"4,659.64",6541,73500-Residential,THIRD PARTY PAYMENTS,PRIVATE CONTRACTOR,Revenue
Walsall Council,http://opendatacommunities.org/id/metropolitan-district-council/walsall,WC120-165,30/11/2020,ADULT SOCIAL CARE,ACCORD HOUSING ASSOCIATION LTD#135,16/11/2020,"1,336.00",6550,73025-Professional Services-Priv Contractor & Other Agencies,THIRD PARTY PAYMENTS,PRIVATE CONTRACTOR,Revenue
Walsall Council,http://opendatacommunities.org/id/metropolitan-district-council/walsall,WC120-166,30/11/2020,ADULT SOCIAL CARE,ACCORD HOUSING ASSOCIATION LTD#135,20/11/2020,"6,503.40",6541,73500-Residential,THIRD PARTY PAYMENTS,PRIVATE CONTRACTOR,Revenue
Walsall Council,http://opendatacommunities.org/id/metropolitan-district-council/walsall,WC120-167,30/11/2020,ADULT SOCIAL CARE,ACCORD HOUSING ASSOCIATION LTD#135,20/11/2020,"5,807.56",6541,73500-Residential,THIRD PARTY PAYMENTS,PRIVATE CONTRACTOR,Revenue
Walsall Council,http://opendatacommunities.org/id/metropolitan-district-council/walsall,WC120-168,30/11/2020,ADULT SOCIAL CARE,ACCORD HOUSING ASSOCIATION LTD#135,20/11/2020,"6,503.40",6541,73500-Residential,THIRD PARTY PAYMENTS,PRIVATE CONTRACTOR,Revenue
Walsall Council,http://opendatacommunities.org/id/metropolitan-district-council/walsall,WC120-169,30/11/2020,CHILDRENS,ACCORD HOUSING ASSOCIATION LTD#135,16/11/2020,456.00,6314,43000-Rents,PREMISES,RENTS,Revenue
Walsall Council,http://opendatacommunities.org/id/metropolitan-district-council/walsall,WC120-170,30/11/2020,ADULT SOCIAL CARE,ACCORD HOUSING ASSOCIATION LTD#135,18/11/2020,"1,093.89",6541,73507-Domiciliary Care,THIRD PARTY PAYMENTS,PRIVATE CONTRACTOR,Revenue
Walsall Council,http://opendatacommunities.org/id/metropolitan-district-council/walsall,WC120-171,30/11/2020,ADULT SOCIAL CARE,ACCORD HOUSING ASSOCIATION LTD#135,18/11/2020,"1,799.28",6541,73507-Domiciliary Care,THIRD PARTY PAYMENTS,PRIVATE CONTRACTOR,Revenue
Walsall Council,http://opendatacommunities.org/id/metropolitan-district-council/walsall,WC120-172,30/11/2020,ADULT SOCIAL CARE,ACCORD HOUSING ASSOCIATION LTD#135,03/11/2020,"2,374.96",6541,73507-Domiciliary Care,THIRD PARTY PAYMENTS,PRIVATE CONTRACTOR,Revenue
Walsall Council,http://opendatacommunities.org/id/metropolitan-district-council/walsall,WC120-173,30/11/2020,ADULT SOCIAL CARE,ACCORD HOUSING ASSOCIATION LTD#135,18/11/2020,"3,310.72",6541,73507-Domiciliary Care,THIRD PARTY PAYMENTS,PRIVATE CONTRACTOR,Revenue
Walsall Council,http://opendatacommunities.org/id/metropolitan-district-council/walsall,WC120-174,30/11/2020,ADULT SOCIAL CARE,ACCORD HOUSING ASSOCIATION LTD#135,03/11/2020,"2,374.96",6541,73507-Domiciliary Care,THIRD PARTY PAYMENTS,PRIVATE CONTRACTOR,Revenue
Walsall Council,http://opendatacommunities.org/id/metropolitan-district-council/walsall,WC120-175,30/11/2020,ADULT SOCIAL CARE,ACCORD HOUSING ASSOCIATION LTD#135,18/11/2020,"3,310.72",6541,73507-Domiciliary Care,THIRD PARTY PAYMENTS,PRIVATE CONTRACTOR,Revenue
Walsall Council,http://opendatacommunities.org/id/metropolitan-district-council/walsall,WC120-176,30/11/2020,ADULT SOCIAL CARE,ACCORD HOUSING ASSOCIATION LTD#135,03/11/2020,431.76,6541,73507-Domiciliary Care,THIRD PARTY PAYMENTS,PRIVATE CONTRACTOR,Revenue
Walsall Council,http://opendatacommunities.org/id/metropolitan-district-council/walsall,WC120-177,30/11/2020,ADULT SOCIAL CARE,ACCORD HOUSING ASSOCIATION LTD#135,03/11/2020,359.80,6541,73507-Domiciliary Care,THIRD PARTY PAYMENTS,PRIVATE CONTRACTOR,Revenue
Walsall Council,http://opendatacommunities.org/id/metropolitan-district-council/walsall,WC120-178,30/11/2020,ADULT SOCIAL CARE,ACCORD HOUSING ASSOCIATION LTD#135,03/11/2020,709.32,6541,73507-Domiciliary Care,THIRD PARTY PAYMENTS,PRIVATE CONTRACTOR,Revenue
Walsall Council,http://opendatacommunities.org/id/metropolitan-district-council/walsall,WC120-179,30/11/2020,ADULT SOCIAL CARE,ACCORD HOUSING ASSOCIATION LTD#135,03/11/2020,809.66,6541,73507-Domiciliary Care,THIRD PARTY PAYMENTS,PRIVATE CONTRACTOR,Revenue
Walsall Council,http://opendatacommunities.org/id/metropolitan-district-council/walsall,WC120-180,30/11/2020,ADULT SOCIAL CARE,ACCORD HOUSING ASSOCIATION LTD#135,03/11/2020,868.80,6541,73507-Domiciliary Care,THIRD PARTY PAYMENTS,PRIVATE CONTRACTOR,Revenue
Walsall Council,http://opendatacommunities.org/id/metropolitan-district-council/walsall,WC120-181,30/11/2020,ADULT SOCIAL CARE,ACCORD HOUSING ASSOCIATION LTD#135,03/11/2020,334.12,6541,73507-Domiciliary Care,THIRD PARTY PAYMENTS,PRIVATE CONTRACTOR,Revenue
Walsall Council,http://opendatacommunities.org/id/metropolitan-district-council/walsall,WC120-182,30/11/2020,ADULT SOCIAL CARE,ACCORD HOUSING ASSOCIATION LTD#135,03/11/2020,909.92,6541,73507-Domiciliary Care,THIRD PARTY PAYMENTS,PRIVATE CONTRACTOR,Revenue
Walsall Council,http://opendatacommunities.org/id/metropolitan-district-council/walsall,WC120-183,30/11/2020,ADULT SOCIAL CARE,ACCORD HOUSING ASSOCIATION LTD#135,03/11/2020,657.98,6541,73507-Domiciliary Care,THIRD PARTY PAYMENTS,PRIVATE CONTRACTOR,Revenue
Walsall Council,http://opendatacommunities.org/id/metropolitan-district-council/walsall,WC120-184,30/11/2020,ADULT SOCIAL CARE,ACCORD HOUSING ASSOCIATION LTD#135,03/11/2020,"1,069.12",6541,73507-Domiciliary Care,THIRD PARTY PAYMENTS,PRIVATE CONTRACTOR,Revenue
Walsall Council,http://opendatacommunities.org/id/metropolitan-district-council/walsall,WC120-185,30/11/2020,ADULT SOCIAL CARE,ACCORD HOUSING ASSOCIATION LTD#135,03/11/2020,"1,079.40",6541,73507-Domiciliary Care,THIRD PARTY PAYMENTS,PRIVATE CONTRACTOR,Revenue
Walsall Council,http://opendatacommunities.org/id/metropolitan-district-council/walsall,WC120-186,30/11/2020,ADULT SOCIAL CARE,ACCORD HOUSING ASSOCIATION LTD#135,03/11/2020,349.52,6541,73507-Domiciliary Care,THIRD PARTY PAYMENTS,PRIVATE CONTRACTOR,Revenue
Walsall Council,http://opendatacommunities.org/id/metropolitan-district-council/walsall,WC120-187,30/11/2020,ADULT SOCIAL CARE,ACCORD HOUSING ASSOCIATION LTD#135,03/11/2020,287.84,6541,73507-Domiciliary Care,THIRD PARTY PAYMENTS,PRIVATE CONTRACTOR,Revenue
Walsall Council,http://opendatacommunities.org/id/metropolitan-district-council/walsall,WC120-188,30/11/2020,ADULT SOCIAL CARE,ACCORD HOUSING ASSOCIATION LTD#135,03/11/2020,"1,619.32",6541,73507-Domiciliary Care,THIRD PARTY PAYMENTS,PRIVATE CONTRACTOR,Revenue
Walsall Council,http://opendatacommunities.org/id/metropolitan-district-council/walsall,WC120-189,30/11/2020,ADULT SOCIAL CARE,ACCORD HOUSING ASSOCIATION LTD#135,03/11/2020,"1,987.91",6541,73507-Domiciliary Care,THIRD PARTY PAYMENTS,PRIVATE CONTRACTOR,Revenue
Walsall Council,http://opendatacommunities.org/id/metropolitan-district-council/walsall,WC120-190,30/11/2020,ADULT SOCIAL CARE,ACCORD HOUSING ASSOCIATION LTD#135,03/11/2020,380.36,6541,73508-Community Supported Living/Supported Accommodation,THIRD PARTY PAYMENTS,PRIVATE CONTRACTOR,Revenue
Walsall Council,http://opendatacommunities.org/id/metropolitan-district-council/walsall,WC120-191,30/11/2020,ADULT SOCIAL CARE,ACCORD HOUSING ASSOCIATION LTD#135,03/11/2020,"1,465.04",6541,73507-Domiciliary Care,THIRD PARTY PAYMENTS,PRIVATE CONTRACTOR,Revenue
Walsall Council,http://opendatacommunities.org/id/metropolitan-district-council/walsall,WC120-192,30/11/2020,ADULT SOCIAL CARE,ACCORD HOUSING ASSOCIATION LTD#135,03/11/2020,992.16,6541,73507-Domiciliary Care,THIRD PARTY PAYMENTS,PRIVATE CONTRACTOR,Revenue
Walsall Council,http://opendatacommunities.org/id/metropolitan-district-council/walsall,WC120-193,30/11/2020,ADULT SOCIAL CARE,ACCORD HOUSING ASSOCIATION LTD#135,03/11/2020,832.80,6541,73507-Domiciliary Care,THIRD PARTY PAYMENTS,PRIVATE CONTRACTOR,Revenue
Walsall Council,http://opendatacommunities.org/id/metropolitan-district-council/walsall,WC120-194,30/11/2020,ADULT SOCIAL CARE,ACCORD HOUSING ASSOCIATION LTD#135,03/11/2020,"1,439.20",6541,73507-Domiciliary Care,THIRD PARTY PAYMENTS,PRIVATE CONTRACTOR,Revenue
Walsall Council,http://opendatacommunities.org/id/metropolitan-district-council/walsall,WC120-195,30/11/2020,ADULT SOCIAL CARE,ACCORD HOUSING ASSOCIATION LTD#135,18/11/2020,612.18,6541,73507-Domiciliary Care,THIRD PARTY PAYMENTS,PRIVATE CONTRACTOR,Revenue
Walsall Council,http://opendatacommunities.org/id/metropolitan-district-council/walsall,WC120-196,30/11/2020,ADULT SOCIAL CARE,ACCORD HOUSING ASSOCIATION LTD#135,18/11/2020,562.00,6541,73508-Community Supported Living/Supported Accommodation,THIRD PARTY PAYMENTS,PRIVATE CONTRACTOR,Revenue
Walsall Council,http://opendatacommunities.org/id/metropolitan-district-council/walsall,WC120-197,30/11/2020,ADULT SOCIAL CARE,ACCORD HOUSING ASSOCIATION LTD#135,18/11/2020,562.00,6541,73508-Community Supported Living/Supported Accommodation,THIRD PARTY PAYMENTS,PRIVATE CONTRACTOR,Revenue
Walsall Council,http://opendatacommunities.org/id/metropolitan-district-council/walsall,WC120-198,30/11/2020,ADULT SOCIAL CARE,ACCORD HOUSING ASSOCIATION LTD#135,18/11/2020,429.90,6541,73508-Community Supported Living/Supported Accommodation,THIRD PARTY PAYMENTS,PRIVATE CONTRACTOR,Revenue
Walsall Council,http://opendatacommunities.org/id/metropolitan-district-council/walsall,WC120-199,30/11/2020,ADULT SOCIAL CARE,ACCORD HOUSING ASSOCIATION LTD#135,18/11/2020,573.20,6541,73508-Community Supported Living/Supported Accommodation,THIRD PARTY PAYMENTS,PRIVATE CONTRACTOR,Revenue
Walsall Council,http://opendatacommunities.org/id/metropolitan-district-council/walsall,WC120-200,30/11/2020,ADULT SOCIAL CARE,ACCORD HOUSING ASSOCIATION LTD#135,18/11/2020,573.20,6541,73508-Community Supported Living/Supported Accommodation,THIRD PARTY PAYMENTS,PRIVATE CONTRACTOR,Revenue
Walsall Council,http://opendatacommunities.org/id/metropolitan-district-council/walsall,WC120-201,30/11/2020,ADULT SOCIAL CARE,ACCORD HOUSING ASSOCIATION LTD#135,18/11/2020,573.20,6541,73508-Community Supported Living/Supported Accommodation,THIRD PARTY PAYMENTS,PRIVATE CONTRACTOR,Revenue
Walsall Council,http://opendatacommunities.org/id/metropolitan-district-council/walsall,WC120-202,30/11/2020,ADULT SOCIAL CARE,ACCORD HOUSING ASSOCIATION LTD#135,18/11/2020,573.20,6541,73508-Community Supported Living/Supported Accommodation,THIRD PARTY PAYMENTS,PRIVATE CONTRACTOR,Revenue
Walsall Council,http://opendatacommunities.org/id/metropolitan-district-council/walsall,WC120-203,30/11/2020,ADULT SOCIAL CARE,ACCORD HOUSING ASSOCIATION LTD#135,18/11/2020,701.68,6541,73507-Domiciliary Care,THIRD PARTY PAYMENTS,PRIVATE CONTRACTOR,Revenue
Walsall Council,http://opendatacommunities.org/id/metropolitan-district-council/walsall,WC120-204,30/11/2020,ADULT SOCIAL CARE,ACCORD HOUSING ASSOCIATION LTD#135,18/11/2020,573.60,6541,73507-Domiciliary Care,THIRD PARTY PAYMENTS,PRIVATE CONTRACTOR,Revenue
Walsall Council,http://opendatacommunities.org/id/metropolitan-district-council/walsall,WC120-205,30/11/2020,ADULT SOCIAL CARE,ACCORD HOUSING ASSOCIATION LTD#135,18/11/2020,"1,337.28",6541,73507-Domiciliary Care,THIRD PARTY PAYMENTS,PRIVATE CONTRACTOR,Revenue
Walsall Council,http://opendatacommunities.org/id/metropolitan-district-council/walsall,WC120-206,30/11/2020,ADULT SOCIAL CARE,ACCORD HOUSING ASSOCIATION LTD#135,03/11/2020,327.88,6541,73507-Domiciliary Care,THIRD PARTY PAYMENTS,PRIVATE CONTRACTOR,Revenue
Walsall Council,http://opendatacommunities.org/id/metropolitan-district-council/walsall,WC120-207,30/11/2020,ADULT SOCIAL CARE,ACCORD HOUSING ASSOCIATION LTD#135,03/11/2020,250.74,6541,73507-Domiciliary Care,THIRD PARTY PAYMENTS,PRIVATE CONTRACTOR,Revenue
Walsall Council,http://opendatacommunities.org/id/metropolitan-district-council/walsall,WC120-208,30/11/2020,ADULT SOCIAL CARE,ACCORD HOUSING ASSOCIATION LTD#135,03/11/2020,334.32,6541,73507-Domiciliary Care,THIRD PARTY PAYMENTS,PRIVATE CONTRACTOR,Revenue
Walsall Council,http://opendatacommunities.org/id/metropolitan-district-council/walsall,WC120-209,30/11/2020,ADULT SOCIAL CARE,ACCORD HOUSING ASSOCIATION LTD#135,03/11/2020,754.60,6541,73507-Domiciliary Care,THIRD PARTY PAYMENTS,PRIVATE CONTRACTOR,Revenue
Walsall Council,http://opendatacommunities.org/id/metropolitan-district-council/walsall,WC120-210,30/11/2020,ADULT SOCIAL CARE,ACCORD HOUSING ASSOCIATION LTD#135,03/11/2020,754.60,6541,73507-Domiciliary Care,THIRD PARTY PAYMENTS,PRIVATE CONTRACTOR,Revenue
Walsall Council,http://opendatacommunities.org/id/metropolitan-district-council/walsall,WC120-211,30/11/2020,ADULT SOCIAL CARE,ACCORD HOUSING ASSOCIATION LTD#135,03/11/2020,754.60,6541,73507-Domiciliary Care,THIRD PARTY PAYMENTS,PRIVATE CONTRACTOR,Revenue
Walsall Council,http://opendatacommunities.org/id/metropolitan-district-council/walsall,WC120-212,30/11/2020,ADULT SOCIAL CARE,ACCORD HOUSING ASSOCIATION LTD#135,03/11/2020,754.60,6541,73507-Domiciliary Care,THIRD PARTY PAYMENTS,PRIVATE CONTRACTOR,Revenue
Walsall Council,http://opendatacommunities.org/id/metropolitan-district-council/walsall,WC120-213,30/11/2020,ADULT SOCIAL CARE,ACCORD HOUSING ASSOCIATION LTD#135,03/11/2020,754.60,6541,73507-Domiciliary Care,THIRD PARTY PAYMENTS,PRIVATE CONTRACTOR,Revenue
Walsall Council,http://opendatacommunities.org/id/metropolitan-district-council/walsall,WC120-214,30/11/2020,ADULT SOCIAL CARE,ACCORD HOUSING ASSOCIATION LTD#135,03/11/2020,655.76,6541,73507-Domiciliary Care,THIRD PARTY PAYMENTS,PRIVATE CONTRACTOR,Revenue
Walsall Council,http://opendatacommunities.org/id/metropolitan-district-council/walsall,WC120-215,30/11/2020,ADULT SOCIAL CARE,ACCORD HOUSING ASSOCIATION LTD#135,03/11/2020,"1,017.40",6541,73507-Domiciliary Care,THIRD PARTY PAYMENTS,PRIVATE CONTRACTOR,Revenue
Walsall Council,http://opendatacommunities.org/id/metropolitan-district-council/walsall,WC120-216,30/11/2020,ADULT SOCIAL CARE,ACCORD HOUSING ASSOCIATION LTD#135,03/11/2020,"1,017.40",6541,73507-Domiciliary Care,THIRD PARTY PAYMENTS,PRIVATE CONTRACTOR,Revenue
Walsall Council,http://opendatacommunities.org/id/metropolitan-district-council/walsall,WC120-217,30/11/2020,ADULT SOCIAL CARE,ACCORD HOUSING ASSOCIATION LTD#135,03/11/2020,"1,017.40",6541,73507-Domiciliary Care,THIRD PARTY PAYMENTS,PRIVATE CONTRACTOR,Revenue
Walsall Council,http://opendatacommunities.org/id/metropolitan-district-council/walsall,WC120-218,30/11/2020,ADULT SOCIAL CARE,ACCORD HOUSING ASSOCIATION LTD#135,03/11/2020,950.52,6541,73507-Domiciliary Care,THIRD PARTY PAYMENTS,PRIVATE CONTRACTOR,Revenue
Walsall Council,http://opendatacommunities.org/id/metropolitan-district-council/walsall,WC120-219,30/11/2020,ADULT SOCIAL CARE,ACCORD HOUSING ASSOCIATION LTD#135,03/11/2020,658.76,6541,73507-Domiciliary Care,THIRD PARTY PAYMENTS,PRIVATE CONTRACTOR,Revenue
Walsall Council,http://opendatacommunities.org/id/metropolitan-district-council/walsall,WC120-220,30/11/2020,ADULT SOCIAL CARE,ACCORD HOUSING ASSOCIATION LTD#135,03/11/2020,658.76,6541,73507-Domiciliary Care,THIRD PARTY PAYMENTS,PRIVATE CONTRACTOR,Revenue
Walsall Council,http://opendatacommunities.org/id/metropolitan-district-council/walsall,WC120-221,30/11/2020,ADULT SOCIAL CARE,ACCORD HOUSING ASSOCIATION LTD#135,18/11/2020,405.90,6541,73507-Domiciliary Care,THIRD PARTY PAYMENTS,PRIVATE CONTRACTOR,Revenue
Walsall Council,http://opendatacommunities.org/id/metropolitan-district-council/walsall,WC120-222,30/11/2020,ADULT SOCIAL CARE,ACCORD HOUSING ASSOCIATION LTD#135,18/11/2020,"1,393.68",6541,73507-Domiciliary Care,THIRD PARTY PAYMENTS,PRIVATE CONTRACTOR,Revenue
Walsall Council,http://opendatacommunities.org/id/metropolitan-district-council/walsall,WC120-223,30/11/2020,ADULT SOCIAL CARE,ACCORD HOUSING ASSOCIATION LTD#135,18/11/2020,"1,393.68",6541,73507-Domiciliary Care,THIRD PARTY PAYMENTS,PRIVATE CONTRACTOR,Revenue
Walsall Council,http://opendatacommunities.org/id/metropolitan-district-council/walsall,WC120-224,30/11/2020,ADULT SOCIAL CARE,ACCORD HOUSING ASSOCIATION LTD#135,18/11/2020,"1,393.68",6541,73507-Domiciliary Care,THIRD PARTY PAYMENTS,PRIVATE CONTRACTOR,Revenue
Walsall Council,http://opendatacommunities.org/id/metropolitan-district-council/walsall,WC120-225,30/11/2020,ADULT SOCIAL CARE,ACCORD HOUSING ASSOCIATION LTD#135,18/11/2020,697.32,6541,73507-Domiciliary Care,THIRD PARTY PAYMENTS,PRIVATE CONTRACTOR,Revenue
Walsall Council,http://opendatacommunities.org/id/metropolitan-district-council/walsall,WC120-226,30/11/2020,ADULT SOCIAL CARE,ACCORD HOUSING ASSOCIATION LTD#135,18/11/2020,793.16,6541,73507-Domiciliary Care,THIRD PARTY PAYMENTS,PRIVATE CONTRACTOR,Revenue
Walsall Council,http://opendatacommunities.org/id/metropolitan-district-council/walsall,WC120-227,30/11/2020,ADULT SOCIAL CARE,ACCORD HOUSING ASSOCIATION LTD#135,18/11/2020,697.32,6541,73507-Domiciliary Care,THIRD PARTY PAYMENTS,PRIVATE CONTRACTOR,Revenue
Walsall Council,http://opendatacommunities.org/id/metropolitan-district-council/walsall,WC120-228,30/11/2020,ADULT SOCIAL CARE,ACCORD HOUSING ASSOCIATION LTD#135,18/11/2020,711.60,6541,73507-Domiciliary Care,THIRD PARTY PAYMENTS,PRIVATE CONTRACTOR,Revenue
Walsall Council,http://opendatacommunities.org/id/metropolitan-district-council/walsall,WC120-229,30/11/2020,ADULT SOCIAL CARE,ACCORD HOUSING ASSOCIATION LTD#135,18/11/2020,711.60,6541,73507-Domiciliary Care,THIRD PARTY PAYMENTS,PRIVATE CONTRACTOR,Revenue
Walsall Council,http://opendatacommunities.org/id/metropolitan-district-council/walsall,WC120-230,30/11/2020,ADULT SOCIAL CARE,ACCORD HOUSING ASSOCIATION LTD#135,18/11/2020,601.44,6541,73507-Domiciliary Care,THIRD PARTY PAYMENTS,PRIVATE CONTRACTOR,Revenue
Walsall Council,http://opendatacommunities.org/id/metropolitan-district-council/walsall,WC120-231,30/11/2020,ADULT SOCIAL CARE,ACCORD HOUSING ASSOCIATION LTD#135,18/11/2020,"1,605.80",6541,73507-Domiciliary Care,THIRD PARTY PAYMENTS,PRIVATE CONTRACTOR,Revenue
Walsall Council,http://opendatacommunities.org/id/metropolitan-district-council/walsall,WC120-232,30/11/2020,ADULT SOCIAL CARE,ACCORD HOUSING ASSOCIATION LTD#135,18/11/2020,458.00,6541,73507-Domiciliary Care,THIRD PARTY PAYMENTS,PRIVATE CONTRACTOR,Revenue
Walsall Council,http://opendatacommunities.org/id/metropolitan-district-council/walsall,WC120-233,30/11/2020,ADULT SOCIAL CARE,ACCORD HOUSING ASSOCIATION LTD#135,18/11/2020,458.00,6541,73507-Domiciliary Care,THIRD PARTY PAYMENTS,PRIVATE CONTRACTOR,Revenue
Walsall Council,http://opendatacommunities.org/id/metropolitan-district-council/walsall,WC120-234,30/11/2020,ADULT SOCIAL CARE,ACCORD HOUSING ASSOCIATION LTD#135,18/11/2020,458.00,6541,73507-Domiciliary Care,THIRD PARTY PAYMENTS,PRIVATE CONTRACTOR,Revenue
Walsall Council,http://opendatacommunities.org/id/metropolitan-district-council/walsall,WC120-235,30/11/2020,ADULT SOCIAL CARE,ACCORD HOUSING ASSOCIATION LTD#135,18/11/2020,458.00,6541,73507-Domiciliary Care,THIRD PARTY PAYMENTS,PRIVATE CONTRACTOR,Revenue
Walsall Council,http://opendatacommunities.org/id/metropolitan-district-council/walsall,WC120-236,30/11/2020,ADULT SOCIAL CARE,ACCORD HOUSING ASSOCIATION LTD#135,18/11/2020,458.00,6541,73507-Domiciliary Care,THIRD PARTY PAYMENTS,PRIVATE CONTRACTOR,Revenue
Walsall Council,http://opendatacommunities.org/id/metropolitan-district-council/walsall,WC120-237,30/11/2020,ADULT SOCIAL CARE,ACCORD HOUSING ASSOCIATION LTD#135,18/11/2020,458.00,6541,73507-Domiciliary Care,THIRD PARTY PAYMENTS,PRIVATE CONTRACTOR,Revenue
Walsall Council,http://opendatacommunities.org/id/metropolitan-district-council/walsall,WC120-238,30/11/2020,ADULT SOCIAL CARE,ACCORD HOUSING ASSOCIATION LTD#135,18/11/2020,458.00,6541,73507-Domiciliary Care,THIRD PARTY PAYMENTS,PRIVATE CONTRACTOR,Revenue
Walsall Council,http://opendatacommunities.org/id/metropolitan-district-council/walsall,WC120-239,30/11/2020,ADULT SOCIAL CARE,ACCORD HOUSING ASSOCIATION LTD#135,18/11/2020,401.52,6541,73507-Domiciliary Care,THIRD PARTY PAYMENTS,PRIVATE CONTRACTOR,Revenue
Walsall Council,http://opendatacommunities.org/id/metropolitan-district-council/walsall,WC120-240,30/11/2020,ADULT SOCIAL CARE,ACCORD HOUSING ASSOCIATION LTD#135,18/11/2020,937.48,6541,73507-Domiciliary Care,THIRD PARTY PAYMENTS,PRIVATE CONTRACTOR,Revenue
Walsall Council,http://opendatacommunities.org/id/metropolitan-district-council/walsall,WC120-241,30/11/2020,ADULT SOCIAL CARE,ACCORD HOUSING ASSOCIATION LTD#135,18/11/2020,937.48,6541,73507-Domiciliary Care,THIRD PARTY PAYMENTS,PRIVATE CONTRACTOR,Revenue
Walsall Council,http://opendatacommunities.org/id/metropolitan-district-council/walsall,WC120-242,30/11/2020,ADULT SOCIAL CARE,ACCORD HOUSING ASSOCIATION LTD#135,18/11/2020,937.48,6541,73507-Domiciliary Care,THIRD PARTY PAYMENTS,PRIVATE CONTRACTOR,Revenue
Walsall Council,http://opendatacommunities.org/id/metropolitan-district-council/walsall,WC120-243,30/11/2020,ADULT SOCIAL CARE,ACCORD HOUSING ASSOCIATION LTD#135,18/11/2020,573.56,6541,73507-Domiciliary Care,THIRD PARTY PAYMENTS,PRIVATE CONTRACTOR,Revenue
Walsall Council,http://opendatacommunities.org/id/metropolitan-district-council/walsall,WC120-244,30/11/2020,ADULT SOCIAL CARE,ACCORD HOUSING ASSOCIATION LTD#135,18/11/2020,573.56,6541,73507-Domiciliary Care,THIRD PARTY PAYMENTS,PRIVATE CONTRACTOR,Revenue
Walsall Council,http://opendatacommunities.org/id/metropolitan-district-council/walsall,WC120-245,30/11/2020,ADULT SOCIAL CARE,ACCORD HOUSING ASSOCIATION LTD#135,18/11/2020,573.56,6541,73507-Domiciliary Care,THIRD PARTY PAYMENTS,PRIVATE CONTRACTOR,Revenue
Walsall Council,http://opendatacommunities.org/id/metropolitan-district-council/walsall,WC120-246,30/11/2020,ADULT SOCIAL CARE,ACCORD HOUSING ASSOCIATION LTD#135,18/11/2020,573.56,6541,73507-Domiciliary Care,THIRD PARTY PAYMENTS,PRIVATE CONTRACTOR,Revenue
Walsall Council,http://opendatacommunities.org/id/metropolitan-district-council/walsall,WC120-247,30/11/2020,ADULT SOCIAL CARE,ACCORD HOUSING ASSOCIATION LTD#135,18/11/2020,573.56,6541,73507-Domiciliary Care,THIRD PARTY PAYMENTS,PRIVATE CONTRACTOR,Revenue
Walsall Council,http://opendatacommunities.org/id/metropolitan-district-council/walsall,WC120-248,30/11/2020,ADULT SOCIAL CARE,ACCORD HOUSING ASSOCIATION LTD#135,18/11/2020,802.72,6541,73507-Domiciliary Care,THIRD PARTY PAYMENTS,PRIVATE CONTRACTOR,Revenue
Walsall Council,http://opendatacommunities.org/id/metropolitan-district-council/walsall,WC120-249,30/11/2020,ADULT SOCIAL CARE,ACCORD HOUSING ASSOCIATION LTD#135,18/11/2020,802.72,6541,73507-Domiciliary Care,THIRD PARTY PAYMENTS,PRIVATE CONTRACTOR,Revenue
Walsall Council,http://opendatacommunities.org/id/metropolitan-district-council/walsall,WC120-250,30/11/2020,ADULT SOCIAL CARE,ACCORD HOUSING ASSOCIATION LTD#135,18/11/2020,802.72,6541,73507-Domiciliary Care,THIRD PARTY PAYMENTS,PRIVATE CONTRACTOR,Revenue
Walsall Council,http://opendatacommunities.org/id/metropolitan-district-council/walsall,WC120-251,30/11/2020,ADULT SOCIAL CARE,ACCORD HOUSING ASSOCIATION LTD#135,18/11/2020,802.72,6541,73507-Domiciliary Care,THIRD PARTY PAYMENTS,PRIVATE CONTRACTOR,Revenue
Walsall Council,http://opendatacommunities.org/id/metropolitan-district-council/walsall,WC120-252,30/11/2020,ADULT SOCIAL CARE,ACCORD HOUSING ASSOCIATION LTD#135,18/11/2020,802.72,6541,73507-Domiciliary Care,THIRD PARTY PAYMENTS,PRIVATE CONTRACTOR,Revenue
Walsall Council,http://opendatacommunities.org/id/metropolitan-district-council/walsall,WC120-253,30/11/2020,ADULT SOCIAL CARE,ACCORD HOUSING ASSOCIATION LTD#135,18/11/2020,802.72,6541,73507-Domiciliary Care,THIRD PARTY PAYMENTS,PRIVATE CONTRACTOR,Revenue
Walsall Council,http://opendatacommunities.org/id/metropolitan-district-council/walsall,WC120-254,30/11/2020,ADULT SOCIAL CARE,ACCORD HOUSING ASSOCIATION LTD#135,18/11/2020,802.72,6541,73507-Domiciliary Care,THIRD PARTY PAYMENTS,PRIVATE CONTRACTOR,Revenue
Walsall Council,http://opendatacommunities.org/id/metropolitan-district-council/walsall,WC120-255,30/11/2020,ADULT SOCIAL CARE,ACCORD HOUSING ASSOCIATION LTD#135,18/11/2020,802.72,6541,73507-Domiciliary Care,THIRD PARTY PAYMENTS,PRIVATE CONTRACTOR,Revenue
Walsall Council,http://opendatacommunities.org/id/metropolitan-district-council/walsall,WC120-256,30/11/2020,ADULT SOCIAL CARE,ACCORD HOUSING ASSOCIATION LTD#135,18/11/2020,802.72,6541,73507-Domiciliary Care,THIRD PARTY PAYMENTS,PRIVATE CONTRACTOR,Revenue
Walsall Council,http://opendatacommunities.org/id/metropolitan-district-council/walsall,WC120-257,30/11/2020,CHILDRENS,ACCORD HOUSING ASSOCIATION LTD#135,27/11/2020,"28,502.83",6314,63000-Professional Fees & Services,SUPPLIES & SERVICES,SERVICES,Revenue
Walsall Council,http://opendatacommunities.org/id/metropolitan-district-council/walsall,WC120-258,30/11/2020,CHILDRENS,ACCORD HOUSING ASSOCIATION LTD#135,12/11/2020,"-1,068.40",6222,76010-Accommodation and Related Costs-Assistance to S/S Clients,TRANSFER PAYMENTS,ADULT SOCIAL SERVICES CLIENT,Revenue
Walsall Council,http://opendatacommunities.org/id/metropolitan-district-council/walsall,WC120-259,30/11/2020,CHILDRENS,ACCORD HOUSING ASSOCIATION LTD#135,12/11/2020,"1,068.40",6222,76010-Accommodation and Related Costs-Assistance to S/S Clients,TRANSFER PAYMENTS,ADULT SOCIAL SERVICES CLIENT,Revenue
Walsall Council,http://opendatacommunities.org/id/metropolitan-district-council/walsall,WC120-260,30/11/2020,CHILDRENS,ACE CARS & MINIBUSES LTD,13/11/2020,"1,570.00",6241,52000-Hire of Vehicle with Driver,TRANSPORT,DIRECT TRANSPORT COSTS,Revenue
Walsall Council,http://opendatacommunities.org/id/metropolitan-district-council/walsall,WC120-261,30/11/2020,CHILDRENS,ACE CARS & MINIBUSES LTD,13/11/2020,"1,560.00",6241,52000-Hire of Vehicle with Driver,TRANSPORT,DIRECT TRANSPORT COSTS,Revenue
Walsall Council,http://opendatacommunities.org/id/metropolitan-district-council/walsall,WC120-262,30/11/2020,CHILDRENS,ACE CARS & MINIBUSES LTD,13/11/2020,"2,760.00",6241,52000-Hire of Vehicle with Driver,TRANSPORT,DIRECT TRANSPORT COSTS,Revenue
Walsall Council,http://opendatacommunities.org/id/metropolitan-district-council/walsall,WC120-263,30/11/2020,CHILDRENS,ACE CARS & MINIBUSES LTD,13/11/2020,"2,070.00",6241,52000-Hire of Vehicle with Driver,TRANSPORT,DIRECT TRANSPORT COSTS,Revenue
Walsall Council,http://opendatacommunities.org/id/metropolitan-district-council/walsall,WC120-264,30/11/2020,CHILDRENS,ACE CARS & MINIBUSES LTD,13/11/2020,"2,530.00",6241,52000-Hire of Vehicle with Driver,TRANSPORT,DIRECT TRANSPORT COSTS,Revenue
Walsall Council,http://opendatacommunities.org/id/metropolitan-district-council/walsall,WC120-265,30/11/2020,CHILDRENS,ACE CARS & MINIBUSES LTD,13/11/2020,"2,750.00",6241,52000-Hire of Vehicle with Driver,TRANSPORT,DIRECT TRANSPORT COSTS,Revenue
Walsall Council,http://opendatacommunities.org/id/metropolitan-district-council/walsall,WC120-266,30/11/2020,CHILDRENS,ACE CARS & MINIBUSES LTD,13/11/2020,"2,300.00",6241,52000-Hire of Vehicle with Driver,TRANSPORT,DIRECT TRANSPORT COSTS,Revenue
Walsall Council,http://opendatacommunities.org/id/metropolitan-district-council/walsall,WC120-267,30/11/2020,CHILDRENS,ACE CARS & MINIBUSES LTD,13/11/2020,"2,530.00",6241,52000-Hire of Vehicle with Driver,TRANSPORT,DIRECT TRANSPORT COSTS,Revenue
Walsall Council,http://opendatacommunities.org/id/metropolitan-district-council/walsall,WC120-268,30/11/2020,CHILDRENS,ACE CARS & MINIBUSES LTD,13/11/2020,"1,936.00",6241,52000-Hire of Vehicle with Driver,TRANSPORT,DIRECT TRANSPORT COSTS,Revenue
Walsall Council,http://opendatacommunities.org/id/metropolitan-district-council/walsall,WC120-269,30/11/2020,CHILDRENS,ACE CARS & MINIBUSES LTD,13/11/2020,"2,185.00",6241,52000-Hire of Vehicle with Driver,TRANSPORT,DIRECT TRANSPORT COSTS,Revenue
Walsall Council,http://opendatacommunities.org/id/metropolitan-district-council/walsall,WC120-270,30/11/2020,CHILDRENS,ACE CARS & MINIBUSES LTD,13/11/2020,"2,185.00",6241,52000-Hire of Vehicle with Driver,TRANSPORT,DIRECT TRANSPORT COSTS,Revenue
Walsall Council,http://opendatacommunities.org/id/metropolitan-district-council/walsall,WC120-271,30/11/2020,CHILDRENS,ACE CARS & MINIBUSES LTD,13/11/2020,"2,200.00",6241,52000-Hire of Vehicle with Driver,TRANSPORT,DIRECT TRANSPORT COSTS,Revenue
Walsall Council,http://opendatacommunities.org/id/metropolitan-district-council/walsall,WC120-272,30/11/2020,CHILDRENS,ACE CARS & MINIBUSES LTD,13/11/2020,"3,750.00",6241,52000-Hire of Vehicle with Driver,TRANSPORT,DIRECT TRANSPORT COSTS,Revenue
Walsall Council,http://opendatacommunities.org/id/metropolitan-district-council/walsall,WC120-273,30/11/2020,CHILDRENS,ACE CARS & MINIBUSES LTD,13/11/2020,"2,565.00",6241,52000-Hire of Vehicle with Driver,TRANSPORT,DIRECT TRANSPORT COSTS,Revenue
Walsall Council,http://opendatacommunities.org/id/metropolitan-district-council/walsall,WC120-274,30/11/2020,CHILDRENS,ACE CARS & MINIBUSES LTD,13/11/2020,"3,090.00",6241,52000-Hire of Vehicle with Driver,TRANSPORT,DIRECT TRANSPORT COSTS,Revenue
Walsall Council,http://opendatacommunities.org/id/metropolitan-district-council/walsall,WC120-275,30/11/2020,CHILDRENS,ACE CARS & MINIBUSES LTD,13/11/2020,"1,310.00",6241,52000-Hire of Vehicle with Driver,TRANSPORT,DIRECT TRANSPORT COSTS,Revenue
Walsall Council,http://opendatacommunities.org/id/metropolitan-district-council/walsall,WC120-276,30/11/2020,CHILDRENS,ACE CARS & MINIBUSES LTD,13/11/2020,"2,200.00",6241,52000-Hire of Vehicle with Driver,TRANSPORT,DIRECT TRANSPORT COSTS,Revenue
Walsall Council,http://opendatacommunities.org/id/metropolitan-district-council/walsall,WC120-277,30/11/2020,CHILDRENS,ACE CARS & MINIBUSES LTD,13/11/2020,"3,890.00",6241,52000-Hire of Vehicle with Driver,TRANSPORT,DIRECT TRANSPORT COSTS,Revenue
Walsall Council,http://opendatacommunities.org/id/metropolitan-district-council/walsall,WC120-278,30/11/2020,CHILDRENS,ACE CARS & MINIBUSES LTD,13/11/2020,"1,000.00",6241,52000-Hire of Vehicle with Driver,TRANSPORT,DIRECT TRANSPORT COSTS,Revenue
Walsall Council,http://opendatacommunities.org/id/metropolitan-district-council/walsall,WC120-279,30/11/2020,CHILDRENS,ACE CARS & MINIBUSES LTD,13/11/2020,"3,310.00",6241,52000-Hire of Vehicle with Driver,TRANSPORT,DIRECT TRANSPORT COSTS,Revenue
Walsall Council,http://opendatacommunities.org/id/metropolitan-district-council/walsall,WC120-280,30/11/2020,CHILDRENS,ACE CARS & MINIBUSES LTD,13/11/2020,"1,280.00",6241,52000-Hire of Vehicle with Driver,TRANSPORT,DIRECT TRANSPORT COSTS,Revenue
Walsall Council,http://opendatacommunities.org/id/metropolitan-district-council/walsall,WC120-281,30/11/2020,CHILDRENS,ACE CARS & MINIBUSES LTD,13/11/2020,"2,070.00",6241,52000-Hire of Vehicle with Driver,TRANSPORT,DIRECT TRANSPORT COSTS,Revenue
Walsall Council,http://opendatacommunities.org/id/metropolitan-district-council/walsall,WC120-282,30/11/2020,CHILDRENS,ACE CARS & MINIBUSES LTD,13/11/2020,"3,088.00",6241,52000-Hire of Vehicle with Driver,TRANSPORT,DIRECT TRANSPORT COSTS,Revenue
Walsall Council,http://opendatacommunities.org/id/metropolitan-district-council/walsall,WC120-283,30/11/2020,CHILDRENS,ACE CARS & MINIBUSES LTD,13/11/2020,"1,300.00",6241,52000-Hire of Vehicle with Driver,TRANSPORT,DIRECT TRANSPORT COSTS,Revenue
Walsall Council,http://opendatacommunities.org/id/metropolitan-district-council/walsall,WC120-284,30/11/2020,CHILDRENS,ACE CARS & MINIBUSES LTD,13/11/2020,"1,840.00",6241,52000-Hire of Vehicle with Driver,TRANSPORT,DIRECT TRANSPORT COSTS,Revenue
Walsall Council,http://opendatacommunities.org/id/metropolitan-district-council/walsall,WC120-285,30/11/2020,CHILDRENS,ACE CARS & MINIBUSES LTD,13/11/2020,"3,090.00",6241,52000-Hire of Vehicle with Driver,TRANSPORT,DIRECT TRANSPORT COSTS,Revenue
Walsall Council,http://opendatacommunities.org/id/metropolitan-district-council/walsall,WC120-286,30/11/2020,CHILDRENS,ACE CARS & MINIBUSES LTD,13/11/2020,"2,990.00",6241,52000-Hire of Vehicle with Driver,TRANSPORT,DIRECT TRANSPORT COSTS,Revenue
Walsall Council,http://opendatacommunities.org/id/metropolitan-district-council/walsall,WC120-287,30/11/2020,CHILDRENS,ACE CARS & MINIBUSES LTD,13/11/2020,480.00,6241,52000-Hire of Vehicle with Driver,TRANSPORT,DIRECT TRANSPORT COSTS,Revenue
Walsall Council,http://opendatacommunities.org/id/metropolitan-district-council/walsall,WC120-288,30/11/2020,CHILDRENS,ACE CARS & MINIBUSES LTD,13/11/2020,880.00,6241,52000-Hire of Vehicle with Driver,TRANSPORT,DIRECT TRANSPORT COSTS,Revenue
Walsall Council,http://opendatacommunities.org/id/metropolitan-district-council/walsall,WC120-289,30/11/2020,ADULT SOCIAL CARE,ACEPAY LTD (COTTAGE NUR HOME),20/11/2020,"2,044.00",6541,73500-Residential,THIRD PARTY PAYMENTS,PRIVATE CONTRACTOR,Revenue
Walsall Council,http://opendatacommunities.org/id/metropolitan-district-council/walsall,WC120-290,30/11/2020,ADULT SOCIAL CARE,ACEPAY LTD (COTTAGE NUR HOME),20/11/2020,"2,396.00",6541,73502-Nursing,THIRD PARTY PAYMENTS,PRIVATE CONTRACTOR,Revenue
Walsall Council,http://opendatacommunities.org/id/metropolitan-district-council/walsall,WC120-291,30/11/2020,ADULT SOCIAL CARE,ACEPAY LTD (COTTAGE NUR HOME),20/11/2020,"2,396.00",6541,73502-Nursing,THIRD PARTY PAYMENTS,PRIVATE CONTRACTOR,Revenue
Walsall Council,http://opendatacommunities.org/id/metropolitan-district-council/walsall,WC120-292,30/11/2020,ADULT SOCIAL CARE,ACEPAY LTD (COTTAGE NUR HOME),20/11/2020,"2,396.00",6541,73502-Nursing,THIRD PARTY PAYMENTS,PRIVATE CONTRACTOR,Revenue
Walsall Council,http://opendatacommunities.org/id/metropolitan-district-council/walsall,WC120-293,30/11/2020,ADULT SOCIAL CARE,ACEPAY LTD (COTTAGE NUR HOME),20/11/2020,"2,396.00",6541,73502-Nursing,THIRD PARTY PAYMENTS,PRIVATE CONTRACTOR,Revenue
Walsall Council,http://opendatacommunities.org/id/metropolitan-district-council/walsall,WC120-294,30/11/2020,ADULT SOCIAL CARE,ACEPAY LTD (COTTAGE NUR HOME),20/11/2020,"2,396.00",6541,73502-Nursing,THIRD PARTY PAYMENTS,PRIVATE CONTRACTOR,Revenue
Walsall Council,http://opendatacommunities.org/id/metropolitan-district-council/walsall,WC120-295,30/11/2020,ADULT SOCIAL CARE,ACEPAY LTD (COTTAGE NUR HOME),20/11/2020,"2,396.00",6541,73502-Nursing,THIRD PARTY PAYMENTS,PRIVATE CONTRACTOR,Revenue
Walsall Council,http://opendatacommunities.org/id/metropolitan-district-council/walsall,WC120-296,30/11/2020,ADULT SOCIAL CARE,ACEPAY LTD (COTTAGE NUR HOME),20/11/2020,"2,396.00",6541,73502-Nursing,THIRD PARTY PAYMENTS,PRIVATE CONTRACTOR,Revenue
Walsall Council,http://opendatacommunities.org/id/metropolitan-district-council/walsall,WC120-297,30/11/2020,ADULT SOCIAL CARE,ACEPAY LTD (COTTAGE NUR HOME),20/11/2020,"2,596.00",6541,73502-Nursing,THIRD PARTY PAYMENTS,PRIVATE CONTRACTOR,Revenue
Walsall Council,http://opendatacommunities.org/id/metropolitan-district-council/walsall,WC120-298,30/11/2020,ADULT SOCIAL CARE,ACEPAY LTD (COTTAGE NUR HOME),20/11/2020,"2,396.00",6541,73502-Nursing,THIRD PARTY PAYMENTS,PRIVATE CONTRACTOR,Revenue
Walsall Council,http://opendatacommunities.org/id/metropolitan-district-council/walsall,WC120-299,30/11/2020,ADULT SOCIAL CARE,ACEPAY LTD (COTTAGE NUR HOME),20/11/2020,"2,396.00",6541,73502-Nursing,THIRD PARTY PAYMENTS,PRIVATE CONTRACTOR,Revenue
Walsall Council,http://opendatacommunities.org/id/metropolitan-district-council/walsall,WC120-300,30/11/2020,ADULT SOCIAL CARE,ACEPAY LTD (COTTAGE NUR HOME),20/11/2020,"2,396.00",6541,73502-Nursing,THIRD PARTY PAYMENTS,PRIVATE CONTRACTOR,Revenue
Walsall Council,http://opendatacommunities.org/id/metropolitan-district-council/walsall,WC120-301,30/11/2020,ADULT SOCIAL CARE,ACEPAY LTD (COTTAGE NUR HOME),20/11/2020,"2,396.00",6541,73502-Nursing,THIRD PARTY PAYMENTS,PRIVATE CONTRACTOR,Revenue
Walsall Council,http://opendatacommunities.org/id/metropolitan-district-council/walsall,WC120-302,30/11/2020,ADULT SOCIAL CARE,ACEPAY LTD (COTTAGE NUR HOME),20/11/2020,"2,396.00",6541,73502-Nursing,THIRD PARTY PAYMENTS,PRIVATE CONTRACTOR,Revenue
Walsall Council,http://opendatacommunities.org/id/metropolitan-district-council/walsall,WC120-303,30/11/2020,ADULT SOCIAL CARE,ACEPAY LTD (COTTAGE NUR HOME),20/11/2020,"2,396.00",6541,73502-Nursing,THIRD PARTY PAYMENTS,PRIVATE CONTRACTOR,Revenue
Walsall Council,http://opendatacommunities.org/id/metropolitan-district-council/walsall,WC120-304,30/11/2020,ADULT SOCIAL CARE,ACEPAY LTD (COTTAGE NUR HOME),20/11/2020,"2,308.00",6541,73501-Residential EMI,THIRD PARTY PAYMENTS,PRIVATE CONTRACTOR,Revenue
Walsall Council,http://opendatacommunities.org/id/metropolitan-district-council/walsall,WC120-305,30/11/2020,ADULT SOCIAL CARE,ACEPAY LTD (COTTAGE NUR HOME),20/11/2020,"2,396.00",6541,73502-Nursing,THIRD PARTY PAYMENTS,PRIVATE CONTRACTOR,Revenue
Walsall Council,http://opendatacommunities.org/id/metropolitan-district-council/walsall,WC120-306,30/11/2020,ADULT SOCIAL CARE,ACEPAY LTD (COTTAGE NUR HOME),20/11/2020,"2,396.00",6541,73502-Nursing,THIRD PARTY PAYMENTS,PRIVATE CONTRACTOR,Revenue
Walsall Council,http://opendatacommunities.org/id/metropolitan-district-council/walsall,WC120-307,30/11/2020,ADULT SOCIAL CARE,ACEPAY LTD (COTTAGE NUR HOME),04/11/2020,"11,022.00",6550,73025-Professional Services-Priv Contractor & Other Agencies,THIRD PARTY PAYMENTS,PRIVATE CONTRACTOR,Revenue
Walsall Council,http://opendatacommunities.org/id/metropolitan-district-council/walsall,WC120-308,30/11/2020,CHILDRENS,ACORN CARE & EDUCATION LTD (SALES),02/11/2020,"17,302.00",1220,63000-Professional Fees & Services,SUPPLIES & SERVICES,SERVICES,Revenue
Walsall Council,http://opendatacommunities.org/id/metropolitan-district-council/walsall,WC120-309,30/11/2020,CHILDRENS,ACORN FOSTERING SERVICES LTD,30/11/2020,"3,380.00",6223,74037-Independent Foster Care-Oth Agency Provision,THIRD PARTY PAYMENTS,PRIVATE CONTRACTOR,Revenue
Walsall Council,http://opendatacommunities.org/id/metropolitan-district-council/walsall,WC120-310,30/11/2020,CHILDRENS,ACPAS LIMITED,06/11/2020,842.40,6220,73014-School Only Payments - Catering,THIRD PARTY PAYMENTS,INDEPENDENT UNIT WITHIN COUNCIL,Revenue
Walsall Council,http://opendatacommunities.org/id/metropolitan-district-council/walsall,WC120-311,30/11/2020,CHILDRENS,ACPAS LIMITED,12/11/2020,854.92,6222,63000-Professional Fees & Services,SUPPLIES & SERVICES,SERVICES,Revenue
Walsall Council,http://opendatacommunities.org/id/metropolitan-district-council/walsall,WC120-312,30/11/2020,CHILDRENS,ACPAS LIMITED,27/11/2020,842.40,6220,63116-External Legal Fees,SUPPLIES & SERVICES,SERVICES,Revenue
Walsall Council,http://opendatacommunities.org/id/metropolitan-district-council/walsall,WC120-313,30/11/2020,CHILDRENS,ACPAS LIMITED,27/11/2020,856.92,6220,63116-External Legal Fees,SUPPLIES & SERVICES,SERVICES,Revenue
Walsall Council,http://opendatacommunities.org/id/metropolitan-district-council/walsall,WC120-314,30/11/2020,CHILDRENS,ACTIVE CARE SOLUTIONS LTD,30/11/2020,"3,139.52",6223,74037-Independent Foster Care-Oth Agency Provision,THIRD PARTY PAYMENTS,PRIVATE CONTRACTOR,Revenue
Walsall Council,http://opendatacommunities.org/id/metropolitan-district-council/walsall,WC120-315,30/11/2020,CHILDRENS,ACTIVE CARE SOLUTIONS LTD,30/11/2020,"2,596.36",6223,74037-Independent Foster Care-Oth Agency Provision,THIRD PARTY PAYMENTS,PRIVATE CONTRACTOR,Revenue
Walsall Council,http://opendatacommunities.org/id/metropolitan-district-council/walsall,WC120-316,30/11/2020,CHILDRENS CAPITAL,ACTS GROUP LTD - CHIRMARN,27/11/2020,890.00,7150,01006-Site Works Contractors,CAPITAL,"NEW CONSTRUCTION,CONVERSION & RENOVATION",Capital
Walsall Council,http://opendatacommunities.org/id/metropolitan-district-council/walsall,WC120-317,30/11/2020,CHILDRENS,REDACTED,13/11/2020,333.12,6223,74510-Residents Orders,TRANSFER PAYMENTS,CHILDREN SOCIAL SERVICES CLIENT,Revenue
Walsall Council,http://opendatacommunities.org/id/metropolitan-district-council/walsall,WC120-318,30/11/2020,CHILDRENS,REDACTED,13/11/2020,361.12,6223,74510-Residents Orders,TRANSFER PAYMENTS,CHILDREN SOCIAL SERVICES CLIENT,Revenue
Walsall Council,http://opendatacommunities.org/id/metropolitan-district-council/walsall,WC120-319,30/11/2020,ADULT SOCIAL CARE,ADVANCE HEALTH CARE (UK) LTD,06/11/2020,485.73,6541,73507-Domiciliary Care,THIRD PARTY PAYMENTS,PRIVATE CONTRACTOR,Revenue
Walsall Council,http://opendatacommunities.org/id/metropolitan-district-council/walsall,WC120-320,30/11/2020,ADULT SOCIAL CARE,ADVANCE HEALTH CARE (UK) LTD,06/11/2020,323.82,6541,73507-Domiciliary Care,THIRD PARTY PAYMENTS,PRIVATE CONTRACTOR,Revenue
Walsall Council,http://opendatacommunities.org/id/metropolitan-district-council/walsall,WC120-321,30/11/2020,ADULT SOCIAL CARE,ADVANCE HEALTH CARE (UK) LTD,06/11/2020,"3,797.74",6541,73507-Domiciliary Care,THIRD PARTY PAYMENTS,PRIVATE CONTRACTOR,Revenue
Walsall Council,http://opendatacommunities.org/id/metropolitan-district-council/walsall,WC120-322,30/11/2020,ADULT SOCIAL CARE,ADVANCE HEALTH CARE (UK) LTD,06/11/2020,701.61,6541,73507-Domiciliary Care,THIRD PARTY PAYMENTS,PRIVATE CONTRACTOR,Revenue
Walsall Council,http://opendatacommunities.org/id/metropolitan-district-council/walsall,WC120-323,30/11/2020,ADULT SOCIAL CARE,ADVANCE HEALTH CARE (UK) LTD,06/11/2020,485.73,6541,73507-Domiciliary Care,THIRD PARTY PAYMENTS,PRIVATE CONTRACTOR,Revenue
Walsall Council,http://opendatacommunities.org/id/metropolitan-district-council/walsall,WC120-324,30/11/2020,ADULT SOCIAL CARE,ADVANCE HEALTH CARE (UK) LTD,06/11/2020,"-6,364.32",6541,73507-Domiciliary Care,THIRD PARTY PAYMENTS,PRIVATE CONTRACTOR,Revenue
Walsall Council,http://opendatacommunities.org/id/metropolitan-district-council/walsall,WC120-325,30/11/2020,ADULT SOCIAL CARE,ADVANCE HEALTH CARE (UK) LTD,06/11/2020,824.97,6541,73507-Domiciliary Care,THIRD PARTY PAYMENTS,PRIVATE CONTRACTOR,Revenue
Walsall Council,http://opendatacommunities.org/id/metropolitan-district-council/walsall,WC120-326,30/11/2020,ADULT SOCIAL CARE,ADVANCE HEALTH CARE (UK) LTD,06/11/2020,485.73,6541,73507-Domiciliary Care,THIRD PARTY PAYMENTS,PRIVATE CONTRACTOR,Revenue
Walsall Council,http://opendatacommunities.org/id/metropolitan-district-council/walsall,WC120-327,30/11/2020,ADULT SOCIAL CARE,ADVANCE HEALTH CARE (UK) LTD,06/11/2020,485.73,6541,73507-Domiciliary Care,THIRD PARTY PAYMENTS,PRIVATE CONTRACTOR,Revenue
Walsall Council,http://opendatacommunities.org/id/metropolitan-district-council/walsall,WC120-328,30/11/2020,ADULT SOCIAL CARE,ADVANCE HEALTH CARE (UK) LTD,06/11/2020,485.80,6541,73507-Domiciliary Care,THIRD PARTY PAYMENTS,PRIVATE CONTRACTOR,Revenue
Walsall Council,http://opendatacommunities.org/id/metropolitan-district-council/walsall,WC120-329,30/11/2020,ADULT SOCIAL CARE,ADVANCE HEALTH CARE (UK) LTD,06/11/2020,501.15,6541,73507-Domiciliary Care,THIRD PARTY PAYMENTS,PRIVATE CONTRACTOR,Revenue
Walsall Council,http://opendatacommunities.org/id/metropolitan-district-council/walsall,WC120-330,30/11/2020,ADULT SOCIAL CARE,ADVANCE HEALTH CARE (UK) LTD,06/11/2020,431.76,6541,73507-Domiciliary Care,THIRD PARTY PAYMENTS,PRIVATE CONTRACTOR,Revenue
Walsall Council,http://opendatacommunities.org/id/metropolitan-district-council/walsall,WC120-331,30/11/2020,ADULT SOCIAL CARE,ADVANCE HEALTH CARE (UK) LTD,06/11/2020,359.80,6541,73507-Domiciliary Care,THIRD PARTY PAYMENTS,PRIVATE CONTRACTOR,Revenue
Walsall Council,http://opendatacommunities.org/id/metropolitan-district-council/walsall,WC120-332,30/11/2020,ADULT SOCIAL CARE,ADVANCE HEALTH CARE (UK) LTD,06/11/2020,404.81,6541,73507-Domiciliary Care,THIRD PARTY PAYMENTS,PRIVATE CONTRACTOR,Revenue
Walsall Council,http://opendatacommunities.org/id/metropolitan-district-council/walsall,WC120-333,30/11/2020,ADULT SOCIAL CARE,ADVANCE HEALTH CARE (UK) LTD,06/11/2020,431.76,6541,73507-Domiciliary Care,THIRD PARTY PAYMENTS,PRIVATE CONTRACTOR,Revenue
Walsall Council,http://opendatacommunities.org/id/metropolitan-district-council/walsall,WC120-334,30/11/2020,ADULT SOCIAL CARE,ADVANCE HEALTH CARE (UK) LTD,06/11/2020,485.73,6541,73507-Domiciliary Care,THIRD PARTY PAYMENTS,PRIVATE CONTRACTOR,Revenue
Walsall Council,http://opendatacommunities.org/id/metropolitan-district-council/walsall,WC120-335,30/11/2020,ADULT SOCIAL CARE,ADVANCE HEALTH CARE (UK) LTD,06/11/2020,485.73,6541,73507-Domiciliary Care,THIRD PARTY PAYMENTS,PRIVATE CONTRACTOR,Revenue
Walsall Council,http://opendatacommunities.org/id/metropolitan-district-council/walsall,WC120-336,30/11/2020,ADULT SOCIAL CARE,ADVANCE HEALTH CARE (UK) LTD,06/11/2020,462.60,6541,73507-Domiciliary Care,THIRD PARTY PAYMENTS,PRIVATE CONTRACTOR,Revenue
Walsall Council,http://opendatacommunities.org/id/metropolitan-district-council/walsall,WC120-337,30/11/2020,ADULT SOCIAL CARE,ADVANCE HEALTH CARE (UK) LTD,06/11/2020,431.76,6541,73507-Domiciliary Care,THIRD PARTY PAYMENTS,PRIVATE CONTRACTOR,Revenue
Walsall Council,http://opendatacommunities.org/id/metropolitan-district-council/walsall,WC120-338,30/11/2020,ADULT SOCIAL CARE,ADVANCE HEALTH CARE (UK) LTD,06/11/2020,431.76,6541,73507-Domiciliary Care,THIRD PARTY PAYMENTS,PRIVATE CONTRACTOR,Revenue
Walsall Council,http://opendatacommunities.org/id/metropolitan-district-council/walsall,WC120-339,30/11/2020,ADULT SOCIAL CARE,ADVANCE HEALTH CARE (UK) LTD,06/11/2020,431.76,6541,73507-Domiciliary Care,THIRD PARTY PAYMENTS,PRIVATE CONTRACTOR,Revenue
Walsall Council,http://opendatacommunities.org/id/metropolitan-district-council/walsall,WC120-340,30/11/2020,ADULT SOCIAL CARE,ADVANCE HEALTH CARE (UK) LTD,06/11/2020,539.70,6541,73507-Domiciliary Care,THIRD PARTY PAYMENTS,PRIVATE CONTRACTOR,Revenue
Walsall Council,http://opendatacommunities.org/id/metropolitan-district-council/walsall,WC120-341,30/11/2020,ADULT SOCIAL CARE,ADVANCE HEALTH CARE (UK) LTD,06/11/2020,431.76,6541,73507-Domiciliary Care,THIRD PARTY PAYMENTS,PRIVATE CONTRACTOR,Revenue
Walsall Council,http://opendatacommunities.org/id/metropolitan-district-council/walsall,WC120-342,30/11/2020,ADULT SOCIAL CARE,ADVANCE HEALTH CARE (UK) LTD,06/11/2020,524.28,6541,73507-Domiciliary Care,THIRD PARTY PAYMENTS,PRIVATE CONTRACTOR,Revenue
Walsall Council,http://opendatacommunities.org/id/metropolitan-district-council/walsall,WC120-343,30/11/2020,ADULT SOCIAL CARE,ADVANCE HEALTH CARE (UK) LTD,06/11/2020,323.82,6541,73507-Domiciliary Care,THIRD PARTY PAYMENTS,PRIVATE CONTRACTOR,Revenue
Walsall Council,http://opendatacommunities.org/id/metropolitan-district-council/walsall,WC120-344,30/11/2020,ADULT SOCIAL CARE,ADVANCE HEALTH CARE (UK) LTD,06/11/2020,377.79,6541,73507-Domiciliary Care,THIRD PARTY PAYMENTS,PRIVATE CONTRACTOR,Revenue
Walsall Council,http://opendatacommunities.org/id/metropolitan-district-council/walsall,WC120-345,30/11/2020,ADULT SOCIAL CARE,ADVANCE HEALTH CARE (UK) LTD,06/11/2020,377.79,6541,73507-Domiciliary Care,THIRD PARTY PAYMENTS,PRIVATE CONTRACTOR,Revenue
Walsall Council,http://opendatacommunities.org/id/metropolitan-district-council/walsall,WC120-346,30/11/2020,ADULT SOCIAL CARE,ADVANCE HEALTH CARE (UK) LTD,06/11/2020,485.73,6541,73507-Domiciliary Care,THIRD PARTY PAYMENTS,PRIVATE CONTRACTOR,Revenue
Walsall Council,http://opendatacommunities.org/id/metropolitan-district-council/walsall,WC120-347,30/11/2020,ADULT SOCIAL CARE,ADVANCE HEALTH CARE (UK) LTD,06/11/2020,755.58,6541,73507-Domiciliary Care,THIRD PARTY PAYMENTS,PRIVATE CONTRACTOR,Revenue
Walsall Council,http://opendatacommunities.org/id/metropolitan-district-council/walsall,WC120-348,30/11/2020,ADULT SOCIAL CARE,ADVANCE HEALTH CARE (UK) LTD,06/11/2020,485.73,6541,73507-Domiciliary Care,THIRD PARTY PAYMENTS,PRIVATE CONTRACTOR,Revenue
Walsall Council,http://opendatacommunities.org/id/metropolitan-district-council/walsall,WC120-349,30/11/2020,ADULT SOCIAL CARE,ADVANCE HEALTH CARE (UK) LTD,06/11/2020,593.67,6541,73507-Domiciliary Care,THIRD PARTY PAYMENTS,PRIVATE CONTRACTOR,Revenue
Walsall Council,http://opendatacommunities.org/id/metropolitan-district-council/walsall,WC120-350,30/11/2020,ADULT SOCIAL CARE,ADVANCE HEALTH CARE (UK) LTD,06/11/2020,431.76,6541,73507-Domiciliary Care,THIRD PARTY PAYMENTS,PRIVATE CONTRACTOR,Revenue
Walsall Council,http://opendatacommunities.org/id/metropolitan-district-council/walsall,WC120-351,30/11/2020,ADULT SOCIAL CARE,ADVANCE HEALTH CARE (UK) LTD,06/11/2020,323.82,6541,73507-Domiciliary Care,THIRD PARTY PAYMENTS,PRIVATE CONTRACTOR,Revenue
Walsall Council,http://opendatacommunities.org/id/metropolitan-district-council/walsall,WC120-352,30/11/2020,ADULT SOCIAL CARE,ADVANCE HEALTH CARE (UK) LTD,06/11/2020,431.76,6541,73507-Domiciliary Care,THIRD PARTY PAYMENTS,PRIVATE CONTRACTOR,Revenue
Walsall Council,http://opendatacommunities.org/id/metropolitan-district-council/walsall,WC120-353,30/11/2020,ADULT SOCIAL CARE,ADVANCE HEALTH CARE (UK) LTD,06/11/2020,593.88,6541,73507-Domiciliary Care,THIRD PARTY PAYMENTS,PRIVATE CONTRACTOR,Revenue
Walsall Council,http://opendatacommunities.org/id/metropolitan-district-council/walsall,WC120-354,30/11/2020,ADULT SOCIAL CARE,ADVANCE HEALTH CARE (UK) LTD,06/11/2020,485.73,6541,73507-Domiciliary Care,THIRD PARTY PAYMENTS,PRIVATE CONTRACTOR,Revenue
Walsall Council,http://opendatacommunities.org/id/metropolitan-district-council/walsall,WC120-355,30/11/2020,ADULT SOCIAL CARE,ADVANCE HEALTH CARE (UK) LTD,06/11/2020,863.52,6541,73507-Domiciliary Care,THIRD PARTY PAYMENTS,PRIVATE CONTRACTOR,Revenue
Walsall Council,http://opendatacommunities.org/id/metropolitan-district-council/walsall,WC120-356,30/11/2020,ADULT SOCIAL CARE,ADVANCE HEALTH CARE (UK) LTD,06/11/2020,323.82,6541,73507-Domiciliary Care,THIRD PARTY PAYMENTS,PRIVATE CONTRACTOR,Revenue
Walsall Council,http://opendatacommunities.org/id/metropolitan-district-council/walsall,WC120-357,30/11/2020,ADULT SOCIAL CARE,ADVANCE HEALTH CARE (UK) LTD,06/11/2020,377.79,6541,73507-Domiciliary Care,THIRD PARTY PAYMENTS,PRIVATE CONTRACTOR,Revenue
Walsall Council,http://opendatacommunities.org/id/metropolitan-district-council/walsall,WC120-358,30/11/2020,ADULT SOCIAL CARE,ADVANCE HEALTH CARE (UK) LTD,06/11/2020,485.73,6541,73507-Domiciliary Care,THIRD PARTY PAYMENTS,PRIVATE CONTRACTOR,Revenue
Walsall Council,http://opendatacommunities.org/id/metropolitan-district-council/walsall,WC120-359,30/11/2020,ADULT SOCIAL CARE,ADVANCE HEALTH CARE (UK) LTD,06/11/2020,359.80,6541,73507-Domiciliary Care,THIRD PARTY PAYMENTS,PRIVATE CONTRACTOR,Revenue
Walsall Council,http://opendatacommunities.org/id/metropolitan-district-council/walsall,WC120-360,30/11/2020,ADULT SOCIAL CARE,ADVANCE HEALTH CARE (UK) LTD,06/11/2020,323.82,6541,73507-Domiciliary Care,THIRD PARTY PAYMENTS,PRIVATE CONTRACTOR,Revenue
Walsall Council,http://opendatacommunities.org/id/metropolitan-district-council/walsall,WC120-361,30/11/2020,ADULT SOCIAL CARE,ADVANCE HEALTH CARE (UK) LTD,06/11/2020,485.73,6541,73507-Domiciliary Care,THIRD PARTY PAYMENTS,PRIVATE CONTRACTOR,Revenue
Walsall Council,http://opendatacommunities.org/id/metropolitan-district-council/walsall,WC120-362,30/11/2020,ADULT SOCIAL CARE,ADVANCE HEALTH CARE (UK) LTD,06/11/2020,323.82,6541,73507-Domiciliary Care,THIRD PARTY PAYMENTS,PRIVATE CONTRACTOR,Revenue
Walsall Council,http://opendatacommunities.org/id/metropolitan-district-council/walsall,WC120-363,30/11/2020,ADULT SOCIAL CARE,ADVANCE HEALTH CARE (UK) LTD,06/11/2020,701.61,6541,73507-Domiciliary Care,THIRD PARTY PAYMENTS,PRIVATE CONTRACTOR,Revenue
Walsall Council,http://opendatacommunities.org/id/metropolitan-district-council/walsall,WC120-364,30/11/2020,ADULT SOCIAL CARE,ADVANCE HEALTH CARE (UK) LTD,06/11/2020,359.80,6541,73507-Domiciliary Care,THIRD PARTY PAYMENTS,PRIVATE CONTRACTOR,Revenue
Walsall Council,http://opendatacommunities.org/id/metropolitan-district-council/walsall,WC120-365,30/11/2020,ADULT SOCIAL CARE,ADVANCE HEALTH CARE (UK) LTD,06/11/2020,404.81,6541,73507-Domiciliary Care,THIRD PARTY PAYMENTS,PRIVATE CONTRACTOR,Revenue
Walsall Council,http://opendatacommunities.org/id/metropolitan-district-council/walsall,WC120-366,30/11/2020,ADULT SOCIAL CARE,ADVANCE HEALTH CARE (UK) LTD,06/11/2020,431.76,6541,73507-Domiciliary Care,THIRD PARTY PAYMENTS,PRIVATE CONTRACTOR,Revenue
Walsall Council,http://opendatacommunities.org/id/metropolitan-district-council/walsall,WC120-367,30/11/2020,ADULT SOCIAL CARE,ADVANCE HEALTH CARE (UK) LTD,06/11/2020,485.73,6541,73507-Domiciliary Care,THIRD PARTY PAYMENTS,PRIVATE CONTRACTOR,Revenue
Walsall Council,http://opendatacommunities.org/id/metropolitan-district-council/walsall,WC120-368,30/11/2020,ADULT SOCIAL CARE,ADVANCE HEALTH CARE (UK) LTD,06/11/2020,431.76,6541,73507-Domiciliary Care,THIRD PARTY PAYMENTS,PRIVATE CONTRACTOR,Revenue
Walsall Council,http://opendatacommunities.org/id/metropolitan-district-council/walsall,WC120-369,30/11/2020,ADULT SOCIAL CARE,ADVANCE HEALTH CARE (UK) LTD,06/11/2020,755.58,6541,73507-Domiciliary Care,THIRD PARTY PAYMENTS,PRIVATE CONTRACTOR,Revenue
Walsall Council,http://opendatacommunities.org/id/metropolitan-district-council/walsall,WC120-370,30/11/2020,ADULT SOCIAL CARE,ADVANCE HEALTH CARE (UK) LTD,06/11/2020,462.60,6541,73507-Domiciliary Care,THIRD PARTY PAYMENTS,PRIVATE CONTRACTOR,Revenue
Walsall Council,http://opendatacommunities.org/id/metropolitan-district-council/walsall,WC120-371,30/11/2020,ADULT SOCIAL CARE,ADVANCE HEALTH CARE (UK) LTD,06/11/2020,524.28,6541,73507-Domiciliary Care,THIRD PARTY PAYMENTS,PRIVATE CONTRACTOR,Revenue
Walsall Council,http://opendatacommunities.org/id/metropolitan-district-council/walsall,WC120-372,30/11/2020,ADULT SOCIAL CARE,ADVANCE HEALTH CARE (UK) LTD,06/11/2020,323.82,6541,73507-Domiciliary Care,THIRD PARTY PAYMENTS,PRIVATE CONTRACTOR,Revenue
Walsall Council,http://opendatacommunities.org/id/metropolitan-district-council/walsall,WC120-373,30/11/2020,ADULT SOCIAL CARE,ADVANCE HEALTH CARE (UK) LTD,06/11/2020,316.11,6541,73507-Domiciliary Care,THIRD PARTY PAYMENTS,PRIVATE CONTRACTOR,Revenue
Walsall Council,http://opendatacommunities.org/id/metropolitan-district-council/walsall,WC120-374,30/11/2020,ADULT SOCIAL CARE,ADVANCE HEALTH CARE (UK) LTD,06/11/2020,593.88,6541,73507-Domiciliary Care,THIRD PARTY PAYMENTS,PRIVATE CONTRACTOR,Revenue
Walsall Council,http://opendatacommunities.org/id/metropolitan-district-council/walsall,WC120-375,30/11/2020,ADULT SOCIAL CARE,ADVANCE HEALTH CARE (UK) LTD,06/11/2020,485.73,6541,73507-Domiciliary Care,THIRD PARTY PAYMENTS,PRIVATE CONTRACTOR,Revenue
Walsall Council,http://opendatacommunities.org/id/metropolitan-district-council/walsall,WC120-376,30/11/2020,ADULT SOCIAL CARE,ADVANCE HEALTH CARE (UK) LTD,06/11/2020,863.52,6541,73507-Domiciliary Care,THIRD PARTY PAYMENTS,PRIVATE CONTRACTOR,Revenue
Walsall Council,http://opendatacommunities.org/id/metropolitan-district-council/walsall,WC120-377,30/11/2020,ADULT SOCIAL CARE,ADVANCE HEALTH CARE (UK) LTD,06/11/2020,323.82,6541,73507-Domiciliary Care,THIRD PARTY PAYMENTS,PRIVATE CONTRACTOR,Revenue
Walsall Council,http://opendatacommunities.org/id/metropolitan-district-council/walsall,WC120-378,30/11/2020,ADULT SOCIAL CARE,ADVANCE HEALTH CARE (UK) LTD,06/11/2020,377.79,6541,73507-Domiciliary Care,THIRD PARTY PAYMENTS,PRIVATE CONTRACTOR,Revenue
Walsall Council,http://opendatacommunities.org/id/metropolitan-district-council/walsall,WC120-379,30/11/2020,ADULT SOCIAL CARE,ADVANCE HEALTH CARE (UK) LTD,06/11/2020,359.80,6541,73507-Domiciliary Care,THIRD PARTY PAYMENTS,PRIVATE CONTRACTOR,Revenue
Walsall Council,http://opendatacommunities.org/id/metropolitan-district-council/walsall,WC120-380,30/11/2020,ADULT SOCIAL CARE,ADVANCE HEALTH CARE (UK) LTD,06/11/2020,323.82,6541,73507-Domiciliary Care,THIRD PARTY PAYMENTS,PRIVATE CONTRACTOR,Revenue
Walsall Council,http://opendatacommunities.org/id/metropolitan-district-council/walsall,WC120-381,30/11/2020,ADULT SOCIAL CARE,ADVANCE HEALTH CARE (UK) LTD,06/11/2020,377.79,6541,73507-Domiciliary Care,THIRD PARTY PAYMENTS,PRIVATE CONTRACTOR,Revenue
Walsall Council,http://opendatacommunities.org/id/metropolitan-district-council/walsall,WC120-382,30/11/2020,ADULT SOCIAL CARE,ADVANCE HEALTH CARE (UK) LTD,06/11/2020,485.80,6541,73507-Domiciliary Care,THIRD PARTY PAYMENTS,PRIVATE CONTRACTOR,Revenue
Walsall Council,http://opendatacommunities.org/id/metropolitan-district-council/walsall,WC120-383,30/11/2020,ADULT SOCIAL CARE,ADVANCE HEALTH CARE (UK) LTD,06/11/2020,501.15,6541,73507-Domiciliary Care,THIRD PARTY PAYMENTS,PRIVATE CONTRACTOR,Revenue
Walsall Council,http://opendatacommunities.org/id/metropolitan-district-council/walsall,WC120-384,30/11/2020,ADULT SOCIAL CARE,ADVANCE HEALTH CARE (UK) LTD,06/11/2020,431.76,6541,73507-Domiciliary Care,THIRD PARTY PAYMENTS,PRIVATE CONTRACTOR,Revenue
Walsall Council,http://opendatacommunities.org/id/metropolitan-district-council/walsall,WC120-385,30/11/2020,ADULT SOCIAL CARE,ADVANCE HEALTH CARE (UK) LTD,06/11/2020,431.76,6541,73507-Domiciliary Care,THIRD PARTY PAYMENTS,PRIVATE CONTRACTOR,Revenue
Walsall Council,http://opendatacommunities.org/id/metropolitan-district-council/walsall,WC120-386,30/11/2020,ADULT SOCIAL CARE,ADVANCE HEALTH CARE (UK) LTD,06/11/2020,485.73,6541,73507-Domiciliary Care,THIRD PARTY PAYMENTS,PRIVATE CONTRACTOR,Revenue
Walsall Council,http://opendatacommunities.org/id/metropolitan-district-council/walsall,WC120-387,30/11/2020,ADULT SOCIAL CARE,ADVANCE HEALTH CARE (UK) LTD,06/11/2020,485.73,6541,73507-Domiciliary Care,THIRD PARTY PAYMENTS,PRIVATE CONTRACTOR,Revenue
Walsall Council,http://opendatacommunities.org/id/metropolitan-district-council/walsall,WC120-388,30/11/2020,ADULT SOCIAL CARE,ADVANCE HEALTH CARE (UK) LTD,06/11/2020,377.79,6541,73507-Domiciliary Care,THIRD PARTY PAYMENTS,PRIVATE CONTRACTOR,Revenue
Walsall Council,http://opendatacommunities.org/id/metropolitan-district-council/walsall,WC120-389,30/11/2020,ADULT SOCIAL CARE,ADVANCE HEALTH CARE (UK) LTD,06/11/2020,485.73,6541,73507-Domiciliary Care,THIRD PARTY PAYMENTS,PRIVATE CONTRACTOR,Revenue
Walsall Council,http://opendatacommunities.org/id/metropolitan-district-council/walsall,WC120-390,30/11/2020,ADULT SOCIAL CARE,ADVANCE HEALTH CARE (UK) LTD,06/11/2020,824.97,6541,73507-Domiciliary Care,THIRD PARTY PAYMENTS,PRIVATE CONTRACTOR,Revenue
Walsall Council,http://opendatacommunities.org/id/metropolitan-district-council/walsall,WC120-391,30/11/2020,ADULT SOCIAL CARE,ADVANCE HEALTH CARE (UK) LTD,06/11/2020,485.73,6541,73507-Domiciliary Care,THIRD PARTY PAYMENTS,PRIVATE CONTRACTOR,Revenue
Walsall Council,http://opendatacommunities.org/id/metropolitan-district-council/walsall,WC120-392,30/11/2020,ADULT SOCIAL CARE,ADVANCE HEALTH CARE (UK) LTD,06/11/2020,485.73,6541,73507-Domiciliary Care,THIRD PARTY PAYMENTS,PRIVATE CONTRACTOR,Revenue
Walsall Council,http://opendatacommunities.org/id/metropolitan-district-council/walsall,WC120-393,30/11/2020,ADULT SOCIAL CARE,ADVANCE HEALTH CARE (UK) LTD,06/11/2020,431.76,6541,73507-Domiciliary Care,THIRD PARTY PAYMENTS,PRIVATE CONTRACTOR,Revenue
Walsall Council,http://opendatacommunities.org/id/metropolitan-district-council/walsall,WC120-394,30/11/2020,ADULT SOCIAL CARE,ADVANCE HEALTH CARE (UK) LTD,06/11/2020,539.70,6541,73507-Domiciliary Care,THIRD PARTY PAYMENTS,PRIVATE CONTRACTOR,Revenue
Walsall Council,http://opendatacommunities.org/id/metropolitan-district-council/walsall,WC120-395,30/11/2020,ADULT SOCIAL CARE,ADVANCE HEALTH CARE (UK) LTD,06/11/2020,431.76,6541,73507-Domiciliary Care,THIRD PARTY PAYMENTS,PRIVATE CONTRACTOR,Revenue
Walsall Council,http://opendatacommunities.org/id/metropolitan-district-council/walsall,WC120-396,30/11/2020,ADULT SOCIAL CARE,ADVANCE HEALTH CARE (UK) LTD,06/11/2020,431.76,6541,73507-Domiciliary Care,THIRD PARTY PAYMENTS,PRIVATE CONTRACTOR,Revenue
Walsall Council,http://opendatacommunities.org/id/metropolitan-district-council/walsall,WC120-397,30/11/2020,ADULT SOCIAL CARE,ADVANCE HEALTH CARE (UK) LTD,06/11/2020,485.73,6541,73507-Domiciliary Care,THIRD PARTY PAYMENTS,PRIVATE CONTRACTOR,Revenue
Walsall Council,http://opendatacommunities.org/id/metropolitan-district-council/walsall,WC120-398,30/11/2020,ADULT SOCIAL CARE,ADVANCE HEALTH CARE (UK) LTD,06/11/2020,323.82,6541,73507-Domiciliary Care,THIRD PARTY PAYMENTS,PRIVATE CONTRACTOR,Revenue
Walsall Council,http://opendatacommunities.org/id/metropolitan-district-council/walsall,WC120-399,30/11/2020,ADULT SOCIAL CARE,ADVANCE HEALTH CARE (UK) LTD,06/11/2020,431.76,6541,73507-Domiciliary Care,THIRD PARTY PAYMENTS,PRIVATE CONTRACTOR,Revenue
Walsall Council,http://opendatacommunities.org/id/metropolitan-district-council/walsall,WC120-400,30/11/2020,ADULT SOCIAL CARE,ADVANCE HEALTH CARE (UK) LTD,20/11/2020,485.73,6541,73507-Domiciliary Care,THIRD PARTY PAYMENTS,PRIVATE CONTRACTOR,Revenue
Walsall Council,http://opendatacommunities.org/id/metropolitan-district-council/walsall,WC120-401,30/11/2020,ADULT SOCIAL CARE,ADVANCE HEALTH CARE (UK) LTD,20/11/2020,824.97,6541,73507-Domiciliary Care,THIRD PARTY PAYMENTS,PRIVATE CONTRACTOR,Revenue
Walsall Council,http://opendatacommunities.org/id/metropolitan-district-council/walsall,WC120-402,30/11/2020,ADULT SOCIAL CARE,ADVANCE HEALTH CARE (UK) LTD,20/11/2020,485.73,6541,73507-Domiciliary Care,THIRD PARTY PAYMENTS,PRIVATE CONTRACTOR,Revenue
Walsall Council,http://opendatacommunities.org/id/metropolitan-district-council/walsall,WC120-403,30/11/2020,ADULT SOCIAL CARE,ADVANCE HEALTH CARE (UK) LTD,20/11/2020,485.73,6541,73507-Domiciliary Care,THIRD PARTY PAYMENTS,PRIVATE CONTRACTOR,Revenue
Walsall Council,http://opendatacommunities.org/id/metropolitan-district-council/walsall,WC120-404,30/11/2020,ADULT SOCIAL CARE,ADVANCE HEALTH CARE (UK) LTD,20/11/2020,277.56,6541,73507-Domiciliary Care,THIRD PARTY PAYMENTS,PRIVATE CONTRACTOR,Revenue
Walsall Council,http://opendatacommunities.org/id/metropolitan-district-council/walsall,WC120-405,30/11/2020,ADULT SOCIAL CARE,ADVANCE HEALTH CARE (UK) LTD,20/11/2020,701.61,6541,73507-Domiciliary Care,THIRD PARTY PAYMENTS,PRIVATE CONTRACTOR,Revenue
Walsall Council,http://opendatacommunities.org/id/metropolitan-district-council/walsall,WC120-406,30/11/2020,ADULT SOCIAL CARE,ADVANCE HEALTH CARE (UK) LTD,20/11/2020,439.47,6541,73507-Domiciliary Care,THIRD PARTY PAYMENTS,PRIVATE CONTRACTOR,Revenue
Walsall Council,http://opendatacommunities.org/id/metropolitan-district-council/walsall,WC120-407,30/11/2020,ADULT SOCIAL CARE,ADVANCE HEALTH CARE (UK) LTD,20/11/2020,593.88,6541,73507-Domiciliary Care,THIRD PARTY PAYMENTS,PRIVATE CONTRACTOR,Revenue
Walsall Council,http://opendatacommunities.org/id/metropolitan-district-council/walsall,WC120-408,30/11/2020,ADULT SOCIAL CARE,ADVANCE HEALTH CARE (UK) LTD,20/11/2020,485.73,6541,73507-Domiciliary Care,THIRD PARTY PAYMENTS,PRIVATE CONTRACTOR,Revenue
Walsall Council,http://opendatacommunities.org/id/metropolitan-district-council/walsall,WC120-409,30/11/2020,ADULT SOCIAL CARE,ADVANCE HEALTH CARE (UK) LTD,20/11/2020,863.52,6541,73507-Domiciliary Care,THIRD PARTY PAYMENTS,PRIVATE CONTRACTOR,Revenue
Walsall Council,http://opendatacommunities.org/id/metropolitan-district-council/walsall,WC120-410,30/11/2020,ADULT SOCIAL CARE,ADVANCE HEALTH CARE (UK) LTD,20/11/2020,323.82,6541,73507-Domiciliary Care,THIRD PARTY PAYMENTS,PRIVATE CONTRACTOR,Revenue
Walsall Council,http://opendatacommunities.org/id/metropolitan-district-council/walsall,WC120-411,30/11/2020,ADULT SOCIAL CARE,ADVANCE HEALTH CARE (UK) LTD,20/11/2020,431.76,6541,73507-Domiciliary Care,THIRD PARTY PAYMENTS,PRIVATE CONTRACTOR,Revenue
Walsall Council,http://opendatacommunities.org/id/metropolitan-district-council/walsall,WC120-412,30/11/2020,ADULT SOCIAL CARE,ADVANCE HEALTH CARE (UK) LTD,20/11/2020,539.70,6541,73507-Domiciliary Care,THIRD PARTY PAYMENTS,PRIVATE CONTRACTOR,Revenue
Walsall Council,http://opendatacommunities.org/id/metropolitan-district-council/walsall,WC120-413,30/11/2020,ADULT SOCIAL CARE,ADVANCE HEALTH CARE (UK) LTD,20/11/2020,431.76,6541,73507-Domiciliary Care,THIRD PARTY PAYMENTS,PRIVATE CONTRACTOR,Revenue
Walsall Council,http://opendatacommunities.org/id/metropolitan-district-council/walsall,WC120-414,30/11/2020,ADULT SOCIAL CARE,ADVANCE HEALTH CARE (UK) LTD,20/11/2020,377.79,6541,73507-Domiciliary Care,THIRD PARTY PAYMENTS,PRIVATE CONTRACTOR,Revenue
Walsall Council,http://opendatacommunities.org/id/metropolitan-district-council/walsall,WC120-415,30/11/2020,ADULT SOCIAL CARE,ADVANCE HEALTH CARE (UK) LTD,20/11/2020,323.82,6541,73507-Domiciliary Care,THIRD PARTY PAYMENTS,PRIVATE CONTRACTOR,Revenue
Walsall Council,http://opendatacommunities.org/id/metropolitan-district-council/walsall,WC120-416,30/11/2020,ADULT SOCIAL CARE,ADVANCE HEALTH CARE (UK) LTD,20/11/2020,431.76,6541,73507-Domiciliary Care,THIRD PARTY PAYMENTS,PRIVATE CONTRACTOR,Revenue
Walsall Council,http://opendatacommunities.org/id/metropolitan-district-council/walsall,WC120-417,30/11/2020,ADULT SOCIAL CARE,ADVANCE HEALTH CARE (UK) LTD,20/11/2020,359.80,6541,73507-Domiciliary Care,THIRD PARTY PAYMENTS,PRIVATE CONTRACTOR,Revenue
Walsall Council,http://opendatacommunities.org/id/metropolitan-district-council/walsall,WC120-418,30/11/2020,ADULT SOCIAL CARE,ADVANCE HEALTH CARE (UK) LTD,20/11/2020,359.80,6541,73507-Domiciliary Care,THIRD PARTY PAYMENTS,PRIVATE CONTRACTOR,Revenue
Walsall Council,http://opendatacommunities.org/id/metropolitan-district-council/walsall,WC120-419,30/11/2020,ADULT SOCIAL CARE,ADVANCE HEALTH CARE (UK) LTD,20/11/2020,485.73,6541,73507-Domiciliary Care,THIRD PARTY PAYMENTS,PRIVATE CONTRACTOR,Revenue
Walsall Council,http://opendatacommunities.org/id/metropolitan-district-council/walsall,WC120-420,30/11/2020,ADULT SOCIAL CARE,ADVANCE HEALTH CARE (UK) LTD,20/11/2020,755.58,6541,73507-Domiciliary Care,THIRD PARTY PAYMENTS,PRIVATE CONTRACTOR,Revenue
Walsall Council,http://opendatacommunities.org/id/metropolitan-district-council/walsall,WC120-421,30/11/2020,ADULT SOCIAL CARE,ADVANCE HEALTH CARE (UK) LTD,20/11/2020,462.60,6541,73507-Domiciliary Care,THIRD PARTY PAYMENTS,PRIVATE CONTRACTOR,Revenue
Walsall Council,http://opendatacommunities.org/id/metropolitan-district-council/walsall,WC120-422,30/11/2020,ADULT SOCIAL CARE,ADVANCE HEALTH CARE (UK) LTD,20/11/2020,524.28,6541,73507-Domiciliary Care,THIRD PARTY PAYMENTS,PRIVATE CONTRACTOR,Revenue
Walsall Council,http://opendatacommunities.org/id/metropolitan-district-council/walsall,WC120-423,30/11/2020,ADULT SOCIAL CARE,ADVANCE HEALTH CARE (UK) LTD,20/11/2020,431.76,6541,73507-Domiciliary Care,THIRD PARTY PAYMENTS,PRIVATE CONTRACTOR,Revenue
Walsall Council,http://opendatacommunities.org/id/metropolitan-district-council/walsall,WC120-424,30/11/2020,ADULT SOCIAL CARE,ADVANCE HEALTH CARE (UK) LTD,20/11/2020,323.82,6541,73507-Domiciliary Care,THIRD PARTY PAYMENTS,PRIVATE CONTRACTOR,Revenue
Walsall Council,http://opendatacommunities.org/id/metropolitan-district-council/walsall,WC120-425,30/11/2020,ADULT SOCIAL CARE,ADVANCE HEALTH CARE (UK) LTD,20/11/2020,431.76,6541,73507-Domiciliary Care,THIRD PARTY PAYMENTS,PRIVATE CONTRACTOR,Revenue
Walsall Council,http://opendatacommunities.org/id/metropolitan-district-council/walsall,WC120-426,30/11/2020,ADULT SOCIAL CARE,ADVANCE HEALTH CARE (UK) LTD,20/11/2020,485.73,6541,73507-Domiciliary Care,THIRD PARTY PAYMENTS,PRIVATE CONTRACTOR,Revenue
Walsall Council,http://opendatacommunities.org/id/metropolitan-district-council/walsall,WC120-427,30/11/2020,ADULT SOCIAL CARE,ADVANCE HEALTH CARE (UK) LTD,20/11/2020,485.73,6541,73507-Domiciliary Care,THIRD PARTY PAYMENTS,PRIVATE CONTRACTOR,Revenue
Walsall Council,http://opendatacommunities.org/id/metropolitan-district-council/walsall,WC120-428,30/11/2020,ADULT SOCIAL CARE,ADVANCE HEALTH CARE (UK) LTD,20/11/2020,485.80,6541,73507-Domiciliary Care,THIRD PARTY PAYMENTS,PRIVATE CONTRACTOR,Revenue
Walsall Council,http://opendatacommunities.org/id/metropolitan-district-council/walsall,WC120-429,30/11/2020,ADULT SOCIAL CARE,ADVANCE HEALTH CARE (UK) LTD,20/11/2020,501.15,6541,73507-Domiciliary Care,THIRD PARTY PAYMENTS,PRIVATE CONTRACTOR,Revenue
Walsall Council,http://opendatacommunities.org/id/metropolitan-district-council/walsall,WC120-430,30/11/2020,ADULT SOCIAL CARE,ADVANCE HEALTH CARE (UK) LTD,20/11/2020,431.76,6541,73507-Domiciliary Care,THIRD PARTY PAYMENTS,PRIVATE CONTRACTOR,Revenue
Walsall Council,http://opendatacommunities.org/id/metropolitan-district-council/walsall,WC120-431,30/11/2020,ADULT SOCIAL CARE,ADVANCE HEALTH CARE (UK) LTD,20/11/2020,377.79,6541,73507-Domiciliary Care,THIRD PARTY PAYMENTS,PRIVATE CONTRACTOR,Revenue
Walsall Council,http://opendatacommunities.org/id/metropolitan-district-council/walsall,WC120-432,30/11/2020,ADULT SOCIAL CARE,ADVANCE HEALTH CARE (UK) LTD,20/11/2020,485.73,6541,73507-Domiciliary Care,THIRD PARTY PAYMENTS,PRIVATE CONTRACTOR,Revenue
Walsall Council,http://opendatacommunities.org/id/metropolitan-district-council/walsall,WC120-433,30/11/2020,ADULT SOCIAL CARE,ADVANCE HEALTH CARE (UK) LTD,20/11/2020,377.79,6541,73507-Domiciliary Care,THIRD PARTY PAYMENTS,PRIVATE CONTRACTOR,Revenue
Walsall Council,http://opendatacommunities.org/id/metropolitan-district-council/walsall,WC120-434,30/11/2020,ADULT SOCIAL CARE,ADVANCE HEALTH CARE (UK) LTD,20/11/2020,"1,048.56",6541,73507-Domiciliary Care,THIRD PARTY PAYMENTS,PRIVATE CONTRACTOR,Revenue
Walsall Council,http://opendatacommunities.org/id/metropolitan-district-council/walsall,WC120-435,30/11/2020,ADULT SOCIAL CARE,ADVANCE HEALTH CARE (UK) LTD,20/11/2020,359.80,6541,73507-Domiciliary Care,THIRD PARTY PAYMENTS,PRIVATE CONTRACTOR,Revenue
Walsall Council,http://opendatacommunities.org/id/metropolitan-district-council/walsall,WC120-436,30/11/2020,ADULT SOCIAL CARE,ADVANCE HEALTH CARE (UK) LTD,20/11/2020,431.76,6541,73507-Domiciliary Care,THIRD PARTY PAYMENTS,PRIVATE CONTRACTOR,Revenue
Walsall Council,http://opendatacommunities.org/id/metropolitan-district-council/walsall,WC120-437,30/11/2020,ADULT SOCIAL CARE,ADVANCE HEALTH CARE (UK) LTD,20/11/2020,485.73,6541,73507-Domiciliary Care,THIRD PARTY PAYMENTS,PRIVATE CONTRACTOR,Revenue
Walsall Council,http://opendatacommunities.org/id/metropolitan-district-council/walsall,WC120-438,30/11/2020,ADULT SOCIAL CARE,ADVANCE HEALTH CARE (UK) LTD,20/11/2020,824.97,6541,73507-Domiciliary Care,THIRD PARTY PAYMENTS,PRIVATE CONTRACTOR,Revenue
Walsall Council,http://opendatacommunities.org/id/metropolitan-district-council/walsall,WC120-439,30/11/2020,ADULT SOCIAL CARE,ADVANCE HEALTH CARE (UK) LTD,20/11/2020,485.73,6541,73507-Domiciliary Care,THIRD PARTY PAYMENTS,PRIVATE CONTRACTOR,Revenue
Walsall Council,http://opendatacommunities.org/id/metropolitan-district-council/walsall,WC120-440,30/11/2020,ADULT SOCIAL CARE,ADVANCE HEALTH CARE (UK) LTD,20/11/2020,485.73,6541,73507-Domiciliary Care,THIRD PARTY PAYMENTS,PRIVATE CONTRACTOR,Revenue
Walsall Council,http://opendatacommunities.org/id/metropolitan-district-council/walsall,WC120-441,30/11/2020,ADULT SOCIAL CARE,ADVANCE HEALTH CARE (UK) LTD,20/11/2020,431.76,6541,73507-Domiciliary Care,THIRD PARTY PAYMENTS,PRIVATE CONTRACTOR,Revenue
Walsall Council,http://opendatacommunities.org/id/metropolitan-district-council/walsall,WC120-442,30/11/2020,ADULT SOCIAL CARE,ADVANCE HEALTH CARE (UK) LTD,20/11/2020,539.70,6541,73507-Domiciliary Care,THIRD PARTY PAYMENTS,PRIVATE CONTRACTOR,Revenue
Walsall Council,http://opendatacommunities.org/id/metropolitan-district-council/walsall,WC120-443,30/11/2020,ADULT SOCIAL CARE,ADVANCE HEALTH CARE (UK) LTD,20/11/2020,431.76,6541,73507-Domiciliary Care,THIRD PARTY PAYMENTS,PRIVATE CONTRACTOR,Revenue
Walsall Council,http://opendatacommunities.org/id/metropolitan-district-council/walsall,WC120-444,30/11/2020,ADULT SOCIAL CARE,ADVANCE HEALTH CARE (UK) LTD,20/11/2020,323.82,6541,73507-Domiciliary Care,THIRD PARTY PAYMENTS,PRIVATE CONTRACTOR,Revenue
Walsall Council,http://opendatacommunities.org/id/metropolitan-district-council/walsall,WC120-445,30/11/2020,ADULT SOCIAL CARE,ADVANCE HEALTH CARE (UK) LTD,20/11/2020,439.47,6541,73507-Domiciliary Care,THIRD PARTY PAYMENTS,PRIVATE CONTRACTOR,Revenue
Walsall Council,http://opendatacommunities.org/id/metropolitan-district-council/walsall,WC120-446,30/11/2020,ADULT SOCIAL CARE,ADVANCE HEALTH CARE (UK) LTD,20/11/2020,593.88,6541,73507-Domiciliary Care,THIRD PARTY PAYMENTS,PRIVATE CONTRACTOR,Revenue
Walsall Council,http://opendatacommunities.org/id/metropolitan-district-council/walsall,WC120-447,30/11/2020,ADULT SOCIAL CARE,ADVANCE HEALTH CARE (UK) LTD,20/11/2020,485.73,6541,73507-Domiciliary Care,THIRD PARTY PAYMENTS,PRIVATE CONTRACTOR,Revenue
Walsall Council,http://opendatacommunities.org/id/metropolitan-district-council/walsall,WC120-448,30/11/2020,ADULT SOCIAL CARE,ADVANCE HEALTH CARE (UK) LTD,20/11/2020,863.52,6541,73507-Domiciliary Care,THIRD PARTY PAYMENTS,PRIVATE CONTRACTOR,Revenue
Walsall Council,http://opendatacommunities.org/id/metropolitan-district-council/walsall,WC120-449,30/11/2020,ADULT SOCIAL CARE,ADVANCE HEALTH CARE (UK) LTD,20/11/2020,323.82,6541,73507-Domiciliary Care,THIRD PARTY PAYMENTS,PRIVATE CONTRACTOR,Revenue
Walsall Council,http://opendatacommunities.org/id/metropolitan-district-council/walsall,WC120-450,30/11/2020,ADULT SOCIAL CARE,ADVANCE HEALTH CARE (UK) LTD,20/11/2020,377.79,6541,73507-Domiciliary Care,THIRD PARTY PAYMENTS,PRIVATE CONTRACTOR,Revenue
Walsall Council,http://opendatacommunities.org/id/metropolitan-district-council/walsall,WC120-451,30/11/2020,ADULT SOCIAL CARE,ADVANCE HEALTH CARE (UK) LTD,20/11/2020,431.76,6541,73507-Domiciliary Care,THIRD PARTY PAYMENTS,PRIVATE CONTRACTOR,Revenue
Walsall Council,http://opendatacommunities.org/id/metropolitan-district-council/walsall,WC120-452,30/11/2020,ADULT SOCIAL CARE,ADVANCE HEALTH CARE (UK) LTD,20/11/2020,359.80,6541,73507-Domiciliary Care,THIRD PARTY PAYMENTS,PRIVATE CONTRACTOR,Revenue
Walsall Council,http://opendatacommunities.org/id/metropolitan-district-council/walsall,WC120-453,30/11/2020,ADULT SOCIAL CARE,ADVANCE HEALTH CARE (UK) LTD,20/11/2020,485.80,6541,73507-Domiciliary Care,THIRD PARTY PAYMENTS,PRIVATE CONTRACTOR,Revenue
Walsall Council,http://opendatacommunities.org/id/metropolitan-district-council/walsall,WC120-454,30/11/2020,ADULT SOCIAL CARE,ADVANCE HEALTH CARE (UK) LTD,20/11/2020,501.15,6541,73507-Domiciliary Care,THIRD PARTY PAYMENTS,PRIVATE CONTRACTOR,Revenue
Walsall Council,http://opendatacommunities.org/id/metropolitan-district-council/walsall,WC120-455,30/11/2020,ADULT SOCIAL CARE,ADVANCE HEALTH CARE (UK) LTD,20/11/2020,431.76,6541,73507-Domiciliary Care,THIRD PARTY PAYMENTS,PRIVATE CONTRACTOR,Revenue
Walsall Council,http://opendatacommunities.org/id/metropolitan-district-council/walsall,WC120-456,30/11/2020,ADULT SOCIAL CARE,ADVANCE HEALTH CARE (UK) LTD,20/11/2020,377.79,6541,73507-Domiciliary Care,THIRD PARTY PAYMENTS,PRIVATE CONTRACTOR,Revenue
Walsall Council,http://opendatacommunities.org/id/metropolitan-district-council/walsall,WC120-457,30/11/2020,ADULT SOCIAL CARE,ADVANCE HEALTH CARE (UK) LTD,20/11/2020,431.76,6541,73507-Domiciliary Care,THIRD PARTY PAYMENTS,PRIVATE CONTRACTOR,Revenue
Walsall Council,http://opendatacommunities.org/id/metropolitan-district-council/walsall,WC120-458,30/11/2020,ADULT SOCIAL CARE,ADVANCE HEALTH CARE (UK) LTD,20/11/2020,339.24,6541,73507-Domiciliary Care,THIRD PARTY PAYMENTS,PRIVATE CONTRACTOR,Revenue
Walsall Council,http://opendatacommunities.org/id/metropolitan-district-council/walsall,WC120-459,30/11/2020,ADULT SOCIAL CARE,ADVANCE HEALTH CARE (UK) LTD,20/11/2020,701.61,6541,73507-Domiciliary Care,THIRD PARTY PAYMENTS,PRIVATE CONTRACTOR,Revenue
Walsall Council,http://opendatacommunities.org/id/metropolitan-district-council/walsall,WC120-460,30/11/2020,ADULT SOCIAL CARE,ADVANCE HEALTH CARE (UK) LTD,20/11/2020,431.76,6541,73507-Domiciliary Care,THIRD PARTY PAYMENTS,PRIVATE CONTRACTOR,Revenue
Walsall Council,http://opendatacommunities.org/id/metropolitan-district-council/walsall,WC120-461,30/11/2020,ADULT SOCIAL CARE,ADVANCE HEALTH CARE (UK) LTD,20/11/2020,485.73,6541,73507-Domiciliary Care,THIRD PARTY PAYMENTS,PRIVATE CONTRACTOR,Revenue
Walsall Council,http://opendatacommunities.org/id/metropolitan-district-council/walsall,WC120-462,30/11/2020,ADULT SOCIAL CARE,ADVANCE HEALTH CARE (UK) LTD,20/11/2020,755.58,6541,73507-Domiciliary Care,THIRD PARTY PAYMENTS,PRIVATE CONTRACTOR,Revenue
Walsall Council,http://opendatacommunities.org/id/metropolitan-district-council/walsall,WC120-463,30/11/2020,ADULT SOCIAL CARE,ADVANCE HEALTH CARE (UK) LTD,20/11/2020,470.31,6541,73507-Domiciliary Care,THIRD PARTY PAYMENTS,PRIVATE CONTRACTOR,Revenue
Walsall Council,http://opendatacommunities.org/id/metropolitan-district-council/walsall,WC120-464,30/11/2020,ADULT SOCIAL CARE,ADVANCE HEALTH CARE (UK) LTD,20/11/2020,431.76,6541,73507-Domiciliary Care,THIRD PARTY PAYMENTS,PRIVATE CONTRACTOR,Revenue
Walsall Council,http://opendatacommunities.org/id/metropolitan-district-council/walsall,WC120-465,30/11/2020,ADULT SOCIAL CARE,ADVANCE HEALTH CARE (UK) LTD,20/11/2020,485.73,6541,73507-Domiciliary Care,THIRD PARTY PAYMENTS,PRIVATE CONTRACTOR,Revenue
Walsall Council,http://opendatacommunities.org/id/metropolitan-district-council/walsall,WC120-466,30/11/2020,ADULT SOCIAL CARE,ADVANCE HEALTH CARE (UK) LTD,20/11/2020,485.73,6541,73507-Domiciliary Care,THIRD PARTY PAYMENTS,PRIVATE CONTRACTOR,Revenue
Walsall Council,http://opendatacommunities.org/id/metropolitan-district-council/walsall,WC120-467,30/11/2020,ADULT SOCIAL CARE,ADVANCE HEALTH CARE (UK) LTD,20/11/2020,431.76,6541,73507-Domiciliary Care,THIRD PARTY PAYMENTS,PRIVATE CONTRACTOR,Revenue
Walsall Council,http://opendatacommunities.org/id/metropolitan-district-council/walsall,WC120-468,30/11/2020,ADULT SOCIAL CARE,ADVANCE HEALTH CARE (UK) LTD,20/11/2020,377.79,6541,73507-Domiciliary Care,THIRD PARTY PAYMENTS,PRIVATE CONTRACTOR,Revenue
Walsall Council,http://opendatacommunities.org/id/metropolitan-district-council/walsall,WC120-469,30/11/2020,ADULT SOCIAL CARE,ADVANCE HEALTH CARE (UK) LTD,20/11/2020,485.73,6541,73507-Domiciliary Care,THIRD PARTY PAYMENTS,PRIVATE CONTRACTOR,Revenue
Walsall Council,http://opendatacommunities.org/id/metropolitan-district-council/walsall,WC120-470,30/11/2020,ADULT SOCIAL CARE,ADVANCE HEALTH CARE (UK) LTD,20/11/2020,462.60,6541,73507-Domiciliary Care,THIRD PARTY PAYMENTS,PRIVATE CONTRACTOR,Revenue
Walsall Council,http://opendatacommunities.org/id/metropolitan-district-council/walsall,WC120-471,30/11/2020,ADULT SOCIAL CARE,ADVANCE HEALTH CARE (UK) LTD,20/11/2020,524.28,6541,73507-Domiciliary Care,THIRD PARTY PAYMENTS,PRIVATE CONTRACTOR,Revenue
Walsall Council,http://opendatacommunities.org/id/metropolitan-district-council/walsall,WC120-472,30/11/2020,ADULT SOCIAL CARE,ADVANCE HEALTH CARE (UK) LTD,20/11/2020,323.82,6541,73507-Domiciliary Care,THIRD PARTY PAYMENTS,PRIVATE CONTRACTOR,Revenue
Walsall Council,http://opendatacommunities.org/id/metropolitan-district-council/walsall,WC120-473,30/11/2020,ADULT SOCIAL CARE,ADVANCE HEALTH CARE (UK) LTD,20/11/2020,485.73,6541,73507-Domiciliary Care,THIRD PARTY PAYMENTS,PRIVATE CONTRACTOR,Revenue
Walsall Council,http://opendatacommunities.org/id/metropolitan-district-council/walsall,WC120-474,30/11/2020,ADULT SOCIAL CARE,ADVANCE HEALTH CARE (UK) LTD,20/11/2020,277.56,6541,73507-Domiciliary Care,THIRD PARTY PAYMENTS,PRIVATE CONTRACTOR,Revenue
Walsall Council,http://opendatacommunities.org/id/metropolitan-district-council/walsall,WC120-475,30/11/2020,ADULT SOCIAL CARE,ADVANCE HEALTH CARE (UK) LTD,06/11/2020,-485.73,6554,73025-Professional Services-Priv Contractor & Other Agencies,THIRD PARTY PAYMENTS,PRIVATE CONTRACTOR,Revenue
Walsall Council,http://opendatacommunities.org/id/metropolitan-district-council/walsall,WC120-476,30/11/2020,ADULT SOCIAL CARE,ADVANCE HEALTH CARE (UK) LTD,06/11/2020,-485.73,6554,73025-Professional Services-Priv Contractor & Other Agencies,THIRD PARTY PAYMENTS,PRIVATE CONTRACTOR,Revenue
Walsall Council,http://opendatacommunities.org/id/metropolitan-district-council/walsall,WC120-477,30/11/2020,ADULT SOCIAL CARE,ADVANCE HEALTH CARE (UK) LTD,06/11/2020,-377.79,6554,73025-Professional Services-Priv Contractor & Other Agencies,THIRD PARTY PAYMENTS,PRIVATE CONTRACTOR,Revenue
Walsall Council,http://opendatacommunities.org/id/metropolitan-district-council/walsall,WC120-478,30/11/2020,ADULT SOCIAL CARE,ADVANCE HEALTH CARE (UK) LTD,06/11/2020,-485.73,6554,73025-Professional Services-Priv Contractor & Other Agencies,THIRD PARTY PAYMENTS,PRIVATE CONTRACTOR,Revenue
Walsall Council,http://opendatacommunities.org/id/metropolitan-district-council/walsall,WC120-479,30/11/2020,ADULT SOCIAL CARE,ADVANCE HEALTH CARE (UK) LTD,06/11/2020,-485.73,6554,73025-Professional Services-Priv Contractor & Other Agencies,THIRD PARTY PAYMENTS,PRIVATE CONTRACTOR,Revenue
Walsall Council,http://opendatacommunities.org/id/metropolitan-district-council/walsall,WC120-480,30/11/2020,ADULT SOCIAL CARE,ADVANCE HEALTH CARE (UK) LTD,10/11/2020,"5,519.95",6550,63000-Professional Fees & Services,SUPPLIES & SERVICES,SERVICES,Revenue
Walsall Council,http://opendatacommunities.org/id/metropolitan-district-council/walsall,WC120-481,30/11/2020,ADULT SOCIAL CARE,ADVANCE HEALTH CARE (UK) LTD,06/11/2020,485.73,6554,73025-Professional Services-Priv Contractor & Other Agencies,THIRD PARTY PAYMENTS,PRIVATE CONTRACTOR,Revenue
Walsall Council,http://opendatacommunities.org/id/metropolitan-district-council/walsall,WC120-482,30/11/2020,ADULT SOCIAL CARE,ADVANCE HEALTH CARE (UK) LTD,05/11/2020,485.73,6554,73025-Professional Services-Priv Contractor & Other Agencies,THIRD PARTY PAYMENTS,PRIVATE CONTRACTOR,Revenue
Walsall Council,http://opendatacommunities.org/id/metropolitan-district-council/walsall,WC120-483,30/11/2020,ADULT SOCIAL CARE,ADVANCE HEALTH CARE (UK) LTD,05/11/2020,485.73,6554,73025-Professional Services-Priv Contractor & Other Agencies,THIRD PARTY PAYMENTS,PRIVATE CONTRACTOR,Revenue
Walsall Council,http://opendatacommunities.org/id/metropolitan-district-council/walsall,WC120-484,30/11/2020,ADULT SOCIAL CARE,ADVANCE HEALTH CARE (UK) LTD,05/11/2020,485.73,6554,73025-Professional Services-Priv Contractor & Other Agencies,THIRD PARTY PAYMENTS,PRIVATE CONTRACTOR,Revenue
Walsall Council,http://opendatacommunities.org/id/metropolitan-district-council/walsall,WC120-485,30/11/2020,ADULT SOCIAL CARE,ADVANCE HEALTH CARE (UK) LTD,05/11/2020,485.73,6554,73025-Professional Services-Priv Contractor & Other Agencies,THIRD PARTY PAYMENTS,PRIVATE CONTRACTOR,Revenue
Walsall Council,http://opendatacommunities.org/id/metropolitan-district-council/walsall,WC120-486,30/11/2020,ADULT SOCIAL CARE,ADVANCE HEALTH CARE (UK) LTD,05/11/2020,485.73,6554,73025-Professional Services-Priv Contractor & Other Agencies,THIRD PARTY PAYMENTS,PRIVATE CONTRACTOR,Revenue
Walsall Council,http://opendatacommunities.org/id/metropolitan-district-council/walsall,WC120-487,30/11/2020,ADULT SOCIAL CARE,ADVANCE HEALTH CARE (UK) LTD,05/11/2020,485.73,6554,73025-Professional Services-Priv Contractor & Other Agencies,THIRD PARTY PAYMENTS,PRIVATE CONTRACTOR,Revenue
Walsall Council,http://opendatacommunities.org/id/metropolitan-district-council/walsall,WC120-488,30/11/2020,ADULT SOCIAL CARE,ADVANCE HEALTH CARE (UK) LTD,05/11/2020,485.73,6554,73025-Professional Services-Priv Contractor & Other Agencies,THIRD PARTY PAYMENTS,PRIVATE CONTRACTOR,Revenue
Walsall Council,http://opendatacommunities.org/id/metropolitan-district-council/walsall,WC120-489,30/11/2020,ADULT SOCIAL CARE,ADVANCE HEALTH CARE (UK) LTD,05/11/2020,323.82,6554,73025-Professional Services-Priv Contractor & Other Agencies,THIRD PARTY PAYMENTS,PRIVATE CONTRACTOR,Revenue
Walsall Council,http://opendatacommunities.org/id/metropolitan-district-council/walsall,WC120-490,30/11/2020,ADULT SOCIAL CARE,ADVANCE HEALTH CARE (UK) LTD,05/11/2020,485.73,6554,73025-Professional Services-Priv Contractor & Other Agencies,THIRD PARTY PAYMENTS,PRIVATE CONTRACTOR,Revenue
Walsall Council,http://opendatacommunities.org/id/metropolitan-district-council/walsall,WC120-491,30/11/2020,ADULT SOCIAL CARE,ADVANCE HEALTH CARE (UK) LTD,05/11/2020,485.73,6554,73025-Professional Services-Priv Contractor & Other Agencies,THIRD PARTY PAYMENTS,PRIVATE CONTRACTOR,Revenue
Walsall Council,http://opendatacommunities.org/id/metropolitan-district-council/walsall,WC120-492,30/11/2020,ADULT SOCIAL CARE,ADVANCE HEALTH CARE (UK) LTD,05/11/2020,277.56,6554,73025-Professional Services-Priv Contractor & Other Agencies,THIRD PARTY PAYMENTS,PRIVATE CONTRACTOR,Revenue
Walsall Council,http://opendatacommunities.org/id/metropolitan-district-council/walsall,WC120-493,30/11/2020,ADULT SOCIAL CARE,ADVANCE HEALTH CARE (UK) LTD,05/11/2020,485.73,6554,73025-Professional Services-Priv Contractor & Other Agencies,THIRD PARTY PAYMENTS,PRIVATE CONTRACTOR,Revenue
Walsall Council,http://opendatacommunities.org/id/metropolitan-district-council/walsall,WC120-494,30/11/2020,ADULT SOCIAL CARE,ADVANCE HEALTH CARE (UK) LTD,06/11/2020,485.73,6554,73025-Professional Services-Priv Contractor & Other Agencies,THIRD PARTY PAYMENTS,PRIVATE CONTRACTOR,Revenue
Walsall Council,http://opendatacommunities.org/id/metropolitan-district-council/walsall,WC120-495,30/11/2020,ADULT SOCIAL CARE,ADVANCE HEALTH CARE (UK) LTD,06/11/2020,316.11,6554,73025-Professional Services-Priv Contractor & Other Agencies,THIRD PARTY PAYMENTS,PRIVATE CONTRACTOR,Revenue
Walsall Council,http://opendatacommunities.org/id/metropolitan-district-council/walsall,WC120-496,30/11/2020,ADULT SOCIAL CARE,ADVANCE HEALTH CARE (UK) LTD,06/11/2020,485.73,6554,73025-Professional Services-Priv Contractor & Other Agencies,THIRD PARTY PAYMENTS,PRIVATE CONTRACTOR,Revenue
Walsall Council,http://opendatacommunities.org/id/metropolitan-district-council/walsall,WC120-497,30/11/2020,ADULT SOCIAL CARE,ADVANCE HEALTH CARE (UK) LTD,06/11/2020,308.40,6554,73025-Professional Services-Priv Contractor & Other Agencies,THIRD PARTY PAYMENTS,PRIVATE CONTRACTOR,Revenue
Walsall Council,http://opendatacommunities.org/id/metropolitan-district-council/walsall,WC120-498,30/11/2020,ADULT SOCIAL CARE,ADVANCE HEALTH CARE (UK) LTD,06/11/2020,485.73,6554,73025-Professional Services-Priv Contractor & Other Agencies,THIRD PARTY PAYMENTS,PRIVATE CONTRACTOR,Revenue
Walsall Council,http://opendatacommunities.org/id/metropolitan-district-council/walsall,WC120-499,30/11/2020,ADULT SOCIAL CARE,ADVANCE HEALTH CARE (UK) LTD,06/11/2020,485.73,6554,73025-Professional Services-Priv Contractor & Other Agencies,THIRD PARTY PAYMENTS,PRIVATE CONTRACTOR,Revenue
Walsall Council,http://opendatacommunities.org/id/metropolitan-district-council/walsall,WC120-500,30/11/2020,ADULT SOCIAL CARE,ADVANCE HEALTH CARE (UK) LTD,06/11/2020,308.40,6554,73025-Professional Services-Priv Contractor & Other Agencies,THIRD PARTY PAYMENTS,PRIVATE CONTRACTOR,Revenue
Walsall Council,http://opendatacommunities.org/id/metropolitan-district-council/walsall,WC120-501,30/11/2020,ADULT SOCIAL CARE,ADVANCE HEALTH CARE (UK) LTD,06/11/2020,485.73,6554,73025-Professional Services-Priv Contractor & Other Agencies,THIRD PARTY PAYMENTS,PRIVATE CONTRACTOR,Revenue
Walsall Council,http://opendatacommunities.org/id/metropolitan-district-council/walsall,WC120-502,30/11/2020,ADULT SOCIAL CARE,ADVANCE HEALTH CARE (UK) LTD,06/11/2020,485.73,6554,73025-Professional Services-Priv Contractor & Other Agencies,THIRD PARTY PAYMENTS,PRIVATE CONTRACTOR,Revenue
Walsall Council,http://opendatacommunities.org/id/metropolitan-district-council/walsall,WC120-503,30/11/2020,ADULT SOCIAL CARE,ADVANCE HEALTH CARE (UK) LTD,06/11/2020,308.40,6554,73025-Professional Services-Priv Contractor & Other Agencies,THIRD PARTY PAYMENTS,PRIVATE CONTRACTOR,Revenue
Walsall Council,http://opendatacommunities.org/id/metropolitan-district-council/walsall,WC120-504,30/11/2020,ADULT SOCIAL CARE,ADVANCE HEALTH CARE (UK) LTD,06/11/2020,485.73,6554,73025-Professional Services-Priv Contractor & Other Agencies,THIRD PARTY PAYMENTS,PRIVATE CONTRACTOR,Revenue
Walsall Council,http://opendatacommunities.org/id/metropolitan-district-council/walsall,WC120-505,30/11/2020,ADULT SOCIAL CARE,ADVANCE HEALTH CARE (UK) LTD,06/11/2020,485.73,6554,73025-Professional Services-Priv Contractor & Other Agencies,THIRD PARTY PAYMENTS,PRIVATE CONTRACTOR,Revenue
Walsall Council,http://opendatacommunities.org/id/metropolitan-district-council/walsall,WC120-506,30/11/2020,ADULT SOCIAL CARE,ADVANCE HEALTH CARE (UK) LTD,06/11/2020,485.73,6554,73025-Professional Services-Priv Contractor & Other Agencies,THIRD PARTY PAYMENTS,PRIVATE CONTRACTOR,Revenue
Walsall Council,http://opendatacommunities.org/id/metropolitan-district-council/walsall,WC120-507,30/11/2020,ADULT SOCIAL CARE,ADVANCE HEALTH CARE (UK) LTD,06/11/2020,485.73,6554,73025-Professional Services-Priv Contractor & Other Agencies,THIRD PARTY PAYMENTS,PRIVATE CONTRACTOR,Revenue
Walsall Council,http://opendatacommunities.org/id/metropolitan-district-council/walsall,WC120-508,30/11/2020,ADULT SOCIAL CARE,ADVANCE HEALTH CARE (UK) LTD,30/11/2020,485.73,6554,73025-Professional Services-Priv Contractor & Other Agencies,THIRD PARTY PAYMENTS,PRIVATE CONTRACTOR,Revenue
Walsall Council,http://opendatacommunities.org/id/metropolitan-district-council/walsall,WC120-509,30/11/2020,ADULT SOCIAL CARE,ADVANCE HEALTH CARE (UK) LTD,30/11/2020,485.73,6554,73025-Professional Services-Priv Contractor & Other Agencies,THIRD PARTY PAYMENTS,PRIVATE CONTRACTOR,Revenue
Walsall Council,http://opendatacommunities.org/id/metropolitan-district-council/walsall,WC120-510,30/11/2020,ADULT SOCIAL CARE,ADVANCE HEALTH CARE (UK) LTD,30/11/2020,485.73,6554,73025-Professional Services-Priv Contractor & Other Agencies,THIRD PARTY PAYMENTS,PRIVATE CONTRACTOR,Revenue
Walsall Council,http://opendatacommunities.org/id/metropolitan-district-council/walsall,WC120-511,30/11/2020,ADULT SOCIAL CARE,ADVANCE HEALTH CARE (UK) LTD,30/11/2020,258.29,6554,73025-Professional Services-Priv Contractor & Other Agencies,THIRD PARTY PAYMENTS,PRIVATE CONTRACTOR,Revenue
Walsall Council,http://opendatacommunities.org/id/metropolitan-district-council/walsall,WC120-512,30/11/2020,ADULT SOCIAL CARE,ADVANCE HEALTH CARE (UK) LTD,30/11/2020,485.73,6554,73025-Professional Services-Priv Contractor & Other Agencies,THIRD PARTY PAYMENTS,PRIVATE CONTRACTOR,Revenue
Walsall Council,http://opendatacommunities.org/id/metropolitan-district-council/walsall,WC120-513,30/11/2020,ADULT SOCIAL CARE,ADVANCE HEALTH CARE (UK) LTD,30/11/2020,485.73,6554,73025-Professional Services-Priv Contractor & Other Agencies,THIRD PARTY PAYMENTS,PRIVATE CONTRACTOR,Revenue
Walsall Council,http://opendatacommunities.org/id/metropolitan-district-council/walsall,WC120-514,30/11/2020,ADULT SOCIAL CARE,ADVANCE HEALTH CARE (UK) LTD,30/11/2020,485.73,6554,73025-Professional Services-Priv Contractor & Other Agencies,THIRD PARTY PAYMENTS,PRIVATE CONTRACTOR,Revenue
Walsall Council,http://opendatacommunities.org/id/metropolitan-district-council/walsall,WC120-515,30/11/2020,ADULT SOCIAL CARE,ADVANCE HEALTH CARE (UK) LTD,30/11/2020,485.73,6554,73025-Professional Services-Priv Contractor & Other Agencies,THIRD PARTY PAYMENTS,PRIVATE CONTRACTOR,Revenue
Walsall Council,http://opendatacommunities.org/id/metropolitan-district-council/walsall,WC120-516,30/11/2020,ADULT SOCIAL CARE,ADVANCE HEALTH CARE (UK) LTD,30/11/2020,400.92,6554,73025-Professional Services-Priv Contractor & Other Agencies,THIRD PARTY PAYMENTS,PRIVATE CONTRACTOR,Revenue
Walsall Council,http://opendatacommunities.org/id/metropolitan-district-council/walsall,WC120-517,30/11/2020,ADULT SOCIAL CARE,ADVANCE HEALTH CARE (UK) LTD,30/11/2020,485.73,6554,73025-Professional Services-Priv Contractor & Other Agencies,THIRD PARTY PAYMENTS,PRIVATE CONTRACTOR,Revenue
Walsall Council,http://opendatacommunities.org/id/metropolitan-district-council/walsall,WC120-518,30/11/2020,ADULT SOCIAL CARE,ADVANCE HEALTH CARE (UK) LTD,30/11/2020,485.73,6554,73025-Professional Services-Priv Contractor & Other Agencies,THIRD PARTY PAYMENTS,PRIVATE CONTRACTOR,Revenue
Walsall Council,http://opendatacommunities.org/id/metropolitan-district-council/walsall,WC120-519,30/11/2020,ADULT SOCIAL CARE,ADVANCE HEALTH CARE (UK) LTD,30/11/2020,470.31,6554,73025-Professional Services-Priv Contractor & Other Agencies,THIRD PARTY PAYMENTS,PRIVATE CONTRACTOR,Revenue
Walsall Council,http://opendatacommunities.org/id/metropolitan-district-council/walsall,WC120-520,30/11/2020,ADULT SOCIAL CARE,ADVANCE HEALTH CARE (UK) LTD,30/11/2020,485.73,6554,73025-Professional Services-Priv Contractor & Other Agencies,THIRD PARTY PAYMENTS,PRIVATE CONTRACTOR,Revenue
Walsall Council,http://opendatacommunities.org/id/metropolitan-district-council/walsall,WC120-521,30/11/2020,ADULT SOCIAL CARE,ADVANCE HEALTH CARE (UK) LTD,30/11/2020,485.73,6554,73025-Professional Services-Priv Contractor & Other Agencies,THIRD PARTY PAYMENTS,PRIVATE CONTRACTOR,Revenue
Walsall Council,http://opendatacommunities.org/id/metropolitan-district-council/walsall,WC120-522,30/11/2020,ADULT SOCIAL CARE,ADVANCE HEALTH CARE (UK) LTD,30/11/2020,485.73,6554,73025-Professional Services-Priv Contractor & Other Agencies,THIRD PARTY PAYMENTS,PRIVATE CONTRACTOR,Revenue
Walsall Council,http://opendatacommunities.org/id/metropolitan-district-council/walsall,WC120-523,30/11/2020,ADULT SOCIAL CARE,ADVANCE HEALTH CARE (UK) LTD,30/11/2020,316.11,6554,73025-Professional Services-Priv Contractor & Other Agencies,THIRD PARTY PAYMENTS,PRIVATE CONTRACTOR,Revenue
Walsall Council,http://opendatacommunities.org/id/metropolitan-district-council/walsall,WC120-524,30/11/2020,ADULT SOCIAL CARE,ADVANCE HEALTH CARE (UK) LTD,30/11/2020,485.73,6554,73025-Professional Services-Priv Contractor & Other Agencies,THIRD PARTY PAYMENTS,PRIVATE CONTRACTOR,Revenue
Walsall Council,http://opendatacommunities.org/id/metropolitan-district-council/walsall,WC120-525,30/11/2020,ADULT SOCIAL CARE,ADVANCE HEALTH CARE (UK) LTD,30/11/2020,485.73,6554,73025-Professional Services-Priv Contractor & Other Agencies,THIRD PARTY PAYMENTS,PRIVATE CONTRACTOR,Revenue
Walsall Council,http://opendatacommunities.org/id/metropolitan-district-council/walsall,WC120-526,30/11/2020,ADULT SOCIAL CARE,ADVANCE HEALTH CARE (UK) LTD,30/11/2020,485.73,6554,73025-Professional Services-Priv Contractor & Other Agencies,THIRD PARTY PAYMENTS,PRIVATE CONTRACTOR,Revenue
Walsall Council,http://opendatacommunities.org/id/metropolitan-district-council/walsall,WC120-527,30/11/2020,ADULT SOCIAL CARE,ADVANCE HEALTH CARE (UK) LTD,18/11/2020,817.40,6541,73507-Domiciliary Care,THIRD PARTY PAYMENTS,PRIVATE CONTRACTOR,Revenue
Walsall Council,http://opendatacommunities.org/id/metropolitan-district-council/walsall,WC120-528,30/11/2020,ADULT SOCIAL CARE,ADVANCE HEALTH CARE (UK) LTD,18/11/2020,"2,695.93",6541,73507-Domiciliary Care,THIRD PARTY PAYMENTS,PRIVATE CONTRACTOR,Revenue
Walsall Council,http://opendatacommunities.org/id/metropolitan-district-council/walsall,WC120-529,30/11/2020,ADULT SOCIAL CARE,ADVANCE HEALTH CARE (UK) LTD,18/11/2020,760.72,6541,73507-Domiciliary Care,THIRD PARTY PAYMENTS,PRIVATE CONTRACTOR,Revenue
Walsall Council,http://opendatacommunities.org/id/metropolitan-district-council/walsall,WC120-530,30/11/2020,ADULT SOCIAL CARE,ADVANCE HEALTH CARE (UK) LTD,18/11/2020,"1,017.72",6541,73507-Domiciliary Care,THIRD PARTY PAYMENTS,PRIVATE CONTRACTOR,Revenue
Walsall Council,http://opendatacommunities.org/id/metropolitan-district-council/walsall,WC120-531,30/11/2020,ADULT SOCIAL CARE,ADVANCE HEALTH CARE (UK) LTD,18/11/2020,842.96,6541,73507-Domiciliary Care,THIRD PARTY PAYMENTS,PRIVATE CONTRACTOR,Revenue
Walsall Council,http://opendatacommunities.org/id/metropolitan-district-council/walsall,WC120-532,30/11/2020,ADULT SOCIAL CARE,ADVANCE HEALTH CARE (UK) LTD,18/11/2020,673.48,6541,73507-Domiciliary Care,THIRD PARTY PAYMENTS,PRIVATE CONTRACTOR,Revenue
Walsall Council,http://opendatacommunities.org/id/metropolitan-district-council/walsall,WC120-533,30/11/2020,ADULT SOCIAL CARE,ADVANCE HEALTH CARE (UK) LTD,18/11/2020,740.16,6541,73507-Domiciliary Care,THIRD PARTY PAYMENTS,PRIVATE CONTRACTOR,Revenue
Walsall Council,http://opendatacommunities.org/id/metropolitan-district-council/walsall,WC120-534,30/11/2020,CHILDRENS,ADVENTURELAND DAY NURSERY,27/11/2020,"1,284.78",1184,66505-Other-Grants to Other Orgs,SUPPLIES & SERVICES,GRANTS (EXP) & SUBSCRIPTIONS,Revenue
Walsall Council,http://opendatacommunities.org/id/metropolitan-district-council/walsall,WC120-535,30/11/2020,CHILDRENS,ADVENTURELAND DAY NURSERY,27/11/2020,"1,116.36",1184,66505-Other-Grants to Other Orgs,SUPPLIES & SERVICES,GRANTS (EXP) & SUBSCRIPTIONS,Revenue
Walsall Council,http://opendatacommunities.org/id/metropolitan-district-council/walsall,WC120-536,30/11/2020,ADULT SOCIAL CARE,ADVINIA CARE HOMES LTD - HAMMERWICH HALL CARE HOME,20/11/2020,"2,308.00",6541,73501-Residential EMI,THIRD PARTY PAYMENTS,PRIVATE CONTRACTOR,Revenue
Walsall Council,http://opendatacommunities.org/id/metropolitan-district-council/walsall,WC120-537,30/11/2020,ADULT SOCIAL CARE,ADVINIA CARE HOMES LTD - HAMMERWICH HALL CARE HOME,20/11/2020,"2,044.00",6541,73500-Residential,THIRD PARTY PAYMENTS,PRIVATE CONTRACTOR,Revenue
Walsall Council,http://opendatacommunities.org/id/metropolitan-district-council/walsall,WC120-538,30/11/2020,CHILDRENS,REDACTED,13/11/2020,540.00,6223,74501-Foster Carers Maintenance Allowance,TRANSFER PAYMENTS,CHILDREN SOCIAL SERVICES CLIENT,Revenue
Walsall Council,http://opendatacommunities.org/id/metropolitan-district-council/walsall,WC120-539,30/11/2020,CHILDRENS,REDACTED,13/11/2020,540.00,6223,74501-Foster Carers Maintenance Allowance,TRANSFER PAYMENTS,CHILDREN SOCIAL SERVICES CLIENT,Revenue
Walsall Council,http://opendatacommunities.org/id/metropolitan-district-council/walsall,WC120-540,30/11/2020,ECONOMY & ENVIRONMENT,ALDERBROOK HEALTHCARE LTD,05/11/2020,"4,677.30",6413,63000-Professional Fees & Services,SUPPLIES & SERVICES,SERVICES,Revenue
Walsall Council,http://opendatacommunities.org/id/metropolitan-district-council/walsall,WC120-541,30/11/2020,ECONOMY & ENVIRONMENT,ALDERBROOK HEALTHCARE LTD,20/11/2020,"3,330.50",6413,63000-Professional Fees & Services,SUPPLIES & SERVICES,SERVICES,Revenue
Walsall Council,http://opendatacommunities.org/id/metropolitan-district-council/walsall,WC120-542,30/11/2020,ADULT SOCIAL CARE,ALDERGROVE MANOR LTD,20/11/2020,"2,308.00",6541,73501-Residential EMI,THIRD PARTY PAYMENTS,PRIVATE CONTRACTOR,Revenue
Walsall Council,http://opendatacommunities.org/id/metropolitan-district-council/walsall,WC120-543,30/11/2020,ADULT SOCIAL CARE,ALDERGROVE MANOR LTD,20/11/2020,"2,308.00",6541,73501-Residential EMI,THIRD PARTY PAYMENTS,PRIVATE CONTRACTOR,Revenue
Walsall Council,http://opendatacommunities.org/id/metropolitan-district-council/walsall,WC120-544,30/11/2020,CHILDRENS,ALDRIDGE & BARONS LIMITED,13/11/2020,"2,616.30",6241,52000-Hire of Vehicle with Driver,TRANSPORT,DIRECT TRANSPORT COSTS,Revenue
Walsall Council,http://opendatacommunities.org/id/metropolitan-district-council/walsall,WC120-545,30/11/2020,CHILDRENS,ALDRIDGE & BARONS LIMITED,13/11/2020,"2,556.00",6241,52000-Hire of Vehicle with Driver,TRANSPORT,DIRECT TRANSPORT COSTS,Revenue
Walsall Council,http://opendatacommunities.org/id/metropolitan-district-council/walsall,WC120-546,30/11/2020,CHILDRENS,ALDRIDGE & BARONS LIMITED,13/11/2020,"1,862.00",6241,52000-Hire of Vehicle with Driver,TRANSPORT,DIRECT TRANSPORT COSTS,Revenue
Walsall Council,http://opendatacommunities.org/id/metropolitan-district-council/walsall,WC120-547,30/11/2020,CHILDRENS,ALDRIDGE & BARONS LIMITED,13/11/2020,"1,416.00",6241,52000-Hire of Vehicle with Driver,TRANSPORT,DIRECT TRANSPORT COSTS,Revenue
Walsall Council,http://opendatacommunities.org/id/metropolitan-district-council/walsall,WC120-548,30/11/2020,CHILDRENS,ALDRIDGE & BARONS LIMITED,13/11/2020,"1,160.00",6241,52000-Hire of Vehicle with Driver,TRANSPORT,DIRECT TRANSPORT COSTS,Revenue
Walsall Council,http://opendatacommunities.org/id/metropolitan-district-council/walsall,WC120-549,30/11/2020,CHILDRENS,ALDRIDGE & BARONS LIMITED,13/11/2020,"1,140.00",6241,52000-Hire of Vehicle with Driver,TRANSPORT,DIRECT TRANSPORT COSTS,Revenue
Walsall Council,http://opendatacommunities.org/id/metropolitan-district-council/walsall,WC120-550,30/11/2020,CHILDRENS,ALDRIDGE & BARONS LIMITED,13/11/2020,"1,980.00",6241,52000-Hire of Vehicle with Driver,TRANSPORT,DIRECT TRANSPORT COSTS,Revenue
Walsall Council,http://opendatacommunities.org/id/metropolitan-district-council/walsall,WC120-551,30/11/2020,CHILDRENS,ALDRIDGE & BARONS LIMITED,13/11/2020,"1,819.20",6241,52000-Hire of Vehicle with Driver,TRANSPORT,DIRECT TRANSPORT COSTS,Revenue
Walsall Council,http://opendatacommunities.org/id/metropolitan-district-council/walsall,WC120-552,30/11/2020,CHILDRENS,ALDRIDGE & BARONS LIMITED,13/11/2020,"2,850.00",6241,52000-Hire of Vehicle with Driver,TRANSPORT,DIRECT TRANSPORT COSTS,Revenue
Walsall Council,http://opendatacommunities.org/id/metropolitan-district-council/walsall,WC120-553,30/11/2020,CHILDRENS,ALDRIDGE & BARONS LIMITED,13/11/2020,"1,720.00",6241,52000-Hire of Vehicle with Driver,TRANSPORT,DIRECT TRANSPORT COSTS,Revenue
Walsall Council,http://opendatacommunities.org/id/metropolitan-district-council/walsall,WC120-554,30/11/2020,CHILDRENS,ALDRIDGE & BARONS LIMITED,13/11/2020,"1,988.16",6241,52000-Hire of Vehicle with Driver,TRANSPORT,DIRECT TRANSPORT COSTS,Revenue
Walsall Council,http://opendatacommunities.org/id/metropolitan-district-council/walsall,WC120-555,30/11/2020,CHILDRENS,ALDRIDGE & BARONS LIMITED,13/11/2020,"2,280.00",6241,52000-Hire of Vehicle with Driver,TRANSPORT,DIRECT TRANSPORT COSTS,Revenue
Walsall Council,http://opendatacommunities.org/id/metropolitan-district-council/walsall,WC120-556,30/11/2020,CHILDRENS,ALDRIDGE & BARONS LIMITED,13/11/2020,"1,435.50",6241,52000-Hire of Vehicle with Driver,TRANSPORT,DIRECT TRANSPORT COSTS,Revenue
Walsall Council,http://opendatacommunities.org/id/metropolitan-district-council/walsall,WC120-557,30/11/2020,CHILDRENS,ALDRIDGE & BARONS LIMITED,13/11/2020,"1,240.20",6241,52000-Hire of Vehicle with Driver,TRANSPORT,DIRECT TRANSPORT COSTS,Revenue
Walsall Council,http://opendatacommunities.org/id/metropolitan-district-council/walsall,WC120-558,30/11/2020,CHILDRENS,ALDRIDGE & BARONS LIMITED,13/11/2020,"1,944.00",6241,52000-Hire of Vehicle with Driver,TRANSPORT,DIRECT TRANSPORT COSTS,Revenue
Walsall Council,http://opendatacommunities.org/id/metropolitan-district-council/walsall,WC120-559,30/11/2020,CHILDRENS,ALDRIDGE & BARONS LIMITED,13/11/2020,"1,915.20",6241,52000-Hire of Vehicle with Driver,TRANSPORT,DIRECT TRANSPORT COSTS,Revenue
Walsall Council,http://opendatacommunities.org/id/metropolitan-district-council/walsall,WC120-560,30/11/2020,CHILDRENS,ALDRIDGE & BARONS LIMITED,13/11/2020,"1,900.00",6241,52000-Hire of Vehicle with Driver,TRANSPORT,DIRECT TRANSPORT COSTS,Revenue
Walsall Council,http://opendatacommunities.org/id/metropolitan-district-council/walsall,WC120-561,30/11/2020,CHILDRENS,ALDRIDGE & BARONS LIMITED,13/11/2020,"1,885.00",6241,52000-Hire of Vehicle with Driver,TRANSPORT,DIRECT TRANSPORT COSTS,Revenue
Walsall Council,http://opendatacommunities.org/id/metropolitan-district-council/walsall,WC120-562,30/11/2020,CHILDRENS,ALDRIDGE & BARONS LIMITED,13/11/2020,"1,192.80",6241,52000-Hire of Vehicle with Driver,TRANSPORT,DIRECT TRANSPORT COSTS,Revenue
Walsall Council,http://opendatacommunities.org/id/metropolitan-district-council/walsall,WC120-563,30/11/2020,CHILDRENS,ALDRIDGE & BARONS LIMITED,13/11/2020,"1,691.20",6241,52000-Hire of Vehicle with Driver,TRANSPORT,DIRECT TRANSPORT COSTS,Revenue
Walsall Council,http://opendatacommunities.org/id/metropolitan-district-council/walsall,WC120-564,30/11/2020,CHILDRENS,ALDRIDGE & BARONS LIMITED,13/11/2020,"1,600.00",6241,52000-Hire of Vehicle with Driver,TRANSPORT,DIRECT TRANSPORT COSTS,Revenue
Walsall Council,http://opendatacommunities.org/id/metropolitan-district-council/walsall,WC120-565,30/11/2020,CHILDRENS,ALDRIDGE & BARONS LIMITED,13/11/2020,"1,880.00",6241,52000-Hire of Vehicle with Driver,TRANSPORT,DIRECT TRANSPORT COSTS,Revenue
Walsall Council,http://opendatacommunities.org/id/metropolitan-district-council/walsall,WC120-566,30/11/2020,CHILDRENS,ALDRIDGE & BARONS LIMITED,13/11/2020,"1,786.00",6241,52000-Hire of Vehicle with Driver,TRANSPORT,DIRECT TRANSPORT COSTS,Revenue
Walsall Council,http://opendatacommunities.org/id/metropolitan-district-council/walsall,WC120-567,30/11/2020,CHILDRENS,ALDRIDGE & BARONS LIMITED,13/11/2020,"2,275.20",6241,52000-Hire of Vehicle with Driver,TRANSPORT,DIRECT TRANSPORT COSTS,Revenue
Walsall Council,http://opendatacommunities.org/id/metropolitan-district-council/walsall,WC120-568,30/11/2020,CHILDRENS,ALDRIDGE & BARONS LIMITED,13/11/2020,"1,400.00",6241,52000-Hire of Vehicle with Driver,TRANSPORT,DIRECT TRANSPORT COSTS,Revenue
Walsall Council,http://opendatacommunities.org/id/metropolitan-district-council/walsall,WC120-569,30/11/2020,CHILDRENS,ALDRIDGE & BARONS LIMITED,13/11/2020,"1,980.00",6241,52000-Hire of Vehicle with Driver,TRANSPORT,DIRECT TRANSPORT COSTS,Revenue
Walsall Council,http://opendatacommunities.org/id/metropolitan-district-council/walsall,WC120-570,30/11/2020,CHILDRENS,ALDRIDGE & BARONS LIMITED,13/11/2020,"2,080.00",6241,52000-Hire of Vehicle with Driver,TRANSPORT,DIRECT TRANSPORT COSTS,Revenue
Walsall Council,http://opendatacommunities.org/id/metropolitan-district-council/walsall,WC120-571,30/11/2020,ADULT SOCIAL CARE,ALEXANDRA HOUSE CARE SERVICES LTD T/A STONEBRIDGE NURSING HOME,20/11/2020,"7,361.12",6541,73500-Residential,THIRD PARTY PAYMENTS,PRIVATE CONTRACTOR,Revenue
Walsall Council,http://opendatacommunities.org/id/metropolitan-district-council/walsall,WC120-572,30/11/2020,ADULT SOCIAL CARE,REDACTED,04/11/2020,"1,332.88",6541,73510-Shared Lives,THIRD PARTY PAYMENTS,PRIVATE CONTRACTOR,Revenue
Walsall Council,http://opendatacommunities.org/id/metropolitan-district-council/walsall,WC120-573,30/11/2020,CHILDRENS,REDACTED,13/11/2020,312.24,6223,74509-Special Guardianship Orders,TRANSFER PAYMENTS,CHILDREN SOCIAL SERVICES CLIENT,Revenue
Walsall Council,http://opendatacommunities.org/id/metropolitan-district-council/walsall,WC120-574,30/11/2020,CHILDRENS,REDACTED,24/11/2020,"1,020.00",6223,63000-Professional Fees & Services,SUPPLIES & SERVICES,SERVICES,Revenue
Walsall Council,http://opendatacommunities.org/id/metropolitan-district-council/walsall,WC120-575,30/11/2020,CHILDRENS,ALL SAINTS NATIONAL ACADEMY #1,20/11/2020,"6,448.86",1220,66502-Top Up Funding -Grants to Schools,SUPPLIES & SERVICES,GRANTS (EXP) & SUBSCRIPTIONS,Revenue
Walsall Council,http://opendatacommunities.org/id/metropolitan-district-council/walsall,WC120-576,30/11/2020,ECONOMY & ENVIRONMENT,ALLIANCE TRANSPORT TECHNOLOGIES LTD,19/11/2020,284.80,6410,73025-Professional Services-Priv Contractor & Other Agencies,THIRD PARTY PAYMENTS,PRIVATE CONTRACTOR,Revenue
Walsall Council,http://opendatacommunities.org/id/metropolitan-district-council/walsall,WC120-577,30/11/2020,ECONOMY & ENVIRONMENT,ALLSEE TECHNOLOGIES LTD,11/11/2020,"6,450.00",6410,60500-Materials,SUPPLIES & SERVICES,EQUIPMENT FURNITURE & MATERIALS,Revenue
Walsall Council,http://opendatacommunities.org/id/metropolitan-district-council/walsall,WC120-578,30/11/2020,ECONOMY & ENVIRONMENT,ALLSEE TECHNOLOGIES LTD,11/11/2020,"1,200.00",6410,60500-Materials,SUPPLIES & SERVICES,EQUIPMENT FURNITURE & MATERIALS,Revenue
Walsall Council,http://opendatacommunities.org/id/metropolitan-district-council/walsall,WC120-579,30/11/2020,ADULT SOCIAL CARE,ALMA COURT,20/11/2020,"4,737.92",6541,73503-Nursing EMI,THIRD PARTY PAYMENTS,PRIVATE CONTRACTOR,Revenue
Walsall Council,http://opendatacommunities.org/id/metropolitan-district-council/walsall,WC120-580,30/11/2020,ADULT SOCIAL CARE,ALMA COURT,20/11/2020,"5,939.20",6541,73503-Nursing EMI,THIRD PARTY PAYMENTS,PRIVATE CONTRACTOR,Revenue
Walsall Council,http://opendatacommunities.org/id/metropolitan-district-council/walsall,WC120-581,30/11/2020,ADULT SOCIAL CARE,ALMA COURT,20/11/2020,"6,553.60",6541,73500-Residential,THIRD PARTY PAYMENTS,PRIVATE CONTRACTOR,Revenue
Walsall Council,http://opendatacommunities.org/id/metropolitan-district-council/walsall,WC120-582,30/11/2020,ADULT SOCIAL CARE,ALMA COURT,26/11/2020,"4,200.00",6554,73025-Professional Services-Priv Contractor & Other Agencies,THIRD PARTY PAYMENTS,PRIVATE CONTRACTOR,Revenue
Walsall Council,http://opendatacommunities.org/id/metropolitan-district-council/walsall,WC120-583,30/11/2020,CHILDRENS,ALMOZENE NURSERY & CHILDRENS CENTRE,27/11/2020,"2,569.56",1184,66505-Other-Grants to Other Orgs,SUPPLIES & SERVICES,GRANTS (EXP) & SUBSCRIPTIONS,Revenue
Walsall Council,http://opendatacommunities.org/id/metropolitan-district-council/walsall,WC120-584,30/11/2020,CHILDRENS,ALMOZENE NURSERY & CHILDRENS CENTRE,27/11/2020,697.73,1184,66505-Other-Grants to Other Orgs,SUPPLIES & SERVICES,GRANTS (EXP) & SUBSCRIPTIONS,Revenue
Walsall Council,http://opendatacommunities.org/id/metropolitan-district-council/walsall,WC120-585,30/11/2020,ADULT SOCIAL CARE,ALPHA HEALTH CARE LTD,20/11/2020,"2,831.48",6541,73501-Residential EMI,THIRD PARTY PAYMENTS,PRIVATE CONTRACTOR,Revenue
Walsall Council,http://opendatacommunities.org/id/metropolitan-district-council/walsall,WC120-586,30/11/2020,ADULT SOCIAL CARE,ALPHA HEALTH CARE LTD,20/11/2020,"2,881.80",6541,73503-Nursing EMI,THIRD PARTY PAYMENTS,PRIVATE CONTRACTOR,Revenue
Walsall Council,http://opendatacommunities.org/id/metropolitan-district-council/walsall,WC120-587,30/11/2020,ADULT SOCIAL CARE,ALPHA HEALTH CARE LTD,20/11/2020,"2,696.00",6541,73503-Nursing EMI,THIRD PARTY PAYMENTS,PRIVATE CONTRACTOR,Revenue
Walsall Council,http://opendatacommunities.org/id/metropolitan-district-council/walsall,WC120-588,30/11/2020,ADULT SOCIAL CARE,ALPHA HEALTH CARE LTD,20/11/2020,"2,044.00",6541,73500-Residential,THIRD PARTY PAYMENTS,PRIVATE CONTRACTOR,Revenue
Walsall Council,http://opendatacommunities.org/id/metropolitan-district-council/walsall,WC120-589,30/11/2020,ADULT SOCIAL CARE,ALPHA HEALTH CARE LTD,20/11/2020,"3,035.72",6541,73501-Residential EMI,THIRD PARTY PAYMENTS,PRIVATE CONTRACTOR,Revenue
Walsall Council,http://opendatacommunities.org/id/metropolitan-district-council/walsall,WC120-590,30/11/2020,ADULT SOCIAL CARE,ALPHA HEALTH CARE LTD,20/11/2020,"2,396.00",6541,73502-Nursing,THIRD PARTY PAYMENTS,PRIVATE CONTRACTOR,Revenue
Walsall Council,http://opendatacommunities.org/id/metropolitan-district-council/walsall,WC120-591,30/11/2020,ADULT SOCIAL CARE,ALPHA HEALTH CARE LTD,20/11/2020,288.86,6541,73503-Nursing EMI,THIRD PARTY PAYMENTS,PRIVATE CONTRACTOR,Revenue
Walsall Council,http://opendatacommunities.org/id/metropolitan-district-council/walsall,WC120-592,30/11/2020,ADULT SOCIAL CARE,ALPHA HEALTH CARE LTD,20/11/2020,"2,696.00",6541,73503-Nursing EMI,THIRD PARTY PAYMENTS,PRIVATE CONTRACTOR,Revenue
Walsall Council,http://opendatacommunities.org/id/metropolitan-district-council/walsall,WC120-593,30/11/2020,ADULT SOCIAL CARE,ALPHA HEALTH CARE LTD,20/11/2020,926.29,6541,73503-Nursing EMI,THIRD PARTY PAYMENTS,PRIVATE CONTRACTOR,Revenue
Walsall Council,http://opendatacommunities.org/id/metropolitan-district-council/walsall,WC120-594,30/11/2020,ADULT SOCIAL CARE,ALPHA HEALTH CARE LTD,20/11/2020,"3,290.36",6541,73503-Nursing EMI,THIRD PARTY PAYMENTS,PRIVATE CONTRACTOR,Revenue
Walsall Council,http://opendatacommunities.org/id/metropolitan-district-council/walsall,WC120-595,30/11/2020,ADULT SOCIAL CARE,ALPHA HEALTH CARE LTD,20/11/2020,"2,533.71",6541,73503-Nursing EMI,THIRD PARTY PAYMENTS,PRIVATE CONTRACTOR,Revenue
Walsall Council,http://opendatacommunities.org/id/metropolitan-district-council/walsall,WC120-596,30/11/2020,ADULT SOCIAL CARE,ALPHA HEALTH CARE LTD,20/11/2020,"2,937.76",6541,73502-Nursing,THIRD PARTY PAYMENTS,PRIVATE CONTRACTOR,Revenue
Walsall Council,http://opendatacommunities.org/id/metropolitan-district-council/walsall,WC120-597,30/11/2020,ADULT SOCIAL CARE,ALPHA HEALTH CARE LTD,20/11/2020,"-2,725.71",6541,73500-Residential,THIRD PARTY PAYMENTS,PRIVATE CONTRACTOR,Revenue
Walsall Council,http://opendatacommunities.org/id/metropolitan-district-council/walsall,WC120-598,30/11/2020,ADULT SOCIAL CARE,ALPHA HEALTH CARE LTD,20/11/2020,"3,180.00",6541,73501-Residential EMI,THIRD PARTY PAYMENTS,PRIVATE CONTRACTOR,Revenue
Walsall Council,http://opendatacommunities.org/id/metropolitan-district-council/walsall,WC120-599,30/11/2020,ADULT SOCIAL CARE,ALPHA HEALTH CARE LTD,20/11/2020,"3,180.00",6541,73500-Residential,THIRD PARTY PAYMENTS,PRIVATE CONTRACTOR,Revenue
Walsall Council,http://opendatacommunities.org/id/metropolitan-district-council/walsall,WC120-600,30/11/2020,ADULT SOCIAL CARE,ALPHA HEALTH CARE LTD,20/11/2020,"7,000.00",6541,73503-Nursing EMI,THIRD PARTY PAYMENTS,PRIVATE CONTRACTOR,Revenue
Walsall Council,http://opendatacommunities.org/id/metropolitan-district-council/walsall,WC120-601,30/11/2020,ADULT SOCIAL CARE,ALPHA HEALTH CARE LTD,20/11/2020,"2,308.00",6541,73501-Residential EMI,THIRD PARTY PAYMENTS,PRIVATE CONTRACTOR,Revenue
Walsall Council,http://opendatacommunities.org/id/metropolitan-district-council/walsall,WC120-602,30/11/2020,ADULT SOCIAL CARE,ALPHA HEALTH CARE LTD,20/11/2020,"2,696.00",6541,73503-Nursing EMI,THIRD PARTY PAYMENTS,PRIVATE CONTRACTOR,Revenue
Walsall Council,http://opendatacommunities.org/id/metropolitan-district-council/walsall,WC120-603,30/11/2020,ADULT SOCIAL CARE,ALPHA HEALTH CARE LTD,20/11/2020,"2,937.88",6541,73503-Nursing EMI,THIRD PARTY PAYMENTS,PRIVATE CONTRACTOR,Revenue
Walsall Council,http://opendatacommunities.org/id/metropolitan-district-council/walsall,WC120-604,30/11/2020,ADULT SOCIAL CARE,ALPHA HEALTH CARE LTD,20/11/2020,"2,881.84",6541,73503-Nursing EMI,THIRD PARTY PAYMENTS,PRIVATE CONTRACTOR,Revenue
Walsall Council,http://opendatacommunities.org/id/metropolitan-district-council/walsall,WC120-605,30/11/2020,ADULT SOCIAL CARE,ALPHA HEALTH CARE LTD,20/11/2020,"7,000.00",6541,73503-Nursing EMI,THIRD PARTY PAYMENTS,PRIVATE CONTRACTOR,Revenue
Walsall Council,http://opendatacommunities.org/id/metropolitan-district-council/walsall,WC120-606,30/11/2020,ADULT SOCIAL CARE,ALPHA HEALTH CARE LTD,20/11/2020,"2,308.00",6541,73501-Residential EMI,THIRD PARTY PAYMENTS,PRIVATE CONTRACTOR,Revenue
Walsall Council,http://opendatacommunities.org/id/metropolitan-district-council/walsall,WC120-607,30/11/2020,ADULT SOCIAL CARE,ALPHA HEALTH CARE LTD,20/11/2020,"3,180.00",6541,73501-Residential EMI,THIRD PARTY PAYMENTS,PRIVATE CONTRACTOR,Revenue
Walsall Council,http://opendatacommunities.org/id/metropolitan-district-council/walsall,WC120-608,30/11/2020,ADULT SOCIAL CARE,ALPHA HEALTH CARE LTD,20/11/2020,741.86,6541,73501-Residential EMI,THIRD PARTY PAYMENTS,PRIVATE CONTRACTOR,Revenue
Walsall Council,http://opendatacommunities.org/id/metropolitan-district-council/walsall,WC120-609,30/11/2020,ADULT SOCIAL CARE,ALPHA HEALTH CARE LTD,20/11/2020,"2,308.00",6541,73501-Residential EMI,THIRD PARTY PAYMENTS,PRIVATE CONTRACTOR,Revenue
Walsall Council,http://opendatacommunities.org/id/metropolitan-district-council/walsall,WC120-610,30/11/2020,ADULT SOCIAL CARE,ALPHA HEALTH CARE LTD,20/11/2020,"3,600.00",6541,73503-Nursing EMI,THIRD PARTY PAYMENTS,PRIVATE CONTRACTOR,Revenue
Walsall Council,http://opendatacommunities.org/id/metropolitan-district-council/walsall,WC120-611,30/11/2020,ADULT SOCIAL CARE,ALPHA HEALTH CARE LTD,04/11/2020,"9,720.00",6554,73025-Professional Services-Priv Contractor & Other Agencies,THIRD PARTY PAYMENTS,PRIVATE CONTRACTOR,Revenue
Walsall Council,http://opendatacommunities.org/id/metropolitan-district-council/walsall,WC120-612,30/11/2020,ADULT SOCIAL CARE,ALPHA HEALTH CARE LTD,26/11/2020,"3,200.00",6554,73025-Professional Services-Priv Contractor & Other Agencies,THIRD PARTY PAYMENTS,PRIVATE CONTRACTOR,Revenue
Walsall Council,http://opendatacommunities.org/id/metropolitan-district-council/walsall,WC120-613,30/11/2020,ADULT SOCIAL CARE,ALPHA HEALTH CARE LTD,26/11/2020,"1,671.43",6554,73025-Professional Services-Priv Contractor & Other Agencies,THIRD PARTY PAYMENTS,PRIVATE CONTRACTOR,Revenue
Walsall Council,http://opendatacommunities.org/id/metropolitan-district-council/walsall,WC120-614,30/11/2020,ADULT SOCIAL CARE,ALPHA HEALTH CARE LTD,26/11/2020,"2,442.86",6554,73025-Professional Services-Priv Contractor & Other Agencies,THIRD PARTY PAYMENTS,PRIVATE CONTRACTOR,Revenue
Walsall Council,http://opendatacommunities.org/id/metropolitan-district-council/walsall,WC120-615,30/11/2020,ADULT SOCIAL CARE,ALPHA HEALTH CARE LTD,26/11/2020,"1,221.45",6554,73025-Professional Services-Priv Contractor & Other Agencies,THIRD PARTY PAYMENTS,PRIVATE CONTRACTOR,Revenue
Walsall Council,http://opendatacommunities.org/id/metropolitan-district-council/walsall,WC120-616,30/11/2020,ADULT SOCIAL CARE,ALPHA HEALTH CARE LTD,26/11/2020,"10,044.00",6554,73025-Professional Services-Priv Contractor & Other Agencies,THIRD PARTY PAYMENTS,PRIVATE CONTRACTOR,Revenue
Walsall Council,http://opendatacommunities.org/id/metropolitan-district-council/walsall,WC120-617,30/11/2020,CHILDRENS,ALPHA TRAINING ACADEMY UK LTD,12/11/2020,"3,125.00",1187,60500-Materials,SUPPLIES & SERVICES,EQUIPMENT FURNITURE & MATERIALS,Revenue
Walsall Council,http://opendatacommunities.org/id/metropolitan-district-council/walsall,WC120-618,30/11/2020,CHILDRENS,AMAH NURSERIES LIMITED T/A BANANA MOON WALSALL,27/11/2020,"7,038.36",1184,66505-Other-Grants to Other Orgs,SUPPLIES & SERVICES,GRANTS (EXP) & SUBSCRIPTIONS,Revenue
Walsall Council,http://opendatacommunities.org/id/metropolitan-district-council/walsall,WC120-619,30/11/2020,CHILDRENS,AMAH NURSERIES LIMITED T/A BANANA MOON WALSALL,27/11/2020,"1,674.54",1184,66505-Other-Grants to Other Orgs,SUPPLIES & SERVICES,GRANTS (EXP) & SUBSCRIPTIONS,Revenue
Walsall Council,http://opendatacommunities.org/id/metropolitan-district-council/walsall,WC120-620,30/11/2020,CHILDRENS,REDACTED,13/11/2020,318.08,6223,74510-Residents Orders,TRANSFER PAYMENTS,CHILDREN SOCIAL SERVICES CLIENT,Revenue
Walsall Council,http://opendatacommunities.org/id/metropolitan-district-council/walsall,WC120-621,30/11/2020,ECONOMY & ENVIRONMENT,AMEY LG LIMITED,25/11/2020,696.12,6430,60008-Repair & Maintenance of Furniture & Equipment,SUPPLIES & SERVICES,EQUIPMENT FURNITURE & MATERIALS,Revenue
Walsall Council,http://opendatacommunities.org/id/metropolitan-district-council/walsall,WC120-622,30/11/2020,ECONOMY & ENVIRONMENT,AMEY LG LIMITED,10/11/2020,"1,206.29",6430,60008-Repair & Maintenance of Furniture & Equipment,SUPPLIES & SERVICES,EQUIPMENT FURNITURE & MATERIALS,Revenue
Walsall Council,http://opendatacommunities.org/id/metropolitan-district-council/walsall,WC120-623,30/11/2020,ECONOMY & ENVIRONMENT CAPITAL,AMEY OW LTD,27/11/2020,"5,980.07",7200,01002-Project Fees,CAPITAL,"NEW CONSTRUCTION,CONVERSION & RENOVATION",Capital
Walsall Council,http://opendatacommunities.org/id/metropolitan-district-council/walsall,WC120-624,30/11/2020,ECONOMY & ENVIRONMENT CAPITAL,AMEY OW LTD,25/11/2020,"4,604.11",7200,01002-Project Fees,CAPITAL,"NEW CONSTRUCTION,CONVERSION & RENOVATION",Capital
Walsall Council,http://opendatacommunities.org/id/metropolitan-district-council/walsall,WC120-625,30/11/2020,CHILDRENS,REDACTED,13/11/2020,600.00,6223,74501-Foster Carers Maintenance Allowance,TRANSFER PAYMENTS,CHILDREN SOCIAL SERVICES CLIENT,Revenue
Walsall Council,http://opendatacommunities.org/id/metropolitan-district-council/walsall,WC120-626,30/11/2020,CHILDRENS,REDACTED,13/11/2020,340.00,6223,74508-Internal Foster Carers-Carer Fees,TRANSFER PAYMENTS,CHILDREN SOCIAL SERVICES CLIENT,Revenue
Walsall Council,http://opendatacommunities.org/id/metropolitan-district-council/walsall,WC120-627,30/11/2020,ADULT SOCIAL CARE,ANCHOR CAREHOMES LTD - HARDEN HALL,04/11/2020,"18,036.00",6550,73025-Professional Services-Priv Contractor & Other Agencies,THIRD PARTY PAYMENTS,PRIVATE CONTRACTOR,Revenue
Walsall Council,http://opendatacommunities.org/id/metropolitan-district-council/walsall,WC120-628,30/11/2020,ADULT SOCIAL CARE,ANCHOR CAREHOMES LTD - HARDEN HALL,20/11/2020,"2,266.12",6541,73500-Residential,THIRD PARTY PAYMENTS,PRIVATE CONTRACTOR,Revenue
Walsall Council,http://opendatacommunities.org/id/metropolitan-district-council/walsall,WC120-629,30/11/2020,ADULT SOCIAL CARE,ANCHOR CAREHOMES LTD - HARDEN HALL,20/11/2020,"2,332.24",6541,73501-Residential EMI,THIRD PARTY PAYMENTS,PRIVATE CONTRACTOR,Revenue
Walsall Council,http://opendatacommunities.org/id/metropolitan-district-council/walsall,WC120-630,30/11/2020,ADULT SOCIAL CARE,ANCHOR CAREHOMES LTD - HARDEN HALL,20/11/2020,"2,312.24",6541,73501-Residential EMI,THIRD PARTY PAYMENTS,PRIVATE CONTRACTOR,Revenue
Walsall Council,http://opendatacommunities.org/id/metropolitan-district-council/walsall,WC120-631,30/11/2020,ADULT SOCIAL CARE,ANCHOR CAREHOMES LTD - HARDEN HALL,20/11/2020,"2,308.00",6541,73501-Residential EMI,THIRD PARTY PAYMENTS,PRIVATE CONTRACTOR,Revenue
Walsall Council,http://opendatacommunities.org/id/metropolitan-district-council/walsall,WC120-632,30/11/2020,ADULT SOCIAL CARE,ANCHOR CAREHOMES LTD - HARDEN HALL,20/11/2020,"2,044.00",6541,73500-Residential,THIRD PARTY PAYMENTS,PRIVATE CONTRACTOR,Revenue
Walsall Council,http://opendatacommunities.org/id/metropolitan-district-council/walsall,WC120-633,30/11/2020,ADULT SOCIAL CARE,ANCHOR CAREHOMES LTD - HARDEN HALL,20/11/2020,"2,308.00",6541,73501-Residential EMI,THIRD PARTY PAYMENTS,PRIVATE CONTRACTOR,Revenue
Walsall Council,http://opendatacommunities.org/id/metropolitan-district-council/walsall,WC120-634,30/11/2020,ADULT SOCIAL CARE,ANCHOR CAREHOMES LTD - HARDEN HALL,20/11/2020,"2,308.00",6541,73501-Residential EMI,THIRD PARTY PAYMENTS,PRIVATE CONTRACTOR,Revenue
Walsall Council,http://opendatacommunities.org/id/metropolitan-district-council/walsall,WC120-635,30/11/2020,ADULT SOCIAL CARE,ANCHOR CAREHOMES LTD - HARDEN HALL,20/11/2020,"2,044.00",6541,73500-Residential,THIRD PARTY PAYMENTS,PRIVATE CONTRACTOR,Revenue
Walsall Council,http://opendatacommunities.org/id/metropolitan-district-council/walsall,WC120-636,30/11/2020,ADULT SOCIAL CARE,ANCHOR CAREHOMES LTD - HARDEN HALL,20/11/2020,"2,308.00",6541,73501-Residential EMI,THIRD PARTY PAYMENTS,PRIVATE CONTRACTOR,Revenue
Walsall Council,http://opendatacommunities.org/id/metropolitan-district-council/walsall,WC120-637,30/11/2020,ADULT SOCIAL CARE,ANCHOR CAREHOMES LTD - HARDEN HALL,20/11/2020,"2,044.00",6541,73500-Residential,THIRD PARTY PAYMENTS,PRIVATE CONTRACTOR,Revenue
Walsall Council,http://opendatacommunities.org/id/metropolitan-district-council/walsall,WC120-638,30/11/2020,ADULT SOCIAL CARE,ANCHOR CAREHOMES LTD - HARDEN HALL,20/11/2020,989.14,6541,73501-Residential EMI,THIRD PARTY PAYMENTS,PRIVATE CONTRACTOR,Revenue
Walsall Council,http://opendatacommunities.org/id/metropolitan-district-council/walsall,WC120-639,30/11/2020,ADULT SOCIAL CARE,ANCHOR CAREHOMES LTD - HARDEN HALL,20/11/2020,"2,332.24",6541,73501-Residential EMI,THIRD PARTY PAYMENTS,PRIVATE CONTRACTOR,Revenue
Walsall Council,http://opendatacommunities.org/id/metropolitan-district-council/walsall,WC120-640,30/11/2020,ADULT SOCIAL CARE,ANCHOR CAREHOMES LTD - HARDEN HALL,20/11/2020,"2,044.00",6541,73500-Residential,THIRD PARTY PAYMENTS,PRIVATE CONTRACTOR,Revenue
Walsall Council,http://opendatacommunities.org/id/metropolitan-district-council/walsall,WC120-641,30/11/2020,ADULT SOCIAL CARE,ANCHOR CAREHOMES LTD - HARDEN HALL,20/11/2020,"2,308.00",6541,73501-Residential EMI,THIRD PARTY PAYMENTS,PRIVATE CONTRACTOR,Revenue
Walsall Council,http://opendatacommunities.org/id/metropolitan-district-council/walsall,WC120-642,30/11/2020,ADULT SOCIAL CARE,ANCHOR CAREHOMES LTD - HARDEN HALL,20/11/2020,"2,308.00",6541,73501-Residential EMI,THIRD PARTY PAYMENTS,PRIVATE CONTRACTOR,Revenue
Walsall Council,http://opendatacommunities.org/id/metropolitan-district-council/walsall,WC120-643,30/11/2020,ADULT SOCIAL CARE,ANCHOR CAREHOMES LTD - HARDEN HALL,20/11/2020,"2,308.00",6541,73501-Residential EMI,THIRD PARTY PAYMENTS,PRIVATE CONTRACTOR,Revenue
Walsall Council,http://opendatacommunities.org/id/metropolitan-district-council/walsall,WC120-644,30/11/2020,ADULT SOCIAL CARE,ANCHOR CAREHOMES LTD - HARDEN HALL,20/11/2020,"2,308.00",6541,73501-Residential EMI,THIRD PARTY PAYMENTS,PRIVATE CONTRACTOR,Revenue
Walsall Council,http://opendatacommunities.org/id/metropolitan-district-council/walsall,WC120-645,30/11/2020,ADULT SOCIAL CARE,ANCHOR CAREHOMES LTD - HARDEN HALL,20/11/2020,"2,308.00",6541,73501-Residential EMI,THIRD PARTY PAYMENTS,PRIVATE CONTRACTOR,Revenue
Walsall Council,http://opendatacommunities.org/id/metropolitan-district-council/walsall,WC120-646,30/11/2020,ADULT SOCIAL CARE,ANCHOR CAREHOMES LTD - HARDEN HALL,20/11/2020,"2,648.00",6541,73501-Residential EMI,THIRD PARTY PAYMENTS,PRIVATE CONTRACTOR,Revenue
Walsall Council,http://opendatacommunities.org/id/metropolitan-district-council/walsall,WC120-647,30/11/2020,ADULT SOCIAL CARE,ANCHOR CAREHOMES LTD - HARDEN HALL,20/11/2020,"2,271.48",6541,73501-Residential EMI,THIRD PARTY PAYMENTS,PRIVATE CONTRACTOR,Revenue
Walsall Council,http://opendatacommunities.org/id/metropolitan-district-council/walsall,WC120-648,30/11/2020,ADULT SOCIAL CARE,ANCHOR CAREHOMES LTD - HARDEN HALL,20/11/2020,"2,044.00",6541,73500-Residential,THIRD PARTY PAYMENTS,PRIVATE CONTRACTOR,Revenue
Walsall Council,http://opendatacommunities.org/id/metropolitan-district-council/walsall,WC120-649,30/11/2020,ADULT SOCIAL CARE,ANCHOR CAREHOMES LTD - HARDEN HALL,20/11/2020,"2,312.24",6541,73501-Residential EMI,THIRD PARTY PAYMENTS,PRIVATE CONTRACTOR,Revenue
Walsall Council,http://opendatacommunities.org/id/metropolitan-district-council/walsall,WC120-650,30/11/2020,ADULT SOCIAL CARE,ANCHOR CAREHOMES LTD - HARDEN HALL,20/11/2020,"2,308.00",6541,73501-Residential EMI,THIRD PARTY PAYMENTS,PRIVATE CONTRACTOR,Revenue
Walsall Council,http://opendatacommunities.org/id/metropolitan-district-council/walsall,WC120-651,30/11/2020,ADULT SOCIAL CARE,ANCHOR CAREHOMES LTD - HARDEN HALL,20/11/2020,"2,358.96",6541,73501-Residential EMI,THIRD PARTY PAYMENTS,PRIVATE CONTRACTOR,Revenue
Walsall Council,http://opendatacommunities.org/id/metropolitan-district-council/walsall,WC120-652,30/11/2020,ADULT SOCIAL CARE,ANCHOR CAREHOMES LTD - HARDEN HALL,20/11/2020,"2,308.00",6541,73501-Residential EMI,THIRD PARTY PAYMENTS,PRIVATE CONTRACTOR,Revenue
Walsall Council,http://opendatacommunities.org/id/metropolitan-district-council/walsall,WC120-653,30/11/2020,ADULT SOCIAL CARE,ANCHOR CAREHOMES LTD - HARDEN HALL,20/11/2020,"2,332.24",6541,73501-Residential EMI,THIRD PARTY PAYMENTS,PRIVATE CONTRACTOR,Revenue
Walsall Council,http://opendatacommunities.org/id/metropolitan-district-council/walsall,WC120-654,30/11/2020,ADULT SOCIAL CARE,ANCHOR CAREHOMES LTD - HARDEN HALL,20/11/2020,"2,308.00",6541,73501-Residential EMI,THIRD PARTY PAYMENTS,PRIVATE CONTRACTOR,Revenue
Walsall Council,http://opendatacommunities.org/id/metropolitan-district-council/walsall,WC120-655,30/11/2020,ADULT SOCIAL CARE,ANCHOR CAREHOMES LTD - HARDEN HALL,20/11/2020,"2,044.00",6541,73500-Residential,THIRD PARTY PAYMENTS,PRIVATE CONTRACTOR,Revenue
Walsall Council,http://opendatacommunities.org/id/metropolitan-district-council/walsall,WC120-656,30/11/2020,ADULT SOCIAL CARE,ANCHOR CAREHOMES LTD - HARDEN HALL,20/11/2020,"2,094.96",6541,73500-Residential,THIRD PARTY PAYMENTS,PRIVATE CONTRACTOR,Revenue
Walsall Council,http://opendatacommunities.org/id/metropolitan-district-council/walsall,WC120-657,30/11/2020,ADULT SOCIAL CARE,ANCHOR CAREHOMES LTD - HARDEN HALL,20/11/2020,"2,332.24",6541,73501-Residential EMI,THIRD PARTY PAYMENTS,PRIVATE CONTRACTOR,Revenue
Walsall Council,http://opendatacommunities.org/id/metropolitan-district-council/walsall,WC120-658,30/11/2020,ADULT SOCIAL CARE,ANCHOR CAREHOMES LTD - HARDEN HALL,20/11/2020,"2,308.00",6541,73501-Residential EMI,THIRD PARTY PAYMENTS,PRIVATE CONTRACTOR,Revenue
Walsall Council,http://opendatacommunities.org/id/metropolitan-district-council/walsall,WC120-659,30/11/2020,ADULT SOCIAL CARE,ANCHOR CAREHOMES LTD - HARDEN HALL,20/11/2020,"2,308.00",6541,73501-Residential EMI,THIRD PARTY PAYMENTS,PRIVATE CONTRACTOR,Revenue
Walsall Council,http://opendatacommunities.org/id/metropolitan-district-council/walsall,WC120-660,30/11/2020,ADULT SOCIAL CARE,ANCHOR CAREHOMES LTD - HARDEN HALL,20/11/2020,"2,054.96",6541,73500-Residential,THIRD PARTY PAYMENTS,PRIVATE CONTRACTOR,Revenue
Walsall Council,http://opendatacommunities.org/id/metropolitan-district-council/walsall,WC120-661,30/11/2020,ADULT SOCIAL CARE,ANCHOR CAREHOMES LTD - HARDEN HALL,20/11/2020,"2,308.00",6541,73501-Residential EMI,THIRD PARTY PAYMENTS,PRIVATE CONTRACTOR,Revenue
Walsall Council,http://opendatacommunities.org/id/metropolitan-district-council/walsall,WC120-662,30/11/2020,CHILDRENS,REDACTED,13/11/2020,312.24,6223,74509-Special Guardianship Orders,TRANSFER PAYMENTS,CHILDREN SOCIAL SERVICES CLIENT,Revenue
Walsall Council,http://opendatacommunities.org/id/metropolitan-district-council/walsall,WC120-663,30/11/2020,CHILDRENS CAPITAL,ANDREWS ELECTRICAL LTD,04/11/2020,"3,180.00",7155,01006-Site Works Contractors,CAPITAL,"NEW CONSTRUCTION,CONVERSION & RENOVATION",Capital
Walsall Council,http://opendatacommunities.org/id/metropolitan-district-council/walsall,WC120-664,30/11/2020,CHILDRENS CAPITAL,ANDREWS ELECTRICAL LTD,26/11/2020,"1,189.10",7155,01006-Site Works Contractors,CAPITAL,"NEW CONSTRUCTION,CONVERSION & RENOVATION",Capital
Walsall Council,http://opendatacommunities.org/id/metropolitan-district-council/walsall,WC120-665,30/11/2020,CHILDRENS CAPITAL,ANDREWS ELECTRICAL LTD,27/11/2020,500.00,7150,01006-Site Works Contractors,CAPITAL,"NEW CONSTRUCTION,CONVERSION & RENOVATION",Capital
Walsall Council,http://opendatacommunities.org/id/metropolitan-district-council/walsall,WC120-666,30/11/2020,CHILDRENS,REDACTED,13/11/2020,368.76,6223,74509-Special Guardianship Orders,TRANSFER PAYMENTS,CHILDREN SOCIAL SERVICES CLIENT,Revenue
Walsall Council,http://opendatacommunities.org/id/metropolitan-district-council/walsall,WC120-667,30/11/2020,CHILDRENS,REDACTED,13/11/2020,500.16,6223,74509-Special Guardianship Orders,TRANSFER PAYMENTS,CHILDREN SOCIAL SERVICES CLIENT,Revenue
Walsall Council,http://opendatacommunities.org/id/metropolitan-district-council/walsall,WC120-668,30/11/2020,CHILDRENS,REDACTED,13/11/2020,312.04,6223,74509-Special Guardianship Orders,TRANSFER PAYMENTS,CHILDREN SOCIAL SERVICES CLIENT,Revenue
Walsall Council,http://opendatacommunities.org/id/metropolitan-district-council/walsall,WC120-669,30/11/2020,CHILDRENS,ANGELS AND BUTTERFLIES CHILDMINDING,27/11/2020,424.84,1184,66505-Other-Grants to Other Orgs,SUPPLIES & SERVICES,GRANTS (EXP) & SUBSCRIPTIONS,Revenue
Walsall Council,http://opendatacommunities.org/id/metropolitan-district-council/walsall,WC120-670,30/11/2020,ADULT SOCIAL CARE,REDACTED,13/11/2020,684.88,6541,73510-Shared Lives,THIRD PARTY PAYMENTS,PRIVATE CONTRACTOR,Revenue
Walsall Council,http://opendatacommunities.org/id/metropolitan-district-council/walsall,WC120-671,30/11/2020,ADULT SOCIAL CARE,REDACTED,04/11/2020,743.48,6541,73510-Shared Lives,THIRD PARTY PAYMENTS,PRIVATE CONTRACTOR,Revenue
Walsall Council,http://opendatacommunities.org/id/metropolitan-district-council/walsall,WC120-672,30/11/2020,ADULT SOCIAL CARE,ANSON COURT RESIDENTIAL HOME,09/11/2020,"11,022.00",6550,73025-Professional Services-Priv Contractor & Other Agencies,THIRD PARTY PAYMENTS,PRIVATE CONTRACTOR,Revenue
Walsall Council,http://opendatacommunities.org/id/metropolitan-district-council/walsall,WC120-673,30/11/2020,ADULT SOCIAL CARE,ANSON COURT RESIDENTIAL HOME,20/11/2020,"2,308.00",6541,73501-Residential EMI,THIRD PARTY PAYMENTS,PRIVATE CONTRACTOR,Revenue
Walsall Council,http://opendatacommunities.org/id/metropolitan-district-council/walsall,WC120-674,30/11/2020,ADULT SOCIAL CARE,ANSON COURT RESIDENTIAL HOME,20/11/2020,"2,308.00",6541,73501-Residential EMI,THIRD PARTY PAYMENTS,PRIVATE CONTRACTOR,Revenue
Walsall Council,http://opendatacommunities.org/id/metropolitan-district-council/walsall,WC120-675,30/11/2020,ADULT SOCIAL CARE,ANSON COURT RESIDENTIAL HOME,20/11/2020,627.00,6541,73501-Residential EMI,THIRD PARTY PAYMENTS,PRIVATE CONTRACTOR,Revenue
Walsall Council,http://opendatacommunities.org/id/metropolitan-district-council/walsall,WC120-676,30/11/2020,ADULT SOCIAL CARE,ANSON COURT RESIDENTIAL HOME,20/11/2020,"2,308.00",6541,73501-Residential EMI,THIRD PARTY PAYMENTS,PRIVATE CONTRACTOR,Revenue
Walsall Council,http://opendatacommunities.org/id/metropolitan-district-council/walsall,WC120-677,30/11/2020,ADULT SOCIAL CARE,ANSON COURT RESIDENTIAL HOME,20/11/2020,"2,308.00",6541,73501-Residential EMI,THIRD PARTY PAYMENTS,PRIVATE CONTRACTOR,Revenue
Walsall Council,http://opendatacommunities.org/id/metropolitan-district-council/walsall,WC120-678,30/11/2020,ADULT SOCIAL CARE,ANSON COURT RESIDENTIAL HOME,20/11/2020,"2,164.00",6541,73500-Residential,THIRD PARTY PAYMENTS,PRIVATE CONTRACTOR,Revenue
Walsall Council,http://opendatacommunities.org/id/metropolitan-district-council/walsall,WC120-679,30/11/2020,ADULT SOCIAL CARE,ANSON COURT RESIDENTIAL HOME,20/11/2020,"2,308.00",6541,73501-Residential EMI,THIRD PARTY PAYMENTS,PRIVATE CONTRACTOR,Revenue
Walsall Council,http://opendatacommunities.org/id/metropolitan-district-council/walsall,WC120-680,30/11/2020,ADULT SOCIAL CARE,ANSON COURT RESIDENTIAL HOME,20/11/2020,"2,308.00",6541,73501-Residential EMI,THIRD PARTY PAYMENTS,PRIVATE CONTRACTOR,Revenue
Walsall Council,http://opendatacommunities.org/id/metropolitan-district-council/walsall,WC120-681,30/11/2020,ADULT SOCIAL CARE,ANSON COURT RESIDENTIAL HOME,20/11/2020,"2,308.00",6541,73501-Residential EMI,THIRD PARTY PAYMENTS,PRIVATE CONTRACTOR,Revenue
Walsall Council,http://opendatacommunities.org/id/metropolitan-district-council/walsall,WC120-682,30/11/2020,ADULT SOCIAL CARE,ANSON COURT RESIDENTIAL HOME,20/11/2020,"2,172.24",6541,73500-Residential,THIRD PARTY PAYMENTS,PRIVATE CONTRACTOR,Revenue
Walsall Council,http://opendatacommunities.org/id/metropolitan-district-council/walsall,WC120-683,30/11/2020,ADULT SOCIAL CARE,ANSON COURT RESIDENTIAL HOME,20/11/2020,"2,044.00",6541,73500-Residential,THIRD PARTY PAYMENTS,PRIVATE CONTRACTOR,Revenue
Walsall Council,http://opendatacommunities.org/id/metropolitan-district-council/walsall,WC120-684,30/11/2020,ADULT SOCIAL CARE,ANSON COURT RESIDENTIAL HOME,20/11/2020,"2,308.00",6541,73501-Residential EMI,THIRD PARTY PAYMENTS,PRIVATE CONTRACTOR,Revenue
Walsall Council,http://opendatacommunities.org/id/metropolitan-district-council/walsall,WC120-685,30/11/2020,CHILDRENS,REDACTED,13/11/2020,495.85,6223,74509-Special Guardianship Orders,TRANSFER PAYMENTS,CHILDREN SOCIAL SERVICES CLIENT,Revenue
Walsall Council,http://opendatacommunities.org/id/metropolitan-district-council/walsall,WC120-686,30/11/2020,CHILDRENS,REDACTED,13/11/2020,500.00,6223,74508-Internal Foster Carers-Carer Fees,TRANSFER PAYMENTS,CHILDREN SOCIAL SERVICES CLIENT,Revenue
Walsall Council,http://opendatacommunities.org/id/metropolitan-district-council/walsall,WC120-687,30/11/2020,ECONOMY & ENVIRONMENT,APCOA PARKING SERVICES (UK) LTD,04/11/2020,"56,336.44",6411,73025-Professional Services-Priv Contractor & Other Agencies,THIRD PARTY PAYMENTS,PRIVATE CONTRACTOR,Revenue
Walsall Council,http://opendatacommunities.org/id/metropolitan-district-council/walsall,WC120-688,30/11/2020,CHILDRENS,APP CARZ,24/11/2020,281.00,6314,52000-Hire of Vehicle with Driver,TRANSPORT,DIRECT TRANSPORT COSTS,Revenue
Walsall Council,http://opendatacommunities.org/id/metropolitan-district-council/walsall,WC120-689,30/11/2020,CHILDRENS,APP CARZ,13/11/2020,748.00,6241,52000-Hire of Vehicle with Driver,TRANSPORT,DIRECT TRANSPORT COSTS,Revenue
Walsall Council,http://opendatacommunities.org/id/metropolitan-district-council/walsall,WC120-690,30/11/2020,CHILDRENS,APP CARZ,13/11/2020,802.00,6241,52000-Hire of Vehicle with Driver,TRANSPORT,DIRECT TRANSPORT COSTS,Revenue
Walsall Council,http://opendatacommunities.org/id/metropolitan-district-council/walsall,WC120-691,30/11/2020,CHILDRENS,APP CARZ,13/11/2020,"1,000.00",6241,52000-Hire of Vehicle with Driver,TRANSPORT,DIRECT TRANSPORT COSTS,Revenue
Walsall Council,http://opendatacommunities.org/id/metropolitan-district-council/walsall,WC120-692,30/11/2020,CHILDRENS,APP CARZ,13/11/2020,418.00,6241,52000-Hire of Vehicle with Driver,TRANSPORT,DIRECT TRANSPORT COSTS,Revenue
Walsall Council,http://opendatacommunities.org/id/metropolitan-district-council/walsall,WC120-693,30/11/2020,CHILDRENS,APP CARZ,13/11/2020,672.00,6241,52000-Hire of Vehicle with Driver,TRANSPORT,DIRECT TRANSPORT COSTS,Revenue
Walsall Council,http://opendatacommunities.org/id/metropolitan-district-council/walsall,WC120-694,30/11/2020,CHILDRENS,APP CARZ,13/11/2020,"1,152.00",6241,52000-Hire of Vehicle with Driver,TRANSPORT,DIRECT TRANSPORT COSTS,Revenue
Walsall Council,http://opendatacommunities.org/id/metropolitan-district-council/walsall,WC120-695,30/11/2020,CHILDRENS,APP CARZ,13/11/2020,880.00,6241,52000-Hire of Vehicle with Driver,TRANSPORT,DIRECT TRANSPORT COSTS,Revenue
Walsall Council,http://opendatacommunities.org/id/metropolitan-district-council/walsall,WC120-696,30/11/2020,CHILDRENS,APP CARZ,13/11/2020,600.00,6241,52000-Hire of Vehicle with Driver,TRANSPORT,DIRECT TRANSPORT COSTS,Revenue
Walsall Council,http://opendatacommunities.org/id/metropolitan-district-council/walsall,WC120-697,30/11/2020,CHILDRENS,APP CARZ,13/11/2020,"1,280.00",6241,52000-Hire of Vehicle with Driver,TRANSPORT,DIRECT TRANSPORT COSTS,Revenue
Walsall Council,http://opendatacommunities.org/id/metropolitan-district-council/walsall,WC120-698,30/11/2020,CHILDRENS,APP CARZ,13/11/2020,"1,120.00",6241,52000-Hire of Vehicle with Driver,TRANSPORT,DIRECT TRANSPORT COSTS,Revenue
Walsall Council,http://opendatacommunities.org/id/metropolitan-district-council/walsall,WC120-699,30/11/2020,CHILDRENS,APP CARZ,13/11/2020,440.00,6241,52000-Hire of Vehicle with Driver,TRANSPORT,DIRECT TRANSPORT COSTS,Revenue
Walsall Council,http://opendatacommunities.org/id/metropolitan-district-council/walsall,WC120-700,30/11/2020,RESOURCES AND TRANSFORMATION,APPLE TRANSCRIPTION LIMITED,10/11/2020,266.76,6610,63116-External Legal Fees,SUPPLIES & SERVICES,SERVICES,Revenue
Walsall Council,http://opendatacommunities.org/id/metropolitan-district-council/walsall,WC120-701,30/11/2020,RESOURCES AND TRANSFORMATION,APSE 001,11/11/2020,"3,575.00",6312,63102-Consultant Fees,SUPPLIES & SERVICES,SERVICES,Revenue
Walsall Council,http://opendatacommunities.org/id/metropolitan-district-council/walsall,WC120-702,30/11/2020,ECONOMY & ENVIRONMENT,AQUAMO LTD,11/11/2020,325.00,6413,60500-Materials,SUPPLIES & SERVICES,EQUIPMENT FURNITURE & MATERIALS,Revenue
Walsall Council,http://opendatacommunities.org/id/metropolitan-district-council/walsall,WC120-703,30/11/2020,ECONOMY & ENVIRONMENT,AQUILA TRUCK CENTRES LTD,19/11/2020,395.00,6410,60500-Materials,SUPPLIES & SERVICES,EQUIPMENT FURNITURE & MATERIALS,Revenue
Walsall Council,http://opendatacommunities.org/id/metropolitan-district-council/walsall,WC120-704,30/11/2020,ADULT SOCIAL CARE,ARBORETUM NURSING HOME.,04/11/2020,"2,980.00",6554,73025-Professional Services-Priv Contractor & Other Agencies,THIRD PARTY PAYMENTS,PRIVATE CONTRACTOR,Revenue
Walsall Council,http://opendatacommunities.org/id/metropolitan-district-council/walsall,WC120-705,30/11/2020,ADULT SOCIAL CARE,ARBORETUM NURSING HOME.,09/11/2020,"1,603.20",6554,73025-Professional Services-Priv Contractor & Other Agencies,THIRD PARTY PAYMENTS,PRIVATE CONTRACTOR,Revenue
Walsall Council,http://opendatacommunities.org/id/metropolitan-district-council/walsall,WC120-706,30/11/2020,ADULT SOCIAL CARE,ARBORETUM NURSING HOME.,20/11/2020,"2,396.00",6541,73502-Nursing,THIRD PARTY PAYMENTS,PRIVATE CONTRACTOR,Revenue
Walsall Council,http://opendatacommunities.org/id/metropolitan-district-council/walsall,WC120-707,30/11/2020,ADULT SOCIAL CARE,ARBORETUM NURSING HOME.,20/11/2020,"2,576.00",6541,73502-Nursing,THIRD PARTY PAYMENTS,PRIVATE CONTRACTOR,Revenue
Walsall Council,http://opendatacommunities.org/id/metropolitan-district-council/walsall,WC120-708,30/11/2020,ADULT SOCIAL CARE,ARBORETUM NURSING HOME.,20/11/2020,"1,840.00",6541,73502-Nursing,THIRD PARTY PAYMENTS,PRIVATE CONTRACTOR,Revenue
Walsall Council,http://opendatacommunities.org/id/metropolitan-district-council/walsall,WC120-709,30/11/2020,ADULT SOCIAL CARE,ARBORETUM NURSING HOME.,20/11/2020,"2,396.00",6541,73502-Nursing,THIRD PARTY PAYMENTS,PRIVATE CONTRACTOR,Revenue
Walsall Council,http://opendatacommunities.org/id/metropolitan-district-council/walsall,WC120-710,30/11/2020,ADULT SOCIAL CARE,ARBORETUM NURSING HOME.,20/11/2020,"2,396.00",6541,73502-Nursing,THIRD PARTY PAYMENTS,PRIVATE CONTRACTOR,Revenue
Walsall Council,http://opendatacommunities.org/id/metropolitan-district-council/walsall,WC120-711,30/11/2020,ADULT SOCIAL CARE,ARBORETUM NURSING HOME.,20/11/2020,"2,396.00",6541,73502-Nursing,THIRD PARTY PAYMENTS,PRIVATE CONTRACTOR,Revenue
Walsall Council,http://opendatacommunities.org/id/metropolitan-district-council/walsall,WC120-712,30/11/2020,ADULT SOCIAL CARE,ARBORETUM NURSING HOME.,20/11/2020,"2,396.00",6541,73502-Nursing,THIRD PARTY PAYMENTS,PRIVATE CONTRACTOR,Revenue
Walsall Council,http://opendatacommunities.org/id/metropolitan-district-council/walsall,WC120-713,30/11/2020,ADULT SOCIAL CARE,ARBORETUM NURSING HOME.,20/11/2020,"2,396.00",6541,73502-Nursing,THIRD PARTY PAYMENTS,PRIVATE CONTRACTOR,Revenue
Walsall Council,http://opendatacommunities.org/id/metropolitan-district-council/walsall,WC120-714,30/11/2020,ADULT SOCIAL CARE,ARBORETUM NURSING HOME.,20/11/2020,"2,396.00",6541,73502-Nursing,THIRD PARTY PAYMENTS,PRIVATE CONTRACTOR,Revenue
Walsall Council,http://opendatacommunities.org/id/metropolitan-district-council/walsall,WC120-715,30/11/2020,ADULT SOCIAL CARE,ARBORETUM NURSING HOME.,20/11/2020,"2,576.00",6541,73502-Nursing,THIRD PARTY PAYMENTS,PRIVATE CONTRACTOR,Revenue
Walsall Council,http://opendatacommunities.org/id/metropolitan-district-council/walsall,WC120-716,30/11/2020,ADULT SOCIAL CARE,ARBORETUM NURSING HOME.,20/11/2020,"2,552.00",6541,73502-Nursing,THIRD PARTY PAYMENTS,PRIVATE CONTRACTOR,Revenue
Walsall Council,http://opendatacommunities.org/id/metropolitan-district-council/walsall,WC120-717,30/11/2020,ADULT SOCIAL CARE,ARBORETUM NURSING HOME.,20/11/2020,"2,396.00",6541,73502-Nursing,THIRD PARTY PAYMENTS,PRIVATE CONTRACTOR,Revenue
Walsall Council,http://opendatacommunities.org/id/metropolitan-district-council/walsall,WC120-718,30/11/2020,ADULT SOCIAL CARE,ARBORETUM NURSING HOME.,20/11/2020,"2,576.00",6541,73502-Nursing,THIRD PARTY PAYMENTS,PRIVATE CONTRACTOR,Revenue
Walsall Council,http://opendatacommunities.org/id/metropolitan-district-council/walsall,WC120-719,30/11/2020,ADULT SOCIAL CARE,ARBORETUM NURSING HOME.,20/11/2020,"2,396.00",6541,73502-Nursing,THIRD PARTY PAYMENTS,PRIVATE CONTRACTOR,Revenue
Walsall Council,http://opendatacommunities.org/id/metropolitan-district-council/walsall,WC120-720,30/11/2020,ADULT SOCIAL CARE,ARBORETUM NURSING HOME.,20/11/2020,"2,396.00",6541,73502-Nursing,THIRD PARTY PAYMENTS,PRIVATE CONTRACTOR,Revenue
Walsall Council,http://opendatacommunities.org/id/metropolitan-district-council/walsall,WC120-721,30/11/2020,ADULT SOCIAL CARE,ARBORETUM NURSING HOME.,30/11/2020,"18,036.00",6550,73025-Professional Services-Priv Contractor & Other Agencies,THIRD PARTY PAYMENTS,PRIVATE CONTRACTOR,Revenue
Walsall Council,http://opendatacommunities.org/id/metropolitan-district-council/walsall,WC120-722,30/11/2020,ADULT SOCIAL CARE,ARBORETUM NURSING HOME.,12/11/2020,-800.60,6554,73025-Professional Services-Priv Contractor & Other Agencies,THIRD PARTY PAYMENTS,PRIVATE CONTRACTOR,Revenue
Walsall Council,http://opendatacommunities.org/id/metropolitan-district-council/walsall,WC120-723,30/11/2020,ADULT SOCIAL CARE,ARBORETUM NURSING HOME.,12/11/2020,"-2,061.26",6554,73025-Professional Services-Priv Contractor & Other Agencies,THIRD PARTY PAYMENTS,PRIVATE CONTRACTOR,Revenue
Walsall Council,http://opendatacommunities.org/id/metropolitan-district-council/walsall,WC120-724,30/11/2020,ADULT SOCIAL CARE,ARBORETUM NURSING HOME.,12/11/2020,"-1,383.57",6554,73025-Professional Services-Priv Contractor & Other Agencies,THIRD PARTY PAYMENTS,PRIVATE CONTRACTOR,Revenue
Walsall Council,http://opendatacommunities.org/id/metropolitan-district-council/walsall,WC120-725,30/11/2020,ECONOMY & ENVIRONMENT,ARCADIS,10/11/2020,"5,780.00",6313,63102-Consultant Fees,SUPPLIES & SERVICES,SERVICES,Revenue
Walsall Council,http://opendatacommunities.org/id/metropolitan-district-council/walsall,WC120-726,30/11/2020,CHILDRENS CAPITAL,ASBESTOS ABATEMENT SERVICES,27/11/2020,750.00,7150,01006-Site Works Contractors,CAPITAL,"NEW CONSTRUCTION,CONVERSION & RENOVATION",Capital
Walsall Council,http://opendatacommunities.org/id/metropolitan-district-council/walsall,WC120-727,30/11/2020,ADULT SOCIAL CARE,ASH GRANGE CARE HOME,20/11/2020,"2,044.00",6541,73500-Residential,THIRD PARTY PAYMENTS,PRIVATE CONTRACTOR,Revenue
Walsall Council,http://opendatacommunities.org/id/metropolitan-district-council/walsall,WC120-728,30/11/2020,ADULT SOCIAL CARE,ASH GRANGE CARE HOME,20/11/2020,427.86,6541,73502-Nursing,THIRD PARTY PAYMENTS,PRIVATE CONTRACTOR,Revenue
Walsall Council,http://opendatacommunities.org/id/metropolitan-district-council/walsall,WC120-729,30/11/2020,ADULT SOCIAL CARE,ASH GRANGE CARE HOME,20/11/2020,"2,396.00",6541,73502-Nursing,THIRD PARTY PAYMENTS,PRIVATE CONTRACTOR,Revenue
Walsall Council,http://opendatacommunities.org/id/metropolitan-district-council/walsall,WC120-730,30/11/2020,ADULT SOCIAL CARE,ASH GRANGE CARE HOME,20/11/2020,"2,396.00",6541,73502-Nursing,THIRD PARTY PAYMENTS,PRIVATE CONTRACTOR,Revenue
Walsall Council,http://opendatacommunities.org/id/metropolitan-district-council/walsall,WC120-731,30/11/2020,ADULT SOCIAL CARE,ASH GRANGE CARE HOME,20/11/2020,"2,396.00",6541,73502-Nursing,THIRD PARTY PAYMENTS,PRIVATE CONTRACTOR,Revenue
Walsall Council,http://opendatacommunities.org/id/metropolitan-district-council/walsall,WC120-732,30/11/2020,ADULT SOCIAL CARE,ASH GRANGE CARE HOME,20/11/2020,"2,696.00",6541,73503-Nursing EMI,THIRD PARTY PAYMENTS,PRIVATE CONTRACTOR,Revenue
Walsall Council,http://opendatacommunities.org/id/metropolitan-district-council/walsall,WC120-733,30/11/2020,ADULT SOCIAL CARE,ASH GRANGE CARE HOME,20/11/2020,"3,400.00",6541,73500-Residential,THIRD PARTY PAYMENTS,PRIVATE CONTRACTOR,Revenue
Walsall Council,http://opendatacommunities.org/id/metropolitan-district-council/walsall,WC120-734,30/11/2020,ADULT SOCIAL CARE,ASH GRANGE CARE HOME,20/11/2020,"2,396.00",6541,73502-Nursing,THIRD PARTY PAYMENTS,PRIVATE CONTRACTOR,Revenue
Walsall Council,http://opendatacommunities.org/id/metropolitan-district-council/walsall,WC120-735,30/11/2020,ADULT SOCIAL CARE,ASH GRANGE CARE HOME,20/11/2020,"2,396.00",6541,73502-Nursing,THIRD PARTY PAYMENTS,PRIVATE CONTRACTOR,Revenue
Walsall Council,http://opendatacommunities.org/id/metropolitan-district-council/walsall,WC120-736,30/11/2020,ADULT SOCIAL CARE,ASH GRANGE CARE HOME,20/11/2020,"2,396.00",6541,73502-Nursing,THIRD PARTY PAYMENTS,PRIVATE CONTRACTOR,Revenue
Walsall Council,http://opendatacommunities.org/id/metropolitan-district-council/walsall,WC120-737,30/11/2020,ADULT SOCIAL CARE,ASH GRANGE CARE HOME,20/11/2020,"2,044.00",6541,73500-Residential,THIRD PARTY PAYMENTS,PRIVATE CONTRACTOR,Revenue
Walsall Council,http://opendatacommunities.org/id/metropolitan-district-council/walsall,WC120-738,30/11/2020,ADULT SOCIAL CARE,ASH GRANGE CARE HOME,20/11/2020,"2,396.00",6541,73502-Nursing,THIRD PARTY PAYMENTS,PRIVATE CONTRACTOR,Revenue
Walsall Council,http://opendatacommunities.org/id/metropolitan-district-council/walsall,WC120-739,30/11/2020,ADULT SOCIAL CARE,ASH GRANGE CARE HOME,20/11/2020,"2,375.73",6541,73502-Nursing,THIRD PARTY PAYMENTS,PRIVATE CONTRACTOR,Revenue
Walsall Council,http://opendatacommunities.org/id/metropolitan-district-council/walsall,WC120-740,30/11/2020,ADULT SOCIAL CARE,ASH GRANGE CARE HOME,20/11/2020,"2,396.00",6541,73502-Nursing,THIRD PARTY PAYMENTS,PRIVATE CONTRACTOR,Revenue
Walsall Council,http://opendatacommunities.org/id/metropolitan-district-council/walsall,WC120-741,30/11/2020,ADULT SOCIAL CARE,ASH GRANGE CARE HOME,20/11/2020,"2,696.00",6541,73503-Nursing EMI,THIRD PARTY PAYMENTS,PRIVATE CONTRACTOR,Revenue
Walsall Council,http://opendatacommunities.org/id/metropolitan-district-council/walsall,WC120-742,30/11/2020,ADULT SOCIAL CARE,ASH GRANGE CARE HOME,20/11/2020,"2,581.16",6541,73500-Residential,THIRD PARTY PAYMENTS,PRIVATE CONTRACTOR,Revenue
Walsall Council,http://opendatacommunities.org/id/metropolitan-district-council/walsall,WC120-743,30/11/2020,ADULT SOCIAL CARE,ASH GRANGE CARE HOME,20/11/2020,"2,396.00",6541,73502-Nursing,THIRD PARTY PAYMENTS,PRIVATE CONTRACTOR,Revenue
Walsall Council,http://opendatacommunities.org/id/metropolitan-district-council/walsall,WC120-744,30/11/2020,ADULT SOCIAL CARE,ASH GRANGE CARE HOME,20/11/2020,"2,423.72",6541,73502-Nursing,THIRD PARTY PAYMENTS,PRIVATE CONTRACTOR,Revenue
Walsall Council,http://opendatacommunities.org/id/metropolitan-district-council/walsall,WC120-745,30/11/2020,ADULT SOCIAL CARE,ASH GRANGE CARE HOME,20/11/2020,"2,696.00",6541,73503-Nursing EMI,THIRD PARTY PAYMENTS,PRIVATE CONTRACTOR,Revenue
Walsall Council,http://opendatacommunities.org/id/metropolitan-district-council/walsall,WC120-746,30/11/2020,ADULT SOCIAL CARE,ASH GRANGE CARE HOME,20/11/2020,"2,396.00",6541,73502-Nursing,THIRD PARTY PAYMENTS,PRIVATE CONTRACTOR,Revenue
Walsall Council,http://opendatacommunities.org/id/metropolitan-district-council/walsall,WC120-747,30/11/2020,ADULT SOCIAL CARE,ASH GRANGE CARE HOME,20/11/2020,"2,396.00",6541,73502-Nursing,THIRD PARTY PAYMENTS,PRIVATE CONTRACTOR,Revenue
Walsall Council,http://opendatacommunities.org/id/metropolitan-district-council/walsall,WC120-748,30/11/2020,ADULT SOCIAL CARE,ASH GRANGE CARE HOME,20/11/2020,"2,396.00",6541,73502-Nursing,THIRD PARTY PAYMENTS,PRIVATE CONTRACTOR,Revenue
Walsall Council,http://opendatacommunities.org/id/metropolitan-district-council/walsall,WC120-749,30/11/2020,ADULT SOCIAL CARE,ASH GRANGE CARE HOME,20/11/2020,"2,396.00",6541,73502-Nursing,THIRD PARTY PAYMENTS,PRIVATE CONTRACTOR,Revenue
Walsall Council,http://opendatacommunities.org/id/metropolitan-district-council/walsall,WC120-750,30/11/2020,ADULT SOCIAL CARE,ASH GRANGE CARE HOME,20/11/2020,"2,774.96",6541,73502-Nursing,THIRD PARTY PAYMENTS,PRIVATE CONTRACTOR,Revenue
Walsall Council,http://opendatacommunities.org/id/metropolitan-district-council/walsall,WC120-751,30/11/2020,ADULT SOCIAL CARE,ASH GRANGE CARE HOME,03/11/2020,"3,000.00",6554,73025-Professional Services-Priv Contractor & Other Agencies,THIRD PARTY PAYMENTS,PRIVATE CONTRACTOR,Revenue
Walsall Council,http://opendatacommunities.org/id/metropolitan-district-council/walsall,WC120-752,30/11/2020,ECONOMY & ENVIRONMENT,ASHDOWN SUPPLIES,12/11/2020,318.72,6413,60522-Plaques Memorials-Materials,SUPPLIES & SERVICES,EQUIPMENT FURNITURE & MATERIALS,Revenue
Walsall Council,http://opendatacommunities.org/id/metropolitan-district-council/walsall,WC120-753,30/11/2020,ECONOMY & ENVIRONMENT,ASHDOWN SUPPLIES,11/11/2020,318.72,6413,60522-Plaques Memorials-Materials,SUPPLIES & SERVICES,EQUIPMENT FURNITURE & MATERIALS,Revenue
Walsall Council,http://opendatacommunities.org/id/metropolitan-district-council/walsall,WC120-754,30/11/2020,ECONOMY & ENVIRONMENT,ASKEWS AND HOLTS LIBRARY SERVICES LTD,23/11/2020,"-1,603.13",6414,60501-Library Books,SUPPLIES & SERVICES,EQUIPMENT FURNITURE & MATERIALS,Revenue
Walsall Council,http://opendatacommunities.org/id/metropolitan-district-council/walsall,WC120-755,30/11/2020,ECONOMY & ENVIRONMENT,ASKEWS AND HOLTS LIBRARY SERVICES LTD,23/11/2020,"1,603.13",6414,60501-Library Books,SUPPLIES & SERVICES,EQUIPMENT FURNITURE & MATERIALS,Revenue
Walsall Council,http://opendatacommunities.org/id/metropolitan-district-council/walsall,WC120-756,30/11/2020,ECONOMY & ENVIRONMENT,ASKEWS AND HOLTS LIBRARY SERVICES LTD,23/11/2020,"1,684.16",6414,60501-Library Books,SUPPLIES & SERVICES,EQUIPMENT FURNITURE & MATERIALS,Revenue
Walsall Council,http://opendatacommunities.org/id/metropolitan-district-council/walsall,WC120-757,30/11/2020,ECONOMY & ENVIRONMENT,ASKEWS AND HOLTS LIBRARY SERVICES LTD,10/11/2020,"1,095.83",6414,60501-Library Books,SUPPLIES & SERVICES,EQUIPMENT FURNITURE & MATERIALS,Revenue
Walsall Council,http://opendatacommunities.org/id/metropolitan-district-council/walsall,WC120-758,30/11/2020,ADULT SOCIAL CARE,ASPECTS CARE LTD,18/11/2020,417.04,6541,73508-Community Supported Living/Supported Accommodation,THIRD PARTY PAYMENTS,PRIVATE CONTRACTOR,Revenue
Walsall Council,http://opendatacommunities.org/id/metropolitan-district-council/walsall,WC120-759,30/11/2020,ADULT SOCIAL CARE,ASPECTS CARE LTD,18/11/2020,503.32,6541,73508-Community Supported Living/Supported Accommodation,THIRD PARTY PAYMENTS,PRIVATE CONTRACTOR,Revenue
Walsall Council,http://opendatacommunities.org/id/metropolitan-district-council/walsall,WC120-760,30/11/2020,ADULT SOCIAL CARE,ASPECTS CARE LTD,18/11/2020,503.32,6541,73508-Community Supported Living/Supported Accommodation,THIRD PARTY PAYMENTS,PRIVATE CONTRACTOR,Revenue
Walsall Council,http://opendatacommunities.org/id/metropolitan-district-council/walsall,WC120-761,30/11/2020,ADULT SOCIAL CARE,ASPECTS CARE LTD,18/11/2020,790.92,6541,73508-Community Supported Living/Supported Accommodation,THIRD PARTY PAYMENTS,PRIVATE CONTRACTOR,Revenue
Walsall Council,http://opendatacommunities.org/id/metropolitan-district-council/walsall,WC120-762,30/11/2020,ADULT SOCIAL CARE,ASPECTS CARE LTD,18/11/2020,316.36,6541,73508-Community Supported Living/Supported Accommodation,THIRD PARTY PAYMENTS,PRIVATE CONTRACTOR,Revenue
Walsall Council,http://opendatacommunities.org/id/metropolitan-district-council/walsall,WC120-763,30/11/2020,ADULT SOCIAL CARE,ASPECTS CARE LTD,18/11/2020,"1,078.52",6541,73508-Community Supported Living/Supported Accommodation,THIRD PARTY PAYMENTS,PRIVATE CONTRACTOR,Revenue
Walsall Council,http://opendatacommunities.org/id/metropolitan-district-council/walsall,WC120-764,30/11/2020,ADULT SOCIAL CARE,ASPECTS CARE LTD,18/11/2020,517.68,6541,73508-Community Supported Living/Supported Accommodation,THIRD PARTY PAYMENTS,PRIVATE CONTRACTOR,Revenue
Walsall Council,http://opendatacommunities.org/id/metropolitan-district-council/walsall,WC120-765,30/11/2020,ADULT SOCIAL CARE,ASPECTS CARE LTD,18/11/2020,560.84,6541,73508-Community Supported Living/Supported Accommodation,THIRD PARTY PAYMENTS,PRIVATE CONTRACTOR,Revenue
Walsall Council,http://opendatacommunities.org/id/metropolitan-district-council/walsall,WC120-766,30/11/2020,ADULT SOCIAL CARE,ASPECTS CARE LTD,18/11/2020,517.68,6541,73508-Community Supported Living/Supported Accommodation,THIRD PARTY PAYMENTS,PRIVATE CONTRACTOR,Revenue
Walsall Council,http://opendatacommunities.org/id/metropolitan-district-council/walsall,WC120-767,30/11/2020,ADULT SOCIAL CARE,ASPECTS CARE LTD,30/11/2020,359.52,6541,73508-Community Supported Living/Supported Accommodation,THIRD PARTY PAYMENTS,PRIVATE CONTRACTOR,Revenue
Walsall Council,http://opendatacommunities.org/id/metropolitan-district-council/walsall,WC120-768,30/11/2020,ADULT SOCIAL CARE,ASPECTS CARE LTD,18/11/2020,790.92,6541,73508-Community Supported Living/Supported Accommodation,THIRD PARTY PAYMENTS,PRIVATE CONTRACTOR,Revenue
Walsall Council,http://opendatacommunities.org/id/metropolitan-district-council/walsall,WC120-769,30/11/2020,ADULT SOCIAL CARE,ASPECTS CARE LTD,18/11/2020,711.81,6541,73508-Community Supported Living/Supported Accommodation,THIRD PARTY PAYMENTS,PRIVATE CONTRACTOR,Revenue
Walsall Council,http://opendatacommunities.org/id/metropolitan-district-council/walsall,WC120-770,30/11/2020,CHILDRENS,REDACTED,25/11/2020,741.86,6222,76003-Section 34 (Contact),THIRD PARTY PAYMENTS,PRIVATE CONTRACTOR,Revenue
Walsall Council,http://opendatacommunities.org/id/metropolitan-district-council/walsall,WC120-771,30/11/2020,ADULT SOCIAL CARE,AURORA GRAPHICS & DISPLAYS LTD,04/11/2020,297.48,6623,62008-Outwork Print & Design,SUPPLIES & SERVICES,PRINTING STATIONERY & GENERAL OFFICE,Revenue
Walsall Council,http://opendatacommunities.org/id/metropolitan-district-council/walsall,WC120-772,30/11/2020,ADULT SOCIAL CARE,AURORA GRAPHICS & DISPLAYS LTD,04/11/2020,306.40,6623,62008-Outwork Print & Design,SUPPLIES & SERVICES,PRINTING STATIONERY & GENERAL OFFICE,Revenue
Walsall Council,http://opendatacommunities.org/id/metropolitan-district-council/walsall,WC120-773,30/11/2020,ADULT SOCIAL CARE,AURORA GRAPHICS & DISPLAYS LTD,04/11/2020,267.30,6623,62008-Outwork Print & Design,SUPPLIES & SERVICES,PRINTING STATIONERY & GENERAL OFFICE,Revenue
Walsall Council,http://opendatacommunities.org/id/metropolitan-district-council/walsall,WC120-774,30/11/2020,ADULT SOCIAL CARE,AUTISM WEST MIDLANDS,20/11/2020,"7,344.60",6541,73500-Residential,THIRD PARTY PAYMENTS,PRIVATE CONTRACTOR,Revenue
Walsall Council,http://opendatacommunities.org/id/metropolitan-district-council/walsall,WC120-775,30/11/2020,ADULT SOCIAL CARE,AUTISM WEST MIDLANDS 001,20/11/2020,"5,675.88",6541,73500-Residential,THIRD PARTY PAYMENTS,PRIVATE CONTRACTOR,Revenue
Walsall Council,http://opendatacommunities.org/id/metropolitan-district-council/walsall,WC120-776,30/11/2020,ADULT SOCIAL CARE,AVERY HOMES NELSON LIMITED,30/11/2020,"19,706.00",6550,73025-Professional Services-Priv Contractor & Other Agencies,THIRD PARTY PAYMENTS,PRIVATE CONTRACTOR,Revenue
Walsall Council,http://opendatacommunities.org/id/metropolitan-district-council/walsall,WC120-777,30/11/2020,ADULT SOCIAL CARE,AVERY HOMES NELSON LIMITED,20/11/2020,"2,044.00",6541,73500-Residential,THIRD PARTY PAYMENTS,PRIVATE CONTRACTOR,Revenue
Walsall Council,http://opendatacommunities.org/id/metropolitan-district-council/walsall,WC120-778,30/11/2020,ADULT SOCIAL CARE,AVERY HOMES NELSON LIMITED,20/11/2020,"2,044.00",6541,73500-Residential,THIRD PARTY PAYMENTS,PRIVATE CONTRACTOR,Revenue
Walsall Council,http://opendatacommunities.org/id/metropolitan-district-council/walsall,WC120-779,30/11/2020,CHILDRENS,BACK CARE SOLUTIONS LTD,04/11/2020,415.00,6211,60000-Purchase of Furniture & Equipment,SUPPLIES & SERVICES,EQUIPMENT FURNITURE & MATERIALS,Revenue
Walsall Council,http://opendatacommunities.org/id/metropolitan-district-council/walsall,WC120-780,30/11/2020,CHILDRENS,BACK CARE SOLUTIONS LTD,04/11/2020,463.00,6211,60000-Purchase of Furniture & Equipment,SUPPLIES & SERVICES,EQUIPMENT FURNITURE & MATERIALS,Revenue
Walsall Council,http://opendatacommunities.org/id/metropolitan-district-council/walsall,WC120-781,30/11/2020,CHILDRENS CAPITAL,BAILY GARNER LLP,03/11/2020,"1,700.00",7150,01006-Site Works Contractors,CAPITAL,"NEW CONSTRUCTION,CONVERSION & RENOVATION",Capital
